Workbook

Sheet Deckblatt
H1: 02.05.2016
B3: Gesetz für den Vorrang Erneuerbarer Energien (EEG)
B4: Erhebungsbogen zur Erfassung Ihrer EEG-Jahresabrechnung 2015 als Verteilnetzbetreiber
B5: (Version 2.9 vom 29.04.2016)
B6: Zusammenstellung der detaillierten Angaben Ihrer Endabrechnung nach § 72 EEG Ihrer aufgenommenen und vergüteten und an die TransnetBW GmbH als zuständigen Übertragungsnetzbetreiber weitergereichten EEG-Strommengen im Zeitraum vom 01.01.2015 bis 31.12.2015
B8: Verbindliche detaillierte Angaben zu Ihrer Bescheinigung der Daten gemäß § 72 EEG
B11: Netzbetreiber : | C11: Gammertinger Energie- u. Wasserversorgung GmbH
B13: BNetzA-Nr.: | C13: 10000066
B15: Datenstand : | C15: 2016-06-06
B17: Ausgleichsbilanzkreis 2016 * : | C17: 11YW1-GEW-EEG--U
B22: Wichtige Hinweise zum Ausfüllen der Formulare:
B24: - Auszufüllen sind jeweils nur die gelb hinterlegten Felder in gelb hinterlgeten Tabellenblättern
B25: - Eine anlagenscharfe Endabrechnung ist zwingend vorzunehmen und ist die Grundlage für die Durchführung der EEG-Jahresabrechnung
B27: * Bitte geben Sie hier Ihren Ausgleichsbilanzkreis für den physikalischen Ausgleich an. Der energetische und monetäre Ausgleich zwischen ÜNB und VNB für das Jahr 2015 wird im September 2016 durchgeführt.
B28: Die Energie wird hierfür in Form eines gleichbleibenden Bandes vom 1. September 00:00 Uhr bis 30. September 24:00 Uhr geliefert (die Lieferung/Rücklieferung erfolgt in Form von Fahrplananmeldungen).
B30: - Der Dateinamen ist zwingend beizubehalten, da die Datei sonst nicht verarbeitet werden kann.

Sheet Importprotokoll
A1: Prüfungsschritt/Fehlernummer: | B1: Fehlerbeschreibung | C1: Zeile (bei Schritt 1 u. 2) bzw. Anlagenschlüssel (bei Schritt 3) | D1: Tabellenblatt (nur bei Schritt 1 und 2) | E1: Spalte (nur bei Schritt 2, sofern möglich)
A2: E0001 | B2: Die Testatdaten wurden am 06.06.2016 um 14:23:52 erfolgreich berechnet. | D2: Testatdaten

Sheet Testatdaten
D1: =Deckblatt!H1 -> 02.05.2016
A3: Netzbetreiber : | B3: =Deckblatt!C11 -> Gammertinger Energie- u. Wasserversorgung GmbH
A5: Zusammenstellung der Angaben der Endabrechnung nach § 72 EEG Ihrer aufgenommenen und vergüteten und an die TransnetBW GmbH als zuständigen Übertragungsnetzbetreiber weitergereichten EEG-Strommengen im Zeitraum 01.01.2015 bis 31.12.2015
A8: Testatdaten
A10: Einspeisevergütung
B11: kaufmännisch abgenommene Strommenge | C11: Einspeisevergütung
B12: [kWh] | C12: [EUR]
A13: Wasserkraft | B13: 113443 | C13: 13238.8
A14: Deponie-, Klär-, Grubengas | B14: 0 | C14: 0
A15: Biomasse | B15: 0 | C15: 0
A16: Geothermie | B16: 0 | C16: 0
A17: Windenergie an Land | B17: 0 | C17: 0
A18: Solare Strahlungsenergie | B18: 2728540 | C18: 986992.1
A20: Summe | B20: =SUM(B13:B18) -> 2841983 | C20: =SUM(C13:C18) -> 1000230.9
C21: (1)
A22: Solarstrom-Selbstverbrauch durch Anlagenbetreiber oder Dritte nach § 33 Abs. 2 EEG 2009 - muss nicht separat im Testat ausgewiesen werden.
A23: Selbstverbrauchsvergütung [€] (in Zelle C18 oben enthalten): | C23: 1392.21
A24: Selbstverbrauchte Strommenge [kWh] (nicht in Zelle B18 oben enthalten): | C24: 13299
A27: Direktvermarktung
B28: Marktprämie | C28: Marktprämienmodell | D28: sonstige Direktvermarktung | E28: GSP
B29: [EUR] | C29: [kWh] | D29: [kWh] | E29: [kWh]
A30: Wasserkraft | B30: 0 | C30: 0 | D30: 0 | E30: 0
A31: Deponie-, Klär-, Grubengas | B31: 0 | C31: 0 | D31: 0 | E31: 0
A32: Biomasse | B32: 0 | C32: 0 | D32: 0 | E32: 0
A33: Geothermie | B33: 0 | C33: 0 | D33: 0 | E33: 0
A34: Windenergie an Land | B34: 0 | C34: 0 | D34: 0 | E34: 0
A35: Solare Strahlungsenergie | B35: 0 | C35: 0 | D35: 0 | E35: 0
A37: Summe | B37: =SUM(B30:B35) -> 0 | C37: =SUM(C30:C35) -> 0 | D37: 0 | E37: =SUM(E30:E35) -> 0
B38: (2)
A40: Förderung für Flexibilität
B41: Förderung
B42: [EUR]
A43: Flexibilitätszuschlag und Flexibilitätsprämie | B43: 0
B44: (3)
A47: vermiedene Netzentgelte (vNE)
B48: vNE nach § 35 Abs. 2 EEG
B49: [€]
A50: Wasserkraft | B50: 1009.64
A51: Deponie-, Klär-, Grubengas | B51: 0
A52: Biomasse | B52: 0
A53: Geothermie | B53: 0
A54: Windenergie an Land | B54: 0
A55: Solare Strahlungsenergie | B55: 30675
A57: Summe | B57: =SUM(B50:B55) -> 31684.64
B58: (4)
A61: EEG-Umlage aus Eigenversorgung für 2015
B62: Strommengen [kWh] | C62: Erhaltene Zahlungen [€]
A63: EEG-Umlage nach § 61 Abs. 1 Satz 1 Nr. 1 EEG 2014 (30% der vollen Umlage) | B63: 0 | C63: 0
A64: EEG-Umlage nach § 61 Abs. 1 Satz 2 EEG 2014 (volle Umlage) | B64: 0 | C64: 0
A65: EEG-Umlage nach § 61 Abs. 2 Nr. 4 EEG 2014 (keine Umlage) | B65: 0 | C65: 0
A66: Zinsbetrag entsprechend § 60 Abs. 4 EEG i. V. m. § 7 Abs. 4 AusglMechV | B66: - | C66: 0
A68: Summe | B68: =SUM(B63:B65) -> 0 | C68: =SUM(C63:C66) -> 0
C69: (5)
A70: EEG-Umlage aus Eigenversorgung für 2014
B71: Strommengen [kWh] | C71: Erhaltene Zahlungen [€]
A72: EEG-Umlage nach § 61 Abs. 1 Satz 1 Nr. 1 EEG 2014 (30% der vollen Umlage) | B72: 0 | C72: 0
A73: EEG-Umlage nach § 61 Abs. 1 Satz 2 EEG 2014 (volle Umlage) | B73: 0 | C73: 0
A74: EEG-Umlage nach § 61 Abs. 2 Nr. 4 EEG 2014 (keine Umlage) | B74: 0 | C74: 0
A75: Zinsbetrag entsprechend § 60 Abs. 4 EEG i. V. m. § 7 Abs. 4 AusglMechV | B75: - | C75: 0
A77: Summe | B77: =SUM(B72:B74) -> 0 | C77: =SUM(C72:C75) -> 0
C78: (6)
A81: Zusammenstellung
C82: [€]
A83: Einspeisevergütung | B83: (1) =Zelle C20 | C83: =C20 -> 1000230.9
A84: + Marktprämie | B84: (2) = Zelle B37 | C84: =B37 -> 0
A85: + Förderung für Flexibilität | B85: (3) = Zelle B43 | C85: =B43 -> 0
A86: - Vermiedene Netzentgelte | B86: (4) = Zelle B57 | C86: =B57 -> 31684.64
A87: - Eigenversorgung für 2015 | B87: (5) = Zelle C68 | C87: =C68 -> 0
A88: - Eigenversorgung für 2014 | B88: (6) = Zelle C77 | C88: =C77 -> 0
A90: Zwischenergebnis | B90: (Z) = (1) + (2) + (3) - (4) - (5) - (6) | C90: =C83+C84+C85-C86-C87-C88 -> 968546.26
A92: + Nachträgliche Korrekturen nach § 62 EEG 2014 | B92: (7) | C92: 0
A94: Saldo | B94: = (Z)+ (7) | C94: =C92+C90 -> 968546.26
A97: Auf dieser Seite werden die in dieser Datei erfassten Bewegungsdaten entsprechend den Energieträgern zusammengefasst. Die im blauen Rahmen enthaltenen Angaben sind in Ihrer Wirtschaftsprüferbescheinigung (Testat) aufzuführen. Abweichungen der Testatwerte von den hier aufgeführten Summen sind nur soweit zulässig, wie sie auf Rundungsfehler zurückzuführen sind. Beachten Sie bitte, dass die vermiedenen Netzentgelte innerhalb des Testats wie hier aufgeführt mit positiven Vorzeichen anzugeben sind.
A103: Die direktvermarktete Strommenge ist nicht in der Spalte "Jahresarbeit der EEG-Einspeisung" enthalten und darf analog im Testat in der Spalte "Strommenge [kWh]" ebenfalls nicht enthalten sein. Hinweis: Falls Sie vermiedene Netzentgelte oder Direktvermarktung ausweisen müssen, diese Angaben aber hier fehlen: Ergänzen Sie bitte die Bewegungsdaten in den Tabellenblättern "Festvergütung-GSP-sonst.DV" (Gilt für Einspeisung von Anlagen in Festvergütung, Grünstromprivileg und in der sonstigen Direktvermarktung), "Marktprämie" (gilt für Anlagen in der Marktprämie) und "vNE" (gilt für vNE für Anlagen in Festvergütung, Grünstromprivileg und Marktprämie), indem Sie für die betroffenen Anlagen in einer weiteren Zeile die entsprechende vNE- bzw. Direktvermarktungskategorie auswählen. Die vNE sind als positiver Wert einzutragen. Die direktvermarktete Strommenge ist in der Spalte "Strommenge der Kategorie [kWh]" einzutragen.
A113: zusätzliche Informationen, die nicht im Testat aufzuführen sind (zur Kontrolle):
B115: vermiedene Netzentgelte [€]
A116: HöS | B116: 0
A117: Hös/HS | B117: 0
A118: HS | B118: 0
A119: HS/MS | B119: 0
A120: MS | B120: 221.64
A121: MS/NS | B121: 0
A122: NS | B122: 31463
A123: Summe | B123: =SUM(B116:B122) -> 31684.64
B126: Anzahl Anlagen
A127: Wasserkraft | B127: 1
A128: Deponie-, Klär-, Grubengas | B128: 0
A129: Biomasse | B129: 0
A130: Geothermie | B130: 0
A131: Windenergie an Land | B131: 0
A132: Solare Strahlungsenergie | B132: 191
A133: Summe | B133: =SUM(B127:B132) -> 192

Sheet Testatdaten (vorläufig)
D1: =Deckblatt!H1 -> 02.05.2016
A3: Netzbetreiber : | B3: =Deckblatt!C11 -> Gammertinger Energie- u. Wasserversorgung GmbH
A5: Zusammenstellung der Angaben der Endabrechnung nach § 72 EEG Ihrer aufgenommenen und vergüteten und an die TransnetBW GmbH als zuständigen Übertragungsnetzbetreiber weitergereichten EEG-Strommengen im Zeitraum 01.01.2015 bis 31.12.2015
A8: Testatdaten
A10: Einspeisevergütung
B11: kaufmännisch abgenommene Strommenge | C11: Einspeisevergütung
B12: [kWh] | C12: [EUR]
A13: Wasserkraft | B13: 113443 | C13: 13238.8
A14: Deponie-, Klär-, Grubengas | B14: 0 | C14: 0
A15: Biomasse | B15: 0 | C15: 0
A16: Geothermie | B16: 0 | C16: 0
A17: Windenergie an Land | B17: 0 | C17: 0
A18: Solare Strahlungsenergie | B18: 2728540 | C18: 986992.1
A20: Summe | B20: =SUM(B13:B18) -> 2841983 | C20: =SUM(C13:C18) -> 1000230.9
C21: (1)
A22: Solarstrom-Selbstverbrauch durch Anlagenbetreiber oder Dritte nach § 33 Abs. 2 EEG 2009 - muss nicht separat im Testat ausgewiesen werden.
A23: Selbstverbrauchsvergütung [€] (in Zelle C17 oben enthalten): | C23: 1392.21
A24: Selbstverbrauchte Strommenge [kWh] (nicht in Zelle B17 oben enthalten): | C24: 13299
A27: Direktvermarktung
B28: Marktprämie | C28: Marktprämienmodell | D28: sonstige Direktvermarktung | E28: GSP
B29: [EUR] | C29: [kWh] | D29: [kWh] | E29: [kWh]
A30: Wasserkraft | B30: 0 | C30: 0 | D30: 0 | E30: 0
A31: Deponie-, Klär-, Grubengas | B31: 0 | C31: 0 | D31: 0 | E31: 0
A32: Biomasse | B32: 0 | C32: 0 | D32: 0 | E32: 0
A33: Geothermie | B33: 0 | C33: 0 | D33: 0 | E33: 0
A34: Windenergie an Land | B34: 0 | C34: 0 | D34: 0 | E34: 0
A35: Solare Strahlungsenergie | B35: 0 | C35: 0 | D35: 0 | E35: 0
A37: Summe | B37: =SUM(B30:B35) -> 0 | C37: =SUM(C30:C35) -> 0 | D37: 0 | E37: =SUM(E30:E35) -> 0
B38: (2)
A40: Förderung für Flexibilität
B41: Förderung
B42: [EUR]
A43: Flexibilitätszuschlag und Flexibilitätsprämie | B43: 0
B44: (3)
A47: vermiedene Netzentgelte (vNE)
B48: vNE nach § 35 Abs. 2 EEG
B49: [€]
A50: Wasserkraft | B50: 1009.64
A51: Deponie-, Klär-, Grubengas | B51: 0
A52: Biomasse | B52: 0
A53: Geothermie | B53: 0
A54: Windenergie an Land | B54: 0
A55: Solare Strahlungsenergie | B55: 30675
A57: Summe | B57: =SUM(B50:B55) -> 31684.64
B58: (4)
A61: EEG-Umlage aus Eigenversorgung für 2015
B62: Strommengen [kWh] | C62: Erhaltene Zahlungen [€]
A63: EEG-Umlage nach § 61 Abs. 1 Satz 1 Nr. 1 EEG 2014 (30% der vollen Umlage) | B63: 0 | C63: 0
A64: EEG-Umlage nach § 61 Abs. 1 Satz 2 EEG 2014 (volle Umlage) | B64: 0 | C64: 0
A65: EEG-Umlage nach § 61 Abs. 2 Nr. 4 EEG 2014 (keine Umlage) | B65: 0 | C65: 0
A66: Zinsbetrag entsprechend § 60 Abs. 4 EEG i. V. m. § 7 Abs. 4 AusglMechV | B66: - | C66: 0
A68: Summe | B68: =SUM(B63:B65) -> 0 | C68: =SUM(C63:C66) -> 0
C69: (5)
A70: EEG-Umlage aus Eigenversorgung für 2014
B71: Strommengen [kWh] | C71: Erhaltene Zahlungen [€]
A72: EEG-Umlage nach § 61 Abs. 1 Satz 1 Nr. 1 EEG 2014 (30% der vollen Umlage) | B72: 0 | C72: 0
A73: EEG-Umlage nach § 61 Abs. 1 Satz 2 EEG 2014 (volle Umlage) | B73: 0 | C73: 0
A74: EEG-Umlage nach § 61 Abs. 2 Nr. 4 EEG 2014 (keine Umlage) | B74: 0 | C74: 0
A75: Zinsbetrag entsprechend § 60 Abs. 4 EEG i. V. m. § 7 Abs. 4 AusglMechV | B75: - | C75: 0
A77: Summe | B77: =SUM(B72:B74) -> 0 | C77: =SUM(C72:C75) -> 0
C78: (6)
A81: Zusammenstellung
C82: [€]
A83: Einspeisevergütung | B83: (1) =Zelle C20 | C83: =C20 -> 1000230.9
A84: + Marktprämie | B84: (2) = Zelle B37 | C84: =B37 -> 0
A85: + Förderung für Flexibilität | B85: (3) = Zelle B43 | C85: =B43 -> 0
A86: - Vermiedene Netzentgelte | B86: (4) = Zelle B57 | C86: =B57 -> 31684.64
A87: - Eigenversorgung für 2015 | B87: (5) = Zelle C68 | C87: =C68 -> 0
A88: - Eigenversorgung für 2014 | B88: (6) = Zelle C77 | C88: =C77 -> 0
A90: Zwischenergebnis | B90: (Z) = (1) + (2) + (3) - (4) - (5) - (6) | C90: =C83+C84+C85-C86-C87-C88 -> 968546.26
A92: + Nachträgliche Korrekturen nach § 62 EEG 2014 | B92: (7) | C92: 0
A94: Saldo | B94: = (Z)+ (7) | C94: =C92+C90 -> 968546.26
A97: Auf dieser Seite werden die in dieser Datei erfassten Bewegungsdaten entsprechend den Energieträgern zusammengefasst. Die im blauen Rahmen enthaltenen Angaben sind in Ihrer Wirtschaftsprüferbescheinigung (Testat) aufzuführen. Abweichungen der Testatwerte von den hier aufgeführten Summen sind nur soweit zulässig, wie sie auf Rundungsfehler zurückzuführen sind. Beachten Sie bitte, dass die vermiedenen Netzentgelte innerhalb des Testats wie hier aufgeführt mit positiven Vorzeichen anzugeben sind.
A103: Die direktvermarktete Strommenge ist nicht in der Spalte "Jahresarbeit der EEG-Einspeisung" enthalten und darf analog im Testat in der Spalte "Strommenge [kWh]" ebenfalls nicht enthalten sein. Hinweis: Falls Sie vermiedene Netzentgelte oder Direktvermarktung ausweisen müssen, diese Angaben aber hier fehlen: Ergänzen Sie bitte die Bewegungsdaten in den Tabellenblättern "Festvergütung-GSP-sonst.DV" (Gilt für Einspeisung von Anlagen in Festvergütung, Grünstromprivileg und in der sonstigen Direktvermarktung), "Marktprämie" (gilt für Anlagen in der Marktprämie) und "vNE" (gilt für vNE für Anlagen in Festvergütung, Grünstromprivileg und Marktprämie), indem Sie für die betroffenen Anlagen in einer weiteren Zeile die entsprechende vNE- bzw. Direktvermarktungskategorie auswählen. Die vNE sind als positiver Wert einzutragen. Die direktvermarktete Strommenge ist in der Spalte "Strommenge der Kategorie [kWh]" einzutragen.
A113: zusätzliche Informationen, die nicht im Testat aufzuführen sind (zur Kontrolle):
B115: vermiedene Netzentgelte [€]
A116: HöS | B116: 0
A117: Hös/HS | B117: 0
A118: HS | B118: 0
A119: HS/MS | B119: 0
A120: MS | B120: 221.64
A121: MS/NS | B121: 0
A122: NS | B122: 31463
A123: Summe | B123: =SUM(B116:B122) -> 31684.64
B126: Anzahl Anlagen
A127: Wasserkraft | B127: 1
A128: Deponie-, Klär-, Grubengas | B128: 0
A129: Biomasse | B129: 0
A130: Geothermie | B130: 0
A131: Windenergie an Land | B131: 0
A132: Solare Strahlungsenergie | B132: 191
A133: Summe | B133: =SUM(B127:B132) -> 192

Sheet Stammdaten
A3: Netzbetreiber : | B3: =Deckblatt!C11 -> Gammertinger Energie- u. Wasserversorgung GmbH
C5: Standort / Lage der Anlage (nicht des Anlagenbetreibers) | S5: bei Biomasseanlagen | W5: bei Deponiegas, Klärgas und Grubengas | X5: Geographische Koordinaten (nur bei Wind- und Solaranlagen) | AD5: nur bei Windenergieanlagen
A6: Anlagenschlüssel | B6: Zählpunktbezeichnung | C6: Ort / Gemarkung | D6: Bundesland | E6: PLZ | F6: Straße / Flurstück | G6: Installierte Leistung [kW] | H6: Energieträger | I6: Inbetriebnahmedatum [TT.MM.JJJJ] | J6: Außerbetriebnahmedatum [TT.MM.JJJJ] | K6: Netzzugangsdatum [TT.MM.JJJJ] | L6: Netzabgangsdatum [TT.MM.JJJJ] | M6: Modernisierungsdatum [TT.MM.JJJJ] | N6: Einspeisespannungsebene | O6: Anlageninstallation für Selbstverbrauch ausgelegt | P6: Einspeisemanagement | Q6: Anlage mit Lastgangzählung | R6: Zeitreihentyp für Bilanzierung der Stromerzeugung der Anlage | S6: KWK-Bonus | T6: Technologie-Bonus | U6: Datum der ersten Inanspruchnahme der Flexibilitätsprämie | V6: Höchstbemessungsleistung nach § 101 Abs. 1 EEG | W6: Technologiebonus Gas | X6: Grad, nördliche Breite | Y6: Minuten, nördliche Breite | Z6: Sekunden, nördliche Breite | AA6: Grad, östliche Länge | AB6: Minuten, östliche Länge | AC6: Sekunden, östliche länge | AD6: Schalloptimierung | AE6: Gültig ab [TT.MM.JJJJ] | AF6: nur eingeschränkte Prüfung möglich | AG6: Erläuterung für eingeschränkte Prüfung
A7: Pflichtfeld | B7: Pflichtfeld | C7: Pflichtfeld | D7: Pflichtfeld | E7: Pflichtfeld | F7: Pflichtfeld | G7: Pflichtfeld | H7: Pflichtfeld | I7: Pflichtfeld | J7: Pflichtfeld wenn Anlage außer Betrieb | K7: Pflichtfeld bei Netzübergang der Anlage | L7: Pflichtfeld bei Netzübergang der Anlage | M7: Pflichtfeld (Datum der letzten vergütungswirksamen Modernisierung) | N7: Pflichtfeld | O7: Pflichtfeld | P7: Pflichtfeld | Q7: Pflichtfeld | R7: Pflichtfeld | S7: Pflichtfeld | T7: Pflichtfeld | U7: Pflichtfeld bei Inanspruchnahme der Prämie | V7: Pflichtfeld bei Biogasanlagen mit Inbetriebnahme vor 01.08.2014 | W7: Pflichtfeld | X7: Optional | Y7: Optional | Z7: Optional | AA7: Optional | AB7: Optional | AC7: Optional | AD7: Optional | AE7: Pflichtfeld bei unterjährigen Anlagenänderungen bzw. sofern für Korrekturen von Vorjahren andere Stände zu berücksichtigen sind. | AF7: optional - sofern Sondersachverhalte vorliegen | AG7: Plichtfeld sofern Spalte AF befüllt ist
A8: E1006601S725010021200160359400001 | B8: DE0002147250100001002120016003594 | C8: Gammertingen | D8: Baden-Württemberg | E8: 72501 | F8: Achalmstr. 16 | G8: 1.3 | H8: Solar | I8: 2001-07-17 | N8: NS | O8: Nein | P8: Nicht regelbar | Q8: Nein | R8: SOT
A9: E1006601S725010021200030087200001 | B9: DE0002147250100001002120003000872 | C9: Gammertingen | D9: Baden-Württemberg | E9: 72501 | F9: Achalmstr. 3 | G9: 10.56 | H9: Solar/Gebäude | I9: 2009-09-21 | N9: NS | O9: Nein | P9: Nicht regelbar | Q9: Nein | R9: SOT
A10: E1006601S725010021200050000200001 | B10: DE0002147250100001002120005000002 | C10: Gammertingen | D10: Baden-Württemberg | E10: 72501 | F10: Achalmstr. 5 | G10: 7.36 | H10: Solar | I10: 2008-06-23 | N10: NS | O10: Nein | P10: Nicht regelbar | Q10: Nein | R10: SOT
A11: E1006001S725010021200090088700001 | B11: DE0002147250100001002120009000887 | C11: Gammertingen | D11: Baden-Württemberg | E11: 72501 | F11: Achalmstr. 9 | G11: 5.28 | H11: Solar/Gebäude | I11: 2012-03-30 | N11: NS | O11: Ja (keine Belieferung Dritter) | P11: regelbar nach § 6 Abs. 2 EEG 2012 | Q11: Nein | R11: SOT
A12: E1006601S725010041200040282000001 | B12: DE0002147250100001004120004002820 | C12: Gammertingen | D12: Baden-Württemberg | E12: 72501 | F12: Alemannenweg 4 | G12: 28.28 | H12: Solar/Gebäude | I12: 2010-06-01 | N12: NS | O12: Nein | P12: Nicht regelbar | Q12: Nein | R12: SOT
A13: E1006601S725010010100250003300001 | B13: DE0002147250100001001010025000033 | C13: Gammertingen | D13: Baden-Württemberg | E13: 72501 | F13: Alte Steige 25 | G13: 6.65 | H13: Solar | I13: 2006-10-06 | N13: NS | O13: Nein | P13: Nicht regelbar | Q13: Nein | R13: SOT
A14: E1006601S725010010100080000100001 | B14: DE8002147250100001001010008000001 | C14: Gammertingen | D14: Baden-Württemberg | E14: 72501 | F14: Alte Steige 8 | G14: 4.14 | H14: Solar/Gebäude | I14: 2010-09-30 | N14: NS | O14: Nein | P14: Nicht regelbar | Q14: Nein | R14: SOT
A15: E1006001S725010021800030363100001 | B15: DE8002147250100001002180003003631 | C15: Gammertingen | D15: Baden-Württemberg | E15: 72501 | F15: Augstbergweg 3 | G15: 2.52 | H15: Solar/Gebäude | I15: 2011-06-24 | N15: NS | O15: Nein | P15: Nicht regelbar | Q15: Nein | R15: SOT
A16: E1006601S725010021800030363100001 | B16: DE0002147250100001002180003003631 | C16: Gammertingen | D16: Baden-Württemberg | E16: 72501 | F16: Augstbergweg 3 | G16: 2.24 | H16: Solar | I16: 2001-08-28 | N16: NS | O16: Nein | P16: Nicht regelbar | Q16: Nein | R16: SOT
A17: E1006601S725010021800050010400001 | B17: DE0002147250100001002180005001004 | C17: Gammertingen | D17: Baden-Württemberg | E17: 72501 | F17: Augstbergweg 5 | G17: 5.5 | H17: Solar | I17: 2008-04-22 | N17: NS | O17: Nein | P17: Nicht regelbar | Q17: Nein | R17: SOT
A18: E1006601S725010021800080100600001 | B18: DE8002147250100001002180008001006 | C18: Gammertingen | D18: Baden-Württemberg | E18: 72501 | F18: Augstbergweg 8 | G18: 8.19 | H18: Solar/Gebäude | I18: 2011-08-30 | N18: NS | O18: Nein | P18: Nicht regelbar | Q18: Nein | R18: SOT
A19: E1006601S725010010200100409400001 | B19: DE0002147250100001001020010004094 | C19: Gammertingen | D19: Baden-Württemberg | E19: 72501 | F19: August-Reiser-Str. 10 | G19: 3.22 | H19: Solar | I19: 2002-12-13 | N19: NS | O19: Nein | P19: Nicht regelbar | Q19: Nein | R19: SOT
A20: E1006601S725010022600170117100001 | B20: DE0002147250100001002260017001171 | C20: Gammertingen | D20: Baden-Württemberg | E20: 72501 | F20: Äussere Lochern 17 | G20: 4.99 | H20: Solar | I20: 2005-06-02 | N20: NS | O20: Nein | P20: Nicht regelbar | Q20: Nein | R20: SOT
A21: E1006601S725010022600290118700001 | B21: DE8002147250100001002260029001187 | C21: Gammertingen | D21: Baden-Württemberg | E21: 72501 | F21: Äußere Lochern 29 | G21: 5.04 | H21: Solar/Gebäude | I21: 2011-05-27 | N21: NS | O21: Ja (keine Belieferung Dritter) | P21: Nicht regelbar | Q21: Nein | R21: SOT
A22: E1006601S725010022600030114300001 | B22: DE0002147250100001002260003001143 | C22: Gammertingen | D22: Baden-Württemberg | E22: 72501 | F22: Äussere Lochern 3 | G22: 2 | H22: Solar | I22: 2000-08-31 | N22: NS | O22: Nein | P22: Nicht regelbar | Q22: Nein | R22: SOT
A23: E1006601S725010022600060114900001 | B23: DE0002147250100001002260006001149 | C23: Gammertingen | D23: Baden-Württemberg | E23: 72501 | F23: Äussere Lochern 6 | G23: 4.2 | H23: Solar | I23: 2003-12-11 | N23: NS | O23: Nein | P23: Nicht regelbar | Q23: Nein | R23: SOT
A24: E1006601S725010022600080345200001 | B24: DE0002147250100001002260008003452 | C24: Gammertingen | D24: Baden-Württemberg | E24: 72501 | F24: Äussere Lochern 8 | G24: 2 | H24: Solar | I24: 2001-01-22 | N24: NS | O24: Nein | P24: Nicht regelbar | Q24: Nein | R24: SOT
A25: E1006601S725010022600080345200002 | B25: DE0002147250100001002260008003452 | C25: Gammertingen | D25: Baden-Württemberg | E25: 72501 | F25: Äußere Lochern 8 | G25: 2.05 | H25: Solar | I25: 2007-10-02 | N25: NS | O25: Nein | P25: Nicht regelbar | Q25: Nein | R25: SOT
A26: E1006601S725010031700030232100001 | B26: DE0002147250100001003170003002321 | C26: Gammertingen | D26: Baden-Württemberg | E26: 72501 | F26: Beethovenstr. 3 | G26: 4.42 | H26: Solar | I26: 2003-08-27 | N26: NS | O26: Nein | P26: Nicht regelbar | Q26: Nein | R26: SOT
A27: E1006001S725010021000130084900001 | B27: DE8002147250100001002100013000849 | C27: Gammertingen | D27: Baden-Württemberg | E27: 72501 | F27: Birkenweg 13 | G27: 14.28 | H27: Solar/Gebäude | I27: 2011-12-20 | N27: NS | O27: Nein | P27: Nicht regelbar | Q27: Nein | R27: SOT
A28: E1006001S725010031400040202900001 | B28: DE0002147250100001003140004002029 | C28: Gammertingen | D28: Baden-Württemberg | E28: 72501 | F28: Bohlhalde 4 | G28: 10.533 | H28: Solar/Gebäude | I28: 2012-03-30 | N28: NS | O28: Ja (keine Belieferung Dritter) | P28: regelbar nach § 6 Abs. 2 EEG 2012 | Q28: Nein | R28: SOT
A29: E1006001S725010022700190122600001 | B29: DE0002147250100001002270019001226 | C29: Gammertingen | D29: Baden-Württemberg | E29: 72501 | F29: Breslauer Str. 19 | G29: 3.36 | H29: Solar/Gebäude | I29: 2012-07-27 | N29: NS | O29: Ja (keine Belieferung Dritter) | P29: 70%-Begrenzung | Q29: Nein | R29: SOT
A30: E1006601S725010022700310125400001 | B30: DE0002147250100001002270031001254 | C30: Gammertingen | D30: Baden-Württemberg | E30: 72501 | F30: Breslauer Str. 31 | G30: 5.58 | H30: Solar/Gebäude | I30: 2009-07-22 | N30: NS | O30: Nein | P30: Nicht regelbar | Q30: Nein | R30: SOT
A31: E1006001S725010022700070120500001 | B31: DE8002147250100001002270007001205 | C31: Gammertingen | D31: Baden-Württemberg | E31: 72501 | F31: Breslauer Straße 7 | G31: 9.24 | H31: Solar/Gebäude | I31: 2011-09-28 | N31: NS | O31: Nein | P31: Nicht regelbar | Q31: Nein | R31: SOT
A32: E1006601S725010041700010385300001 | B32: DE0002147250100001004170001003853 | C32: Gammertingen | D32: Baden-Württemberg | E32: 72501 | F32: Bubenhofenstr. 1 | G32: 2.04 | H32: Solar | I32: 2002-03-27 | N32: NS | O32: Nein | P32: Nicht regelbar | Q32: Nein | R32: SOT
A33: E1006601S725010041700160300700001 | B33: DE8002147250100001004170016003007 | C33: Gammertingen | D33: Baden-Württemberg | E33: 72501 | F33: Bubenhofenstr. 16 | G33: 3.36 | H33: Solar/Gebäude | I33: 2010-12-22 | N33: NS | O33: Nein | P33: Nicht regelbar | Q33: Nein | R33: SOT
A34: E1006001S725010041700040299200001 | B34: DE0002147250100001004170004002992 | C34: Gammertingen | D34: Baden-Württemberg | E34: 72501 | F34: Bubenhofenstr. 4/1 | G34: 8.19 | H34: Solar/Gebäude | I34: 2011-12-31 | N34: NS | O34: Nein | P34: Nicht regelbar | Q34: Nein | R34: SOT
A35: E1006601S725010041700050299200001 | B35: DE0002147250100001004170005002992 | C35: Gammertingen | D35: Baden-Württemberg | E35: 72501 | F35: Bubenhofenstr. 5 | G35: 9.1 | H35: Solar | I35: 2003-10-14 | N35: NS | O35: Nein | P35: Nicht regelbar | Q35: Nein | R35: SOT
A36: E1006601S725010041700070299700001 | B36: DE0002147250100001004170007002997 | C36: Gammertingen | D36: Baden-Württemberg | E36: 72501 | F36: Bubenhofenstr. 7 | G36: 2 | H36: Solar | I36: 2000-04-01 | N36: NS | O36: Nein | P36: Nicht regelbar | Q36: Nein | R36: SOT
A37: E1006601S725010021100100086100001 | B37: DE0002147250100001002110010000861 | C37: Gammertingen | D37: Baden-Württemberg | E37: 72501 | F37: Buchenweg 10 | G37: 6.63 | H37: Solar | I37: 2006-03-17 | N37: NS | O37: Nein | P37: Nicht regelbar | Q37: Nein | R37: SOT
A38: E1006601S725010021100030085200001 | B38: DE0002147250100001002110003000852 | C38: Gammertingen | D38: Baden-Württemberg | E38: 72501 | F38: Buchenweg 3 | G38: 9 | H38: Solar/Gebäude | I38: 2010-08-25 | N38: NS | O38: Nein | P38: Nicht regelbar | Q38: Nein | R38: SOT
A39: E1006601S725010023100140403100001 | B39: DE0002147250100001002310014004031 | C39: Gammertingen | D39: Baden-Württemberg | E39: 72501 | F39: Burladinger Str. 14 | G39: 29.93 | H39: Solar/Gebäude | I39: 2010-03-16 | N39: NS | O39: Nein | P39: Nicht regelbar | Q39: Nein | R39: SOT
A40: E1006601S725010023100220000100001 | B40: DE0002147250100001002310022000001 | C40: Gammertingen | D40: Baden-Württemberg | E40: 72501 | F40: Burladinger Str. 22 | G40: 125.58 | H40: Solar/Gebäude | I40: 2010-06-30 | N40: NS | O40: Nein | P40: regelbar nach § 6 Abs. 1 EEG 2012 | Q40: Ja | R40: SOL
A41: E1006601S725010023100220000300001 | B41: DE8002147250100001002310022000003 | C41: Gammertingen | D41: Baden-Württemberg | E41: 72501 | F41: Burladinger Str. 22 | G41: 491.92 | H41: Solar/Gebäude | I41: 2010-12-31 | N41: NS | O41: Nein | P41: regelbar nach § 6 Abs. 1 EEG 2012 | Q41: Ja | R41: SOL
A42: E1006001S725010023100050135800001 | B42: DE0002147250100001002310005001358 | C42: Gammertingen | D42: Baden-Württemberg | E42: 72501 | F42: Burladinger Str. 5 | G42: 29.8 | H42: Solar/Gebäude | I42: 2011-12-29 | N42: NS | O42: Nein | P42: Nicht regelbar | Q42: Nein | R42: SOT
A43: E1006601S725010023100060000200001 | B43: DE8002147250100001002310006000002 | C43: Gammertingen | D43: Baden-Württemberg | E43: 72501 | F43: Burladinger Str. 6 | G43: 30.36 | H43: Solar/Gebäude | I43: 2011-06-29 | N43: NS | O43: Nein | P43: regelbar nach § 9 Abs. 2 EEG 2014 | Q43: Nein | R43: SOT
A44: E1006601S725010023100080400000001 | B44: DE0002147250100001002310008004000 | C44: Gammertingen | D44: Baden-Württemberg | E44: 72501 | F44: Burladinger Str. 8 | G44: 31.2 | H44: Solar | I44: 2007-11-12 | N44: NS | O44: Nein | P44: Nicht regelbar | Q44: Nein | R44: SOT
A45: E1006601S725010023100090405700001 | B45: DE0002147250100001002310009004057 | C45: Gammertingen | D45: Baden-Württemberg | E45: 72501 | F45: Burladinger Str. 9 | G45: 12.825 | H45: Solar/Gebäude | I45: 2010-04-22 | N45: NS | O45: Nein | P45: Nicht regelbar | Q45: Nein | R45: SOT
A46: E1006001S725010042200010313800001 | B46: DE0002147250100001004220001003136 | C46: Gammertingen | D46: Baden-Württemberg | E46: 72501 | F46: Constantin-Hanner-Str. 1 | G46: 9.8 | H46: Solar/Gebäude | I46: 2012-10-26 | N46: NS | O46: Ja (keine Belieferung Dritter) | P46: regelbar nach § 6 Abs. 2 EEG 2012 | Q46: Nein | R46: SOT
A47: E1006001S725010042200060314100001 | B47: DE0002147250100001004220006003141 | C47: Gammertingen | D47: Baden-Württemberg | E47: 72501 | F47: Constantin-Hanner-Str. 6 | G47: 4.935 | H47: Solar/Gebäude | I47: 2012-05-29 | N47: NS | O47: Ja (keine Belieferung Dritter) | P47: regelbar nach § 6 Abs. 2 EEG 2012 | Q47: Nein | R47: SOT
A48: E1006601S725010020300100064100001 | B48: DE0002147250100001002030010000641 | C48: Gammertingen | D48: Baden-Württemberg | E48: 72501 | F48: Daimlerstr. 10 | G48: 5.1 | H48: Solar | I48: 2005-11-09 | N48: NS | O48: Nein | P48: Nicht regelbar | Q48: Nein | R48: SOT
A49: E1006601S725010020300100064200001 | B49: DE0002147250100001002030010000642 | C49: Gammertingen | D49: Baden-Württemberg | E49: 72501 | F49: Daimlerstr. 10 | G49: 8.28 | H49: Solar/Gebäude | I49: 2009-12-10 | N49: NS | O49: Nein | P49: Nicht regelbar | Q49: Nein | R49: SOT
A50: E1006601S725010020300150064900001 | B50: DE0002147250100001002030015000649 | C50: Gammertingen | D50: Baden-Württemberg | E50: 72501 | F50: Daimlerstr. 15 | G50: 12.83 | H50: Solar | I50: 2007-06-19 | N50: NS | O50: Nein | P50: Nicht regelbar | Q50: Nein | R50: SOT
A51: E1006601S725010020300150065000001 | B51: DE0002147250100001002030015000650 | C51: Gammertingen | D51: Baden-Württemberg | E51: 72501 | F51: Daimlerstr. 15 | G51: 19.43 | H51: Solar/Gebäude | I51: 2010-06-01 | N51: NS | O51: Nein | P51: Nicht regelbar | Q51: Nein | R51: SOT
A52: E1006601S725010020300150065100001 | B52: DE0002147250100001002030015000651 | C52: Gammertingen | D52: Baden-Württemberg | E52: 72501 | F52: Daimlerstr. 15 | G52: 8.75 | H52: Solar/Gebäude | I52: 2010-06-01 | N52: NS | O52: Nein | P52: Nicht regelbar | Q52: Nein | R52: SOT
A53: E1006001S725010020300030063100001 | B53: DE0002147250100001002030003000631 | C53: Gammertingen | D53: Baden-Württemberg | E53: 72501 | F53: Daimlerstr. 3 | G53: 6 | H53: Solar/Gebäude | I53: 2013-05-16 | N53: NS | O53: Ja (keine Belieferung Dritter) | P53: regelbar nach § 6 Abs. 2 EEG 2012 | Q53: nein | R53: SOT
A54: E1006001S725010022900020366400001 | B54: DE0002147250100001002290002003664 | C54: Gammertingen | D54: Baden-Württemberg | E54: 72501 | F54: Danziger Str. 2 | G54: 17 | H54: Solar/Gebäude | I54: 2011-12-29 | N54: NS | O54: Nein | P54: Nicht regelbar | Q54: Nein | R54: SOT
A55: E1006601S725010022900020366200001 | B55: DE0002147250100001002290002003662 | C55: Gammertingen | D55: Baden-Württemberg | E55: 72501 | F55: Danziger Str. 2 | G55: 14.3 | H55: Solar | I55: 2001-07-30 | N55: NS | O55: Nein | P55: Nicht regelbar | Q55: Nein | R55: SOT
A56: E1006601S725010022900020366300001 | B56: DE0002147250100001002290002003663 | C56: Gammertingen | D56: Baden-Württemberg | E56: 72501 | F56: Danziger Str. 2 | G56: 4 | H56: Solar | I56: 2004-03-29 | N56: NS | O56: Nein | P56: Nicht regelbar | Q56: Nein | R56: SOT
A57: E1006601S725010022900030129700001 | B57: DE0002147250100001002290003001297 | C57: Gammertingen | D57: Baden-Württemberg | E57: 72501 | F57: Danziger Str. 3 | G57: 4.68 | H57: Solar/Gebäude | I57: 2009-07-02 | N57: NS | O57: Nein | P57: Nicht regelbar | Q57: Nein | R57: SOT
A58: E1006601S725010022900030129800001 | B58: DE0002147250100001002290003001298 | C58: Gammertingen | D58: Baden-Württemberg | E58: 72501 | F58: Danziger Str. 3 | G58: 4.68 | H58: Solar/Gebäude | I58: 2009-07-02 | N58: NS | O58: Nein | P58: Nicht regelbar | Q58: Nein | R58: SOT
A59: E1006001S725010022900060130300001 | B59: DE0002147250100001002290006001303 | C59: Gammertingen | D59: Baden-Württemberg | E59: 72501 | F59: Danziger Str. 6 | G59: 29.4 | H59: Solar/Gebäude | I59: 2011-12-30 | N59: NS | O59: Nein | P59: Nicht regelbar | Q59: Nein | R59: SOT
A60: E1006601S725010023500140143000001 | B60: DE0002147250100001002350014001430 | C60: Gammertingen | D60: Baden-Württemberg | E60: 72501 | F60: Dresdener Str. 14 | G60: 12.6 | H60: Solar/Gebäude | I60: 2010-06-30 | N60: NS | O60: Nein | P60: Nicht regelbar | Q60: Nein | R60: SOT
A61: E1006001S725010023500240144600001 | B61: DE0002147250100001002350024001446 | C61: Gammertingen | D61: Baden-Württemberg | E61: 72501 | F61: Dresdener Str. 24 | G61: 11.04 | H61: Solar/Gebäude | I61: 2012-07-07 | N61: NS | O61: Ja (keine Belieferung Dritter) | P61: regelbar nach § 6 Abs. 2 EEG 2012 | Q61: Nein | R61: SOT
A62: E1006601S725010023500260144800001 | B62: DE0002147250100001002350026001448 | C62: Gammertingen | D62: Baden-Württemberg | E62: 72501 | F62: Dresdener Str. 26 | G62: 5.75 | H62: Solar | I62: 2004-08-02 | N62: NS | O62: Nein | P62: Nicht regelbar | Q62: Nein | R62: SOT
A63: E1006601S725010023500280144900001 | B63: DE0002147250100001002350028001449 | C63: Gammertingen | D63: Baden-Württemberg | E63: 72501 | F63: Dresdener Str. 28 | G63: 10.4 | H63: Solar/Gebäude | I63: 2009-05-22 | N63: NS | O63: Nein | P63: Nicht regelbar | Q63: Nein | R63: SOT
A64: E1006001S725010023500420000400001 | B64: DE0002147250100001002350042000004 | C64: Gammertingen | D64: Baden-Württemberg | E64: 72501 | F64: Dresdener Str. 42 | G64: 5.2 | H64: Solar/Gebäude | I64: 2014-05-28 | N64: NS | O64: Ja (keine Belieferung Dritter) | P64: regelbar nach § 6 Abs. 2 EEG 2012 | Q64: Nein | R64: SOT
A65: E1006001S725010023500050000300001 | B65: DE0002147250100001002350050000003 | C65: Gammertingen | D65: Baden-Württemberg | E65: 72501 | F65: Dresdener Str. 50 | G65: 8.13 | H65: Solar/Gebäude | I65: 2013-01-31 | N65: NS | O65: Ja (keine Belieferung Dritter) | P65: regelbar nach § 6 Abs. 2 EEG 2012 | Q65: Nein | R65: SOT
A66: E1006601S725010023500090141700001 | B66: DE0002147250100001002350009001417 | C66: Gammertingen | D66: Baden-Württemberg | E66: 72501 | F66: Dresdener Str. 9 | G66: 8.46 | H66: Solar | I66: 2007-04-12 | N66: NS | O66: Nein | P66: Nicht regelbar | Q66: Nein | R66: SOT
A67: E1006001S725010024100110000300001 | B67: DE0002147250100001002410011000003 | C67: Gammertingen | D67: Baden-Württemberg | E67: 72501 | F67: Egertsbühl 11 | G67: 7.8 | H67: Solar/Gebäude | I67: 2014-06-23 | N67: NS | O67: Ja (keine Belieferung Dritter) | P67: regelbar nach § 6 Abs. 2 EEG 2012 | Q67: Nein | R67: SOT
A68: E1006001S725010031100020000400001 | B68: DE0002147250100001003110002000004 | C68: Gammertingen | D68: Baden-Württemberg | E68: 72501 | F68: Eichendorffstr. 2/1 | G68: 9.88 | H68: Solar/Gebäude | I68: 2015-04-20 | N68: NS | O68: Ja (keine Belieferung Dritter) | P68: 70%-Begrenzung | Q68: Nein | R68: SOT
A69: E1006601S725010031100250191100001 | B69: DE8002147250100001003110025001911 | C69: Gammertingen | D69: Baden-Württemberg | E69: 72501 | F69: Eichendorffstr. 25 | G69: 5.7 | H69: Solar/Gebäude | I69: 2010-12-15 | N69: NS | O69: Nein | P69: Nicht regelbar | Q69: Nein | R69: SOT
A70: E1006601S725010031100040188200001 | B70: DE0002147250100001003110004001882 | C70: Gammertingen | D70: Baden-Württemberg | E70: 72501 | F70: Eichendorffstr. 4 | G70: 6.48 | H70: Solar | I70: 2008-10-22 | N70: NS | O70: Nein | P70: Nicht regelbar | Q70: Nein | R70: SOT
A71: E1006601S725010031100040188300001 | B71: DE0002147250100001003110004001883 | C71: Gammertingen | D71: Baden-Württemberg | E71: 72501 | F71: Eichendorffstr. 4 | G71: 4.68 | H71: Solar/Gebäude | I71: 2009-08-05 | N71: NS | O71: Nein | P71: Nicht regelbar | Q71: Nein | R71: SOT
A72: E1006601S725010023900050149600001 | B72: DE0002147250100001002390005001496 | C72: Gammertingen | D72: Baden-Württemberg | E72: 72501 | F72: Erfurter Str. 5 | G72: 8.6 | H72: Solar | I72: 2008-09-16 | N72: NS | O72: Nein | P72: Nicht regelbar | Q72: Nein | R72: SOT
A73: E1006601S725010020800130076900001 | B73: DE0002147250100001002080013000769 | C73: Gammertingen | D73: Baden-Württemberg | E73: 72501 | F73: Eschenweg 13 | G73: 27.2 | H73: Solar/Gebäude | I73: 2010-06-18 | N73: NS | O73: Nein | P73: Nicht regelbar | Q73: Nein | R73: SOT
A74: E1006001S725010020800170000100001 | B74: DE0002147250100001002080017000001 | C74: Gammertingen | D74: Baden-Württemberg | E74: 72501 | F74: Eschenweg 17 | G74: 5.4 | H74: Solar/Gebäude | I74: 2015-06-26 | N74: NS | O74: Ja (keine Belieferung Dritter) | P74: 70%-Begrenzung | Q74: Nein | R74: SOT
A75: E1006001S725010020800250079200001 | B75: DE8002147250100001002080025000792 | C75: Gammertingen | D75: Baden-Württemberg | E75: 72501 | F75: Eschenweg 25 | G75: 7.98 | H75: Solar/Gebäude | I75: 2011-12-19 | N75: NS | O75: Nein | P75: Nicht regelbar | Q75: Nein | R75: SOT
A76: E1006001S725010020800080076100001 | B76: DE8002147250100001002080008000761 | C76: Gammertingen | D76: Baden-Württemberg | E76: 72501 | F76: Eschenweg 8 | G76: 14.44 | H76: Solar/Gebäude | I76: 2011-12-06 | N76: NS | O76: Nein | P76: Nicht regelbar | Q76: Nein | R76: SOT
A77: E1006601S725010022400110111500001 | B77: DE8002147250100001002240011001115 | C77: Gammertingen | D77: Baden-Württemberg | E77: 72501 | F77: Fehlatalstr. 11 | G77: 17.64 | H77: Solar/Gebäude | I77: 2011-08-30 | N77: NS | O77: Nein | P77: Nicht regelbar | Q77: Nein | R77: SOT
A78: E1006601S725010022400060111700001 | B78: DE0002147250100001002240006001117 | C78: Gammertingen | D78: Baden-Württemberg | E78: 72501 | F78: Fehlatalstr. 41 | G78: 19.98 | H78: Solar/Gebäude | I78: 2009-11-18 | N78: NS | O78: Nein | P78: Nicht regelbar | Q78: Nein | R78: SOT
A79: E1006001S725010022400090111200001 | B79: DE0002147250100001002240009001112 | C79: Gammertingen | D79: Baden-Württemberg | E79: 72501 | F79: Fehlatalstr. 9 | G79: 9.88 | H79: Solar/Gebäude | I79: 2012-12-18 | N79: NS | O79: Ja (mit Belieferung Dritter) | P79: regelbar nach § 6 Abs. 2 EEG 2012 | Q79: Nein | R79: SOT
A80: E1006001S725010020900150082800001 | B80: DE8002147250100001002090015000828 | C80: Gammertingen | D80: Baden-Württemberg | E80: 72501 | F80: Fichtenweg 15 | G80: 22.94 | H80: Solar/Gebäude | I80: 2011-09-12 | N80: NS | O80: Nein | P80: Nicht regelbar | Q80: Nein | R80: SOT
A81: E1006601S725010040300050244300001 | B81: DE0002147250100001004030005002443 | C81: Gammertingen | D81: Baden-Württemberg | E81: 72501 | F81: Fidelisweg 5 | G81: 7.7 | H81: Solar | I81: 2008-08-28 | N81: NS | O81: Nein | P81: Nicht regelbar | Q81: Nein | R81: SOT
A82: E1006601S725010042000110307200001 | B82: DE8002147250100001004200011003072 | C82: Gammertingen | D82: Baden-Württemberg | E82: 72501 | F82: Freiherrn-von-Speth-Str. 11 | G82: 8.58 | H82: Solar/Gebäude | I82: 2011-03-30 | N82: NS | O82: Nein | P82: Nicht regelbar | Q82: Nein | R82: SOT
A83: E1006001S725010042000120000500001 | B83: DE0002147250100001004200012000005 | C83: Gammertingen | D83: Baden-Württemberg | E83: 72501 | F83: Freiherrn-von-Speth-Str. 12 | G83: 9.4 | H83: Solar/Gebäude | I83: 2012-03-27 | N83: NS | O83: Ja (keine Belieferung Dritter) | P83: regelbar nach § 6 Abs. 2 EEG 2012 | Q83: Nein | R83: SOT
A84: E1006601S725010042000050346400001 | B84: DE0002147250100001004200005003064 | C84: Gammertingen | D84: Baden-Württemberg | E84: 72501 | F84: Freiherrn-von-Speth-Str. 5 | G84: 6.38 | H84: Solar/Gebäude | I84: 2009-06-10 | N84: NS | O84: Nein | P84: Nicht regelbar | Q84: Nein | R84: SOT
A85: E1006601S725010030100220153900001 | B85: DE0002147250100001003010022001539 | C85: Gammertingen | D85: Baden-Württemberg | E85: 72501 | F85: Friedhofstr. 22 | G85: 11.52 | H85: Solar | I85: 2006-11-02 | N85: NS | O85: Nein | P85: Nicht regelbar | Q85: Nein | R85: SOT
A86: E1006001S725010041600110000100001 | B86: DE0002147250100001004160011000001 | C86: Gammertingen | D86: Baden-Württemberg | E86: 72501 | F86: Gartenstr. 11 | G86: 5.46 | H86: Solar/Gebäude | I86: 2014-10-30 | N86: NS | O86: Ja (keine Belieferung Dritter) | P86: 70%-Begrenzung | Q86: Nein | R86: SOT
A87: E1006601S725010041600020296200001 | B87: DE8002147250100001004160002002962 | C87: Gammertingen | D87: Baden-Württemberg | E87: 72501 | F87: Gartenstr. 2/2 | G87: 28.2 | H87: Solar/Gebäude | I87: 2011-07-27 | N87: NS | O87: Nein | P87: Nicht regelbar | Q87: Nein | R87: SOT
A88: E1006601S725010041600040298200001 | B88: DE0002147250100001004160004002982 | C88: Gammertingen | D88: Baden-Württemberg | E88: 72501 | F88: Gartenstr. 4 | G88: 29.725 | H88: Solar/Gebäude | I88: 2009-10-29 | N88: NS | O88: Nein | P88: Nicht regelbar | Q88: Nein | R88: SOT
A89: E1006601S725010041600040298300001 | B89: DE0002147250100001004160004002983 | C89: Gammertingen | D89: Baden-Württemberg | E89: 72501 | F89: Gartenstr. 4 | G89: 9.84 | H89: Solar/Gebäude | I89: 2010-06-30 | N89: NS | O89: Nein | P89: Nicht regelbar | Q89: Nein | R89: SOT
A90: E1006601S725010041600060296800001 | B90: DE0002147250100001004160006002968 | C90: Gammertingen | D90: Baden-Württemberg | E90: 72501 | F90: Gartenstr. 6 | G90: 10.66 | H90: Solar/Gebäude | I90: 2009-10-29 | N90: NS | O90: Nein | P90: Nicht regelbar | Q90: Nein | R90: SOT
A91: E1006601S725010030400070167100001 | B91: DE0002147250100001003040007001671 | C91: Gammertingen | D91: Baden-Württemberg | E91: 72501 | F91: Goethestr. 7 | G91: 5.75 | H91: Solar/Gebäude | I91: 2009-06-23 | N91: NS | O91: Nein | P91: Nicht regelbar | Q91: Nein | R91: SOT
A92: E1006601S725010030400080167200001 | B92: DE8002147250100001003040008001672 | C92: Gammertingen | D92: Baden-Württemberg | E92: 72501 | F92: Goethestr. 8 | G92: 8.05 | H92: Solar/Gebäude | I92: 2010-10-27 | N92: NS | O92: Nein | P92: Nicht regelbar | Q92: Nein | R92: SOT
A93: E1006601S725010042500100317400001 | B93: DE0002147250100001004250010003174 | C93: Gammertingen | D93: Baden-Württemberg | E93: 72501 | F93: Gräfin-Adelheid-Str. 10 | G93: 10.915 | H93: Solar/Gebäude | I93: 2010-06-30 | N93: NS | O93: Nein | P93: Nicht regelbar | Q93: Nein | R93: SOT
A94: E1006601S725010042500140317800001 | B94: DE0002147250100001004250014003178 | C94: Gammertingen | D94: Baden-Württemberg | E94: 72501 | F94: Gräfin-Adelheid-Str. 14 | G94: 6.21 | H94: Solar | I94: 2004-09-30 | N94: NS | O94: Nein | P94: Nicht regelbar | Q94: Nein | R94: SOT
A95: E1006601S725010031550090197300001 | B95: DE0002147250100001003115009001973 | C95: Gammertingen | D95: Baden-Württemberg | E95: 72501 | F95: Hauffstr. 9 | G95: 13.5 | H95: Solar/Gebäude | I95: 2010-06-01 | N95: NS | O95: Nein | P95: Nicht regelbar | Q95: Nein | R95: SOT
A96: E1006601S725010042900010368900001 | B96: DE0002147250100001004290001003689 | C96: Gammertingen | D96: Baden-Württemberg | E96: 72501 | F96: Heiligenbühlweg 1 | G96: 4.056 | H96: Solar | I96: 2001-10-22 | N96: NS | O96: Nein | P96: Nicht regelbar | Q96: Nein | R96: SOT
A97: E1006001S725010042900070417700001 | B97: DE0002147250100001004290007004177 | C97: Gammertingen | D97: Baden-Württemberg | E97: 72501 | F97: Heiligenbühlweg 7 | G97: 7.82 | H97: Solar/Gebäude | I97: 2012-03-29 | N97: NS | O97: Nein | P97: regelbar nach § 6 Abs. 2 EEG 2012 | Q97: Nein | R97: SOT
A98: E1006601S725010042900080389800001 | B98: DE0002147250100001004290008003898 | C98: Gammertingen | D98: Baden-Württemberg | E98: 72501 | F98: Heiligenbühlweg 8 | G98: 4.59 | H98: Solar | I98: 2007-07-12 | N98: NS | O98: Nein | P98: Nicht regelbar | Q98: Nein | R98: SOT
A99: E1006601S725010042900080389900001 | B99: DE0002147250100001004290008003899 | C99: Gammertingen | D99: Baden-Württemberg | E99: 72501 | F99: Heiligenbühlweg 8 | G99: 4.48 | H99: Solar/Gebäude | I99: 2010-04-29 | N99: NS | O99: Nein | P99: Nicht regelbar | Q99: Nein | R99: SOT
A100: E1006601S725010023000010000100001 | B100: DE0002147250100001002300001000001 | C100: Gammertingen | D100: Baden-Württemberg | E100: 72501 | F100: Herdleäcker 1 | G100: 29.64 | H100: Solar | I100: 2007-07-17 | N100: NS | O100: Nein | P100: Nicht regelbar | Q100: Nein | R100: SOT
A101: E1006601S725010021300100000100001 | B101: DE0002147250100001002130010000001 | C101: Gammertingen | D101: Baden-Württemberg | E101: 72501 | F101: Hochbergstr. 10 | G101: 9.8 | H101: Solar | I101: 2008-09-24 | N101: NS | O101: Nein | P101: Nicht regelbar | Q101: Nein | R101: SOT
A102: E1006001S725010021300320093100001 | B102: DE0002147250100001002130032000931 | C102: Gammertingen | D102: Baden-Württemberg | E102: 72501 | F102: Hochbergstr. 32 | G102: 32.18 | H102: Solar/Gebäude | I102: 2012-10-24 | N102: NS | O102: Ja (keine Belieferung Dritter) | P102: regelbar nach § 6 Abs. 2 EEG 2012 | Q102: Nein | R102: SOT
A103: E1006601S725010021300340093200001 | B103: DE0002147250100001002130034000932 | C103: Gammertingen | D103: Baden-Württemberg | E103: 72501 | F103: Hochbergstr. 34 | G103: 6.4 | H103: Solar | I103: 2006-04-19 | N103: NS | O103: Nein | P103: Nicht regelbar | Q103: Nein | R103: SOT
A104: E1006601S725010030600180404000001 | B104: DE0002147250100001003060018004040 | C104: Gammertingen | D104: Baden-Württemberg | E104: 72501 | F104: Hölderlinstr. 18 | G104: 3.45 | H104: Solar | I104: 2002-11-13 | N104: NS | O104: Nein | P104: Nicht regelbar | Q104: Nein | R104: SOT
A105: E1006601S725010030600030176600001 | B105: DE0002147250100001003060003001766 | C105: Gammertingen | D105: Baden-Württemberg | E105: 72501 | F105: Hölderlinstr. 3 | G105: 7.02 | H105: Solar/Gebäude | I105: 2009-02-11 | N105: NS | O105: Nein | P105: Nicht regelbar | Q105: Nein | R105: SOT
A106: E1006601S725010030600090000900001 | B106: DE0002147250100001003060009000009 | C106: Gammertingen | D106: Baden-Württemberg | E106: 72501 | F106: Hölderlinstr. 9 | G106: 12.95 | H106: Solar | I106: 2008-07-28 | N106: NS | O106: Nein | P106: Nicht regelbar | Q106: Nein | R106: SOT
A107: E1006001S725010023800070149100001 | B107: DE0002147250100001002380007001491 | C107: Gammertingen | D107: Baden-Württemberg | E107: 72501 | F107: Jenaer Str. 7 | G107: 9.25 | H107: Solar/Gebäude | I107: 2012-03-31 | N107: NS | O107: Ja (keine Belieferung Dritter) | P107: regelbar nach § 6 Abs. 2 EEG 2012 | Q107: Nein | R107: SOT
A108: E1006601S725010010800230000100001 | B108: DE0002147250100001001080023000001 | C108: Gammertingen | D108: Baden-Württemberg | E108: 72501 | F108: Kiverlinstr. 23 | G108: 1 | H108: Solar | I108: 2004-01-01 | N108: NS | O108: Nein | P108: Nicht regelbar | Q108: Nein | R108: SOT
A109: E1006601S725010010800250000100001 | B109: DE0002147250100001001080025000001 | C109: Gammertingen | D109: Baden-Württemberg | E109: 72501 | F109: Kiverlinstr. 25 | G109: 1 | H109: Solar | I109: 2004-01-01 | N109: NS | O109: Nein | P109: Nicht regelbar | Q109: Nein | R109: SOT
A110: E1006601S725010022800170128600001 | B110: DE0002147250100001002280017001286 | C110: Gammertingen | D110: Baden-Württemberg | E110: 72501 | F110: Kohlhalde 17 | G110: 5.72 | H110: Solar/Gebäude | I110: 2009-06-29 | N110: NS | O110: Nein | P110: Nicht regelbar | Q110: Nein | R110: SOT
A111: E1006601S725010022800060127000001 | B111: DE0002147250100001002280006001270 | C111: Gammertingen | D111: Baden-Württemberg | E111: 72501 | F111: Kohlhalde 6 | G111: 5.34 | H111: Solar | I111: 2003-09-19 | N111: NS | O111: Nein | P111: Nicht regelbar | Q111: Nein | R111: SOT
A112: E1006601S725010022800060127100001 | B112: DE0002147250100001002280006001271 | C112: Gammertingen | D112: Baden-Württemberg | E112: 72501 | F112: Kohlhalde 6 | G112: 2.04 | H112: Solar | I112: 2004-04-06 | N112: NS | O112: Nein | P112: Nicht regelbar | Q112: Nein | R112: SOT
A113: E1006601S725010024300020416100001 | B113: DE0002147250100001002430002004161 | C113: Gammertingen | D113: Baden-Württemberg | E113: 72501 | F113: Leipziger Str. 2 | G113: 5.52 | H113: Solar | I113: 2007-10-12 | N113: NS | O113: Nein | P113: Nicht regelbar | Q113: Nein | R113: SOT
A114: E1006601S725010024300090410600001 | B114: DE0002147250100001002430009004106 | C114: Gammertingen | D114: Baden-Württemberg | E114: 72501 | F114: Leipziger Str. 9 | G114: 2 | H114: Solar | I114: 2003-06-20 | N114: NS | O114: Nein | P114: Nicht regelbar | Q114: Nein | R114: SOT
A115: E1006601S725010040200060000100001 | B115: DE0002147250100001004020006000001 | C115: Gammertingen | D115: Baden-Württemberg | E115: 72501 | F115: Marktstr. 6 | G115: 12.15 | H115: Solar/Gebäude | I115: 2010-06-22 | N115: NS | O115: Nein | P115: Nicht regelbar | Q115: Nein | R115: SOT
A116: E1006601S725010042100140358500001 | B116: DE0002147250100001004210014003585 | C116: Gammertingen | D116: Baden-Württemberg | E116: 72501 | F116: Mauren 14 | G116: 8.5 | H116: Solar | I116: 2001-06-21 | N116: NS | O116: Nein | P116: Nicht regelbar | Q116: Nein | R116: SOT
A117: E1006001S725010042100150418200001 | B117: DE0002147250100001004210015004182 | C117: Gammertingen | D117: Baden-Württemberg | E117: 72501 | F117: Mauren 15 | G117: 9.8 | H117: Solar/Gebäude | I117: 2013-03-15 | N117: NS | O117: Ja (keine Belieferung Dritter) | P117: regelbar nach § 6 Abs. 2 EEG 2012 | Q117: Nein | R117: SOT
A118: E1006001S725010042100200312600001 | B118: DE0002147250100001004210020003126 | C118: Gammertingen | D118: Baden-Württemberg | E118: 72501 | F118: Mauren 20 | G118: 8.4 | H118: Solar/Gebäude | I118: 2012-05-22 | N118: NS | O118: Ja (keine Belieferung Dritter) | P118: regelbar nach § 6 Abs. 2 EEG 2012 | Q118: Nein | R118: SOT
A119: E1006601S725010024600020000200001 | B119: DE0002147250100001002460002000002 | C119: Gammertingen | D119: Baden-Württemberg | E119: 72501 | F119: Maybachstr. 2 | G119: 38.5 | H119: Solar | I119: 2007-12-27 | N119: NS | O119: Nein | P119: regelbar nach § 9 Abs. 2 EEG 2014 | Q119: Nein | R119: SOT
A120: E1006601S725010020350100065300001 | B120: DE0002147250100001002035002000653 | C120: Gammertingen | D120: Baden-Württemberg | E120: 72501 | F120: Mittelberg 10 | G120: 58.3 | H120: Solar/Gebäude | I120: 2010-06-30 | N120: NS | O120: Nein | P120: regelbar nach § 9 Abs. 2 EEG 2014 | Q120: Ja | R120: SOL
A121: E1006601S725010020350020000200001 | B121: DE0002147250100001002035002000002 | C121: Gammertingen | D121: Baden-Württemberg | E121: 72501 | F121: Mittelberg 2 | G121: 104.5 | H121: Solar/Gebäude | I121: 2010-06-30 | N121: NS | O121: Nein | P121: regelbar nach § 6 Abs. 1 EEG 2012 | Q121: Ja | R121: SOL
A122: E1006601S725010031600100215500001 | B122: DE0002147250100001003160010002155 | C122: Gammertingen | D122: Baden-Württemberg | E122: 72501 | F122: Mozartstr. 10 | G122: 9.25 | H122: Solar/Gebäude | I122: 2010-05-21 | N122: NS | O122: Nein | P122: Nicht regelbar | Q122: Nein | R122: SOT
A123: E1006001S725010031600110000100001 | B123: DE0002147250100001003160011000001 | C123: Gammertingen | D123: Baden-Württemberg | E123: 72501 | F123: Mozartstr. 11 | G123: 6.44 | H123: Solar/Gebäude | I123: 2014-12-19 | N123: NS | O123: Ja (keine Belieferung Dritter) | P123: 70%-Begrenzung | Q123: Nein | R123: SOT
A124: E1006001S725010031600130000100001 | B124: DE0002147250100001003160013000001 | C124: Gammertingen | D124: Baden-Württemberg | E124: 72501 | F124: Mozartstr. 13 | G124: 9.62 | H124: Solar/Gebäude | I124: 2014-02-25 | N124: NS | O124: Ja (keine Belieferung Dritter) | P124: regelbar nach § 6 Abs. 2 EEG 2012 | Q124: Nein | R124: SOT
A125: E1006601S725010031600060215000001 | B125: DE0002147250100001003160006002150 | C125: Gammertingen | D125: Baden-Württemberg | E125: 72501 | F125: Mozartstr. 6 | G125: 9.625 | H125: Solar/Gebäude | I125: 2010-09-01 | N125: NS | O125: Nein | P125: Nicht regelbar | Q125: Nein | R125: SOT
A126: E1006601S725010040600020250000001 | B126: DE8002147250100001004060002002500 | C126: Gammertingen | D126: Baden-Württemberg | E126: 72501 | F126: Mühlburren 2 | G126: 91.93 | H126: Solar/Gebäude | I126: 2010-12-31 | N126: NS | O126: Nein | P126: regelbar nach § 9 Abs. 2 EEG 2014 | Q126: Ja | R126: SOL
A127: E1006601S725010022000130104700001 | B127: DE0002147250100001002200013001047 | C127: Gammertingen | D127: Baden-Württemberg | E127: 72501 | F127: Neufraer Str. 13 | G127: 5.845 | H127: Solar | I127: 2005-03-23 | N127: NS | O127: Nein | P127: Nicht regelbar | Q127: Nein | R127: SOT
A128: E1006601S725010022000070104000001 | B128: DE8002147250100001002200007001040 | C128: Gammertingen | D128: Baden-Württemberg | E128: 72501 | F128: Neufraer Str. 7 | G128: 6.58 | H128: Solar/Gebäude | I128: 2010-12-31 | N128: NS | O128: Ja (keine Belieferung Dritter) | P128: Nicht regelbar | Q128: Nein | R128: SOT
A129: E1006601S725010031500110211100001 | B129: DE0002147250100001003150011002111 | C129: Gammertingen | D129: Baden-Württemberg | E129: 72501 | F129: Obere Bohlstr. 11 | G129: 6.3 | H129: Solar/Gebäude | I129: 2009-05-19 | N129: NS | O129: Nein | P129: Nicht regelbar | Q129: Nein | R129: SOT
A130: E1006601S725010031500090210600001 | B130: DE0002147250100001003150009002106 | C130: Gammertingen | D130: Baden-Württemberg | E130: 72501 | F130: Obere Bohlstr. 9 | G130: 4.5 | H130: Solar | I130: 2005-12-06 | N130: NS | O130: Nein | P130: Nicht regelbar | Q130: Nein | R130: SOT
A131: E1006601S725010020400050151200001 | B131: DE0002147250100001002400005001512 | C131: Gammertingen | D131: Baden-Württemberg | E131: 72501 | F131: Papstdorfer Weg 5 | G131: 8.8 | H131: Solar/Gebäude | I131: 2009-05-06 | N131: NS | O131: Nein | P131: Nicht regelbar | Q131: Nein | R131: SOT
A132: E1006601S725010024000060151300001 | B132: DE0002147250100001002400006001513 | C132: Gammertingen | D132: Baden-Württemberg | E132: 72501 | F132: Papstdorfer Weg 6 | G132: 10.98 | H132: Solar | I132: 2007-10-12 | N132: NS | O132: Nein | P132: Nicht regelbar | Q132: Nein | R132: SOT
A133: E1006601S725010024000060151400001 | B133: DE8002147250100001002400006001514 | C133: Gammertingen | D133: Baden-Württemberg | E133: 72501 | F133: Papstdorfer Weg 6 | G133: 6.84 | H133: Solar/Gebäude | I133: 2010-09-30 | N133: NS | O133: Nein | P133: Nicht regelbar | Q133: Nein | R133: SOT
A134: E1006001S725010024200110000300001 | B134: DE0002147250100001002420011000003 | C134: Gammertingen | D134: Baden-Württemberg | E134: 72501 | F134: Potsdamer Str. 11 | G134: 6.48 | H134: Solar/Gebäude | I134: 2014-12-23 | N134: NS | O134: Ja (keine Belieferung Dritter) | P134: 70%-Begrenzung | Q134: Nein | R134: SOT
A135: E1006001S725010024200040414700001 | B135: DE0002147250100001002420016004147 | C135: Gammertingen | D135: Baden-Württemberg | E135: 72501 | F135: Potsdamer Str. 4 | G135: 7.595 | H135: Solar/Gebäude | I135: 2013-03-28 | N135: NS | O135: Ja (keine Belieferung Dritter) | P135: regelbar nach § 6 Abs. 2 EEG 2012 | Q135: Nein | R135: SOT
A136: E1006001S725010024200060000200001 | B136: DE8002147250100001002420006000002 | C136: Gammertingen | D136: Baden-Württemberg | E136: 72501 | F136: Potsdamer Str. 6 | G136: 8.575 | H136: Solar/Gebäude | I136: 2011-11-18 | N136: NS | O136: Nein | P136: Nicht regelbar | Q136: Nein | R136: SOT
A137: E1006601S725010024200080000300001 | B137: DE0002147250100001002420008000003 | C137: Gammertingen | D137: Baden-Württemberg | E137: 72501 | F137: Potsdamer Str. 8 | G137: 6.63 | H137: Solar | I137: 2008-12-22 | N137: NS | O137: Nein | P137: Nicht regelbar | Q137: Nein | R137: SOT
A138: E1006601S725010022300070110200001 | B138: DE0002147250100001002230007001102 | C138: Gammertingen | D138: Baden-Württemberg | E138: 72501 | F138: Raichbergweg 7 | G138: 16.577 | H138: Solar/Gebäude | I138: 2010-04-09 | N138: NS | O138: Nein | P138: Nicht regelbar | Q138: Nein | R138: SOT
A139: E1006601S725010040800060251400001 | B139: DE0002147250100001004080006002514 | C139: Gammertingen | D139: Baden-Württemberg | E139: 72501 | F139: Reutlinger Str. 6 | G139: 24.5 | H139: Solar | I139: 2007-09-29 | N139: NS | O139: Nein | P139: Nicht regelbar | Q139: Nein | R139: SOT
A140: E1006001S725010031000010186300001 | B140: DE0002147250100001003100001001863 | C140: Gammertingen | D140: Baden-Württemberg | E140: 72501 | F140: Rilkeweg 1 | G140: 4.875 | H140: Solar/Gebäude | I140: 2011-12-29 | N140: NS | O140: Nein | P140: Nicht regelbar | Q140: Nein | R140: SOT
A141: E1006601S725010020400030000200001 | B141: DE0002147250100001002040003000002 | C141: Gammertingen | D141: Baden-Württemberg | E141: 72501 | F141: Robert-Bosch-Str. 3 | G141: 62.422 | H141: Solar | I141: 2008-06-23 | N141: NS | O141: Nein | P141: regelbar nach § 9 Abs. 2 EEG 2014 | Q141: Nein | R141: SOT
A142: E1006001S725010020400040065800001 | B142: DE0002147250100001002040004000658 | C142: Gammertingen | D142: Baden-Württemberg | E142: 72501 | F142: Robert-Bosch-Str. 4 | G142: 9.87 | H142: Solar/Gebäude | I142: 2012-07-12 | N142: NS | O142: Ja (keine Belieferung Dritter) | P142: regelbar nach § 6 Abs. 2 EEG 2012 | Q142: Nein | R142: SOT
A143: E1006601S725010041550110404700001 | B143: DE0002147250100001004155011004047 | C143: Gammertingen | D143: Baden-Württemberg | E143: 72501 | F143: Robert-Seifert-Str. 11 | G143: 3.52 | H143: Solar | I143: 2002-11-25 | N143: NS | O143: Nein | P143: Nicht regelbar | Q143: Nein | R143: SOT
A144: E1006601S725010041550140292700001 | B144: DE8002147250100001004155014002927 | C144: Gammertingen | D144: Baden-Württemberg | E144: 72501 | F144: Robert-Seifert-Str. 14 | G144: 13.735 | H144: Solar/Gebäude | I144: 2010-09-23 | N144: NS | O144: Nein | P144: Nicht regelbar | Q144: Nein | R144: SOT
A145: E1006601S725010041550150292800001 | B145: DE0002147250100001004155015002928 | C145: Gammertingen | D145: Baden-Württemberg | E145: 72501 | F145: Robert-Seifert-Str. 15 | G145: 7.48 | H145: Solar | I145: 2006-04-20 | N145: NS | O145: Nein | P145: Nicht regelbar | Q145: Nein | R145: SOT
A146: E1006601S725010041550190293300001 | B146: DE0002147250100001004155019002933 | C146: Gammertingen | D146: Baden-Württemberg | E146: 72501 | F146: Robert-Seifert-Str. 19 | G146: 9.24 | H146: Solar/Gebäude | I146: 2010-06-29 | N146: NS | O146: Nein | P146: Nicht regelbar | Q146: Nein | R146: SOT
A147: E1006601S725010041550340418800001 | B147: DE0002147250100001004155034004188 | C147: Gammertingen | D147: Baden-Württemberg | E147: 72501 | F147: Robert-Seifert-Str. 34 | G147: 2 | H147: Solar | I147: 2003-05-20 | N147: NS | O147: Nein | P147: Nicht regelbar | Q147: Nein | R147: SOT
A148: E1006601S725010041550350294900001 | B148: DE0002147250100001004155035002949 | C148: Gammertingen | D148: Baden-Württemberg | E148: 72501 | F148: Robert-Seifert-Str. 35 | G148: 10.58 | H148: Solar/Gebäude | I148: 2009-03-24 | N148: NS | O148: Nein | P148: Nicht regelbar | Q148: Nein | R148: SOT
A149: E1006601S725010041550040291300001 | B149: DE0002147250100001004155004002913 | C149: Gammertingen | D149: Baden-Württemberg | E149: 72501 | F149: Robert-Seifert-Str. 4 | G149: 8.46 | H149: Solar/Gebäude | I149: 2009-06-25 | N149: NS | O149: Nein | P149: Nicht regelbar | Q149: Nein | R149: SOT
A150: E1006601S725010041550450295600001 | B150: DE0002147250100001004155045002956 | C150: Gammertingen | D150: Baden-Württemberg | E150: 72501 | F150: Robert-Seifert-Str. 45 | G150: 9.43 | H150: Solar/Gebäude | I150: 2010-06-01 | N150: NS | O150: Nein | P150: Nicht regelbar | Q150: Nein | R150: SOT
A151: E1006601S725010041550050291400001 | B151: DE8002147250100001004155005002914 | C151: Gammertingen | D151: Baden-Württemberg | E151: 72501 | F151: Robert-Seifert-Str. 5 | G151: 13.475 | H151: Solar/Gebäude | I151: 2011-08-22 | N151: NS | O151: Nein | P151: Nicht regelbar | Q151: Nein | R151: SOT
A152: E1006601S725010041550070291700001 | B152: DE0002147250100001004155007002917 | C152: Gammertingen | D152: Baden-Württemberg | E152: 72501 | F152: Robert-Seifert-Str. 7 | G152: 12.42 | H152: Solar/Gebäude | I152: 2009-03-12 | N152: NS | O152: Nein | P152: Nicht regelbar | Q152: Nein | R152: SOT
A153: E1006601S725010041550080291800001 | B153: DE0002147250100001004155008002918 | C153: Gammertingen | D153: Baden-Württemberg | E153: 72501 | F153: Robert-Seifert-Str. 8 | G153: 10.2 | H153: Solar | I153: 2006-03-30 | N153: NS | O153: Nein | P153: Nicht regelbar | Q153: Nein | R153: SOT
A154: E1006601S725010023700030147700001 | B154: DE0002147250100001002370003001477 | C154: Gammertingen | D154: Baden-Württemberg | E154: 72501 | F154: Rostocker Str. 3 | G154: 10.08 | H154: Solar/Gebäude | I154: 2010-06-25 | N154: NS | O154: Nein | P154: Nicht regelbar | Q154: Nein | R154: SOT
A155: E1006001S725010023700050000100001 | B155: DE8002147250100001002370005000001 | C155: Gammertingen | D155: Baden-Württemberg | E155: 72501 | F155: Rostocker Str. 5 | G155: 11.96 | H155: Solar/Gebäude | I155: 2011-07-05 | N155: NS | O155: Nein | P155: Nicht regelbar | Q155: Nein | R155: SOT
A156: E1006601S725010011100020387200001 | B156: DE0002147250100001001110002003872 | C156: Gammertingen | D156: Baden-Württemberg | E156: 72501 | F156: Roter Dill 2 | G156: 1.92 | H156: Solar | I156: 2002-04-30 | N156: NS | O156: Nein | P156: Nicht regelbar | Q156: Nein | R156: SOT
A157: E1006601S725010011100020387200002 | B157: DE0002147250100001001110002003872 | C157: Gammertingen | D157: Baden-Württemberg | E157: 72501 | F157: Roter Dill 2 | G157: 1.92 | H157: Solar | I157: 2004-05-19 | N157: NS | O157: Nein | P157: Nicht regelbar | Q157: Nein | R157: SOT
A158: E1006001S725010042700120319600001 | B158: DE8002147250100001004270012003196 | C158: Gammertingen | D158: Baden-Württemberg | E158: 72501 | F158: Salierstr. 12 | G158: 10.92 | H158: Solar/Gebäude | I158: 2011-10-19 | N158: NS | O158: Nein | P158: Nicht regelbar | Q158: Nein | R158: SOT
A159: E1006601S725010042700170342900001 | B159: DE0002147250100001004270017003429 | C159: Gammertingen | D159: Baden-Württemberg | E159: 72501 | F159: Salierstr. 17 | G159: 7.35 | H159: Solar/Gebäude | I159: 2009-05-26 | N159: NS | O159: Nein | P159: Nicht regelbar | Q159: Nein | R159: SOT
A160: E1006001S725010042700210000300001 | B160: DE0002147250100001004270021000003 | C160: Gammertingen | D160: Baden-Württemberg | E160: 72501 | F160: Salierstr. 21 | G160: 12.495 | H160: Solar/Gebäude | I160: 2012-03-30 | N160: NS | O160: Ja (keine Belieferung Dritter) | P160: regelbar nach § 6 Abs. 2 EEG 2012 | Q160: Nein | R160: SOT
A161: E1006601S725010022700240358500001 | B161: DE0002147250100001002270024003585 | C161: Gammertingen | D161: Baden-Württemberg | E161: 72501 | F161: Salierstr. 24 | G161: 9.45 | H161: Solar/Gebäude | I161: 2010-04-14 | N161: NS | O161: Nein | P161: Nicht regelbar | Q161: Nein | R161: SOT
A162: E1006601S725010020200110058700001 | B162: DE0002147250100001002020011000587 | C162: Gammertingen | D162: Baden-Württemberg | E162: 72501 | F162: Schelmengartenstr. 11 | G162: 8.575 | H162: Solar | I162: 2006-07-10 | N162: NS | O162: Nein | P162: Nicht regelbar | Q162: Nein | R162: SOT
A163: E1006601S725010020200150059000001 | B163: DE0002147250100001002020015000590 | C163: Gammertingen | D163: Baden-Württemberg | E163: 72501 | F163: Schelmengartenstr. 15 | G163: 6.12 | H163: Solar/Gebäude | I163: 2010-06-29 | N163: NS | O163: Nein | P163: Nicht regelbar | Q163: Nein | R163: SOT
A164: E1006601S725010020200090058500001 | B164: DE0002147250100001002020009000585 | C164: Gammertingen | D164: Baden-Württemberg | E164: 72501 | F164: Schelmengartenstr. 9 | G164: 7.98 | H164: Solar | I164: 2007-12-27 | N164: NS | O164: Nein | P164: Nicht regelbar | Q164: Nein | R164: SOT
A165: E1006601S725010030500010171400001 | B165: DE0002147250100001003050001001714 | C165: Gammertingen | D165: Baden-Württemberg | E165: 72501 | F165: Schillerstr. 1/1 | G165: 6.3 | H165: Solar/Gebäude | I165: 2009-12-30 | N165: NS | O165: Nein | P165: Nicht regelbar | Q165: Nein | R165: SOT
A166: E1006601S725010030500010171500001 | B166: DE0002147250100001003050001001715 | C166: Gammertingen | D166: Baden-Württemberg | E166: 72501 | F166: Schillerstr. 1/1 | G166: 6.3 | H166: Solar/Gebäude | I166: 2009-12-31 | N166: NS | O166: Nein | P166: Nicht regelbar | Q166: Nein | R166: SOT
A167: E1006601S725010030500190175400001 | B167: DE0002147250100001003050019001754 | C167: Gammertingen | D167: Baden-Württemberg | E167: 72501 | F167: Schillerstr. 19 | G167: 4.73 | H167: Solar | I167: 2005-06-13 | N167: NS | O167: Nein | P167: Nicht regelbar | Q167: Nein | R167: SOT
A168: E1006601S725010030500220176000001 | B168: DE0002147250100001003050022001760 | C168: Gammertingen | D168: Baden-Württemberg | E168: 72501 | F168: Schillerstr. 22 | G168: 7.56 | H168: Solar | I168: 2008-12-12 | N168: NS | O168: Nein | P168: Nicht regelbar | Q168: Nein | R168: SOT
A169: E1006601S725010030500050172100001 | B169: DE0002147250100001003050005001721 | C169: Gammertingen | D169: Baden-Württemberg | E169: 72501 | F169: Schillerstr. 5 | G169: 8.65 | H169: Solar | I169: 2007-06-20 | N169: NS | O169: Nein | P169: Nicht regelbar | Q169: Nein | R169: SOT
A170: E1006001S725010030500030171800001 | B170: DE8002147250100001003050003001718 | C170: Gammertingen | D170: Baden-Württemberg | E170: 72501 | F170: Schillerstraße 3 | G170: 7.25 | H170: Solar/Gebäude | I170: 2011-10-11 | N170: NS | O170: Nein | P170: Nicht regelbar | Q170: Nein | R170: SOT
A171: E1006001S725010011300060051900001 | B171: DE8002147250100001001130006000519 | C171: Gammertingen | D171: Baden-Württemberg | E171: 72501 | F171: Schwedengasse 6 | G171: 18.845 | H171: Solar/Gebäude | I171: 2011-12-05 | N171: NS | O171: Nein | P171: Nicht regelbar | Q171: Nein | R171: SOT
A172: E1006601W725010011300060051800001 | B172: DE0002147250100001001130006000518 | C172: Gammertingen | D172: Baden-Württemberg | E172: 72501 | F172: Schwedengasse 6 | G172: 40 | H172: Wasser | I172: 1950-01-15 | M172: 2012-01-10 | N172: NS | O172: Nein | P172: Nicht regelbar | Q172: Nein | R172: WAP
A173: E1006001S725010023600110410000001 | B173: DE0002147250100001002360011004100 | C173: Gammertingen | D173: Baden-Württemberg | E173: 72501 | F173: Schweriner Str. 11 | G173: 3.975 | H173: Solar/Gebäude | I173: 2012-08-16 | N173: NS | O173: Ja (keine Belieferung Dritter) | P173: regelbar nach § 6 Abs. 2 EEG 2012 | Q173: Nein | R173: SOT
A174: E1006601S725010023600110409900001 | B174: DE0002147250100001002360011004099 | C174: Gammertingen | D174: Baden-Württemberg | E174: 72501 | F174: Schweriner Str. 11 | G174: 3.23 | H174: Solar | I174: 2002-12-23 | N174: NS | O174: Nein | P174: Nicht regelbar | Q174: Nein | R174: SOT
A175: E1006601S725010023600210146900001 | B175: DE0002147250100001002360021001469 | C175: Gammertingen | D175: Baden-Württemberg | E175: 72501 | F175: Schweriner Str. 21 | G175: 15.4 | H175: Solar/Gebäude | I175: 2009-12-30 | N175: NS | O175: Nein | P175: Nicht regelbar | Q175: Nein | R175: SOT
A176: E1006001S725010040900350270800001 | B176: DE0002147250100001004090035002708 | C176: Gammertingen | D176: Baden-Württemberg | E176: 72501 | F176: Sigmaringer Str. 35 | G176: 12.48 | H176: Solar/Gebäude | I176: 2012-10-28 | N176: NS | O176: Ja (keine Belieferung Dritter) | P176: regelbar nach § 6 Abs. 2 EEG 2012 | Q176: Nein | R176: SOT
A177: E1006601S725010040900420000700001 | B177: DE0002147250100001004090042000007 | C177: Gammertingen | D177: Baden-Württemberg | E177: 72501 | F177: Sigmaringer Str. 42 | G177: 59.68 | H177: Solar/Gebäude | I177: 2009-12-04 | N177: NS | O177: Nein | P177: regelbar nach § 9 Abs. 2 EEG 2014 | Q177: Nein | R177: SOT
A178: E1006601S725010040900440272500001 | B178: DE0002147250100001004090044002725 | C178: Gammertingen | D178: Baden-Württemberg | E178: 72501 | F178: Sigmaringer Str. 44 | G178: 80.33 | H178: Solar/Gebäude | I178: 2009-12-30 | N178: NS | O178: Nein | P178: regelbar nach § 9 Abs. 2 EEG 2014 | Q178: Nein | R178: SOT
A179: E1006601S725010040900570274700001 | B179: DE0002147250100001004090057002747 | C179: Gammertingen | D179: Baden-Württemberg | E179: 72501 | F179: Sigmaringer Str. 57 | G179: 6.4 | H179: Solar | I179: 2003-11-04 | N179: NS | O179: Nein | P179: Nicht regelbar | Q179: Nein | R179: SOT
A180: E1006601S725010040900570274800001 | B180: DE0002147250100001004090057002748 | C180: Gammertingen | D180: Baden-Württemberg | E180: 72501 | F180: Sigmaringer Str. 57 | G180: 6.3 | H180: Solar | I180: 2005-08-12 | N180: NS | O180: Nein | P180: Nicht regelbar | Q180: Nein | R180: SOT
A181: E1006601S725010040900570274900001 | B181: DE0002147250100001004090057002749 | C181: Gammertingen | D181: Baden-Württemberg | E181: 72501 | F181: Sigmaringer Str. 57 | G181: 16.2 | H181: Solar | I181: 2006-11-13 | N181: NS | O181: Nein | P181: Nicht regelbar | Q181: Nein | R181: SOT
A182: E1006001S725010040900630275800001 | B182: DE0002147250100001004090063002758 | C182: Gammertingen | D182: Baden-Württemberg | E182: 72501 | F182: Sigmaringer Str. 63 | G182: 17.28 | H182: Solar/Gebäude | I182: 2013-05-31 | N182: NS | O182: Ja (keine Belieferung Dritter) | P182: regelbar nach § 6 Abs. 2 EEG 2012 | Q182: Nein | R182: SOT
A183: E1006601S725010040900730277100001 | B183: DE0002147250100001004090073002771 | C183: Gammertingen | D183: Baden-Württemberg | E183: 72501 | F183: Sigmaringer Str. 73 | G183: 1 | H183: Solar | I183: 2006-07-06 | N183: NS | O183: Nein | P183: Nicht regelbar | Q183: Nein | R183: SOT
A184: E1006601S725010040900790278000001 | B184: DE0002147250100001004090079002780 | C184: Gammertingen | D184: Baden-Württemberg | E184: 72501 | F184: Sigmaringer Str. 79 | G184: 30.015 | H184: Solar | I184: 2008-12-04 | N184: NS | O184: Nein | P184: regelbar nach § 9 Abs. 2 EEG 2014 | Q184: Nein | R184: SOT
A185: E1006601S725010040900790278200001 | B185: DE8002147250100001004090079002782 | C185: Gammertingen | D185: Baden-Württemberg | E185: 72501 | F185: Sigmaringer Str. 79 | G185: 29 | H185: Solar/Gebäude | I185: 2011-07-05 | N185: NS | O185: Nein | P185: Nicht regelbar | Q185: Nein | R185: SOT
A186: E1006601S725010040900790278100001 | B186: DE0002147250100001004090079002781 | C186: Gammertingen | D186: Baden-Württemberg | E186: 72501 | F186: Sigmaringer Str. 79a | G186: 10.56 | H186: Solar/Gebäude | I186: 2010-05-21 | N186: NS | O186: Nein | P186: Nicht regelbar | Q186: Nein | R186: SOT
A187: E1006001S725010031800150000100001 | B187: DE0002147250100001003180015000001 | C187: Gammertingen | D187: Baden-Württemberg | E187: 72501 | F187: Silcherstr. 15 | G187: 5.3 | H187: Solar/Gebäude | I187: 2015-10-31 | N187: NS | O187: Ja (keine Belieferung Dritter) | P187: 70%-Begrenzung | Q187: Nein | R187: SOT
A188: E1006001S725010021900080101800001 | B188: DE0002147250100001002190008001018 | C188: Gammertingen | D188: Baden-Württemberg | E188: 72501 | F188: Stauffenweg 8 | G188: 5.1 | H188: Solar/Gebäude | I188: 2014-01-29 | N188: NS | O188: Ja (keine Belieferung Dritter) | P188: regelbar nach § 6 Abs. 2 EEG 2012 | Q188: Nein | R188: SOT
A189: E1006601S725010022200080109300001 | B189: DE8002147250100001002220008001093 | C189: Gammertingen | D189: Baden-Württemberg | E189: 72501 | F189: Steinbeissstr. 8 | G189: 10.34 | H189: Solar/Gebäude | I189: 2010-12-15 | N189: NS | O189: Nein | P189: Nicht regelbar | Q189: Nein | R189: SOT
A190: E1006601S725010022200070000200001 | B190: DE8002147250100001002220007000002 | C190: Gammertingen | D190: Baden-Württemberg | E190: 72501 | F190: Steinbeisstr. 7 | G190: 83.43 | H190: Solar/Gebäude | I190: 2011-06-06 | N190: MS | O190: Nein | P190: regelbar nach § 9 Abs. 2 EEG 2014 | Q190: Ja | R190: SOL
A191: E1006001S725010020600130072200001 | B191: DE0002147250100001002060013000722 | C191: Gammertingen | D191: Baden-Württemberg | E191: 72501 | F191: Tannenweg 13 | G191: 9.555 | H191: Solar/Gebäude | I191: 2012-10-18 | N191: NS | O191: Ja (keine Belieferung Dritter) | P191: regelbar nach § 6 Abs. 2 EEG 2012 | Q191: Nein | R191: SOT
A192: E1006601S725010022100180108000001 | B192: DE0002147250100001002210018001080 | C192: Gammertingen | D192: Baden-Württemberg | E192: 72501 | F192: Teckstr. 18 | G192: 6.84 | H192: Solar | I192: 2008-08-06 | N192: NS | O192: Nein | P192: Nicht regelbar | Q192: Nein | R192: SOT
A193: E1006001S725010022100190108200001 | B193: DE0002147250100001002210019001082 | C193: Gammertingen | D193: Baden-Württemberg | E193: 72501 | F193: Teckstr. 19 | G193: 5.88 | H193: Solar/Gebäude | I193: 2011-12-12 | N193: NS | O193: Ja (keine Belieferung Dritter) | P193: Nicht regelbar | Q193: Nein | R193: SOT
A194: E1006001S725010022100220000200001 | B194: DE0002147250100001002210022000002 | C194: Gammertingen | D194: Baden-Württemberg | E194: 72501 | F194: Teckstr. 22 | G194: 7.14 | H194: Solar/Gebäude | I194: 2012-06-29 | N194: NS | O194: Ja (keine Belieferung Dritter) | P194: regelbar nach § 6 Abs. 2 EEG 2012 | Q194: Nein | R194: SOT
A195: E1006601S725010030800020183300001 | B195: DE0002147250100001003080002001833 | C195: Gammertingen | D195: Baden-Württemberg | E195: 72501 | F195: Uhlandstr. 6 | G195: 7.2 | H195: Solar | I195: 2006-09-26 | N195: NS | O195: Nein | P195: Nicht regelbar | Q195: Nein | R195: SOT
A196: E1006601S725010030800060184200001 | B196: DE0002147250100001003080006001842 | C196: Gammertingen | D196: Baden-Württemberg | E196: 72501 | F196: Uhlandstr. 6 | G196: 6.3 | H196: Solar/Gebäude | I196: 2009-12-21 | N196: NS | O196: Nein | P196: Nicht regelbar | Q196: Nein | R196: SOT
A197: E1006601S725010030300210163900001 | B197: DE8002147250100001003030021001639 | C197: Gammertingen | D197: Baden-Württemberg | E197: 72501 | F197: Untere Bohlstr. 21 | G197: 9.72 | H197: Solar/Gebäude | I197: 2010-09-30 | N197: NS | O197: Nein | P197: Nicht regelbar | Q197: Nein | R197: SOT
A198: E1006601S725010041500070290100001 | B198: DE8002147250100001004150007002901 | C198: Gammertingen | D198: Baden-Württemberg | E198: 72501 | F198: Wendelsteinweg 7 | G198: 12.985 | H198: Solar/Gebäude | I198: 2011-07-05 | N198: NS | O198: Nein | P198: Nicht regelbar | Q198: Nein | R198: SOT
A199: E1006601S725010041400050289000001 | B199: DE0002147250100001004140005002890 | C199: Gammertingen | D199: Baden-Württemberg | E199: 72501 | F199: Zeppelinstr. 5 | G199: 13.88 | H199: Solar/Gebäude | I199: 2009-10-06 | N199: NS | O199: Nein | P199: Nicht regelbar | Q199: Nein | R199: SOT

Sheet Direktvermarktung
A3: Netzbetreiber : | B3: =Deckblatt!C11 -> Gammertinger Energie- u. Wasserversorgung GmbH
B5: Prozentualer Anteil der direkt vermarkteten Anlagen in der Marktprämie | N5: Prozentualer Anteil der Anlagen in der Ausfallvermarktung | Z5: Prozentualer Anteil der direkt vermarkteten Anlagen in der sonstigen Direktvermarktung
A6: Anlagenschlüssel | B6: Monat Januar 2015 | C6: Monat Februar 2015 | D6: Monat März 2015 | E6: Monat April 2015 | F6: Monat Mai 2015 | G6: Monat Juni 2015 | H6: Monat Juli 2015 | I6: Monat August 2015 | J6: Monat September 2015 | K6: Monat Oktober 2015 | L6: Monat November 2015 | M6: Monat Dezember 2015 | N6: Monat Januar 2015 | O6: Monat Februar 2015 | P6: Monat März 2015 | Q6: Monat April 2015 | R6: Monat Mai 2015 | S6: Monat Juni 2015 | T6: Monat Juli 2015 | U6: Monat August 2015 | V6: Monat September 2015 | W6: Monat Oktober 2015 | X6: Monat November 2015 | Y6: Monat Dezember 2015 | Z6: Monat Januar 2015 | AA6: Monat Februar 2015 | AB6: Monat März 2015 | AC6: Monat April 2015 | AD6: Monat Mai 2015 | AE6: Monat Juni 2015 | AF6: Monat Juli 2015 | AG6: Monat August 2015 | AH6: Monat September 2015 | AI6: Monat Oktober 2015 | AJ6: Monat November 2015 | AK6: Monat Dezember 2015

Sheet Einspeisevergütung_Sonst
G1: =Deckblatt!H1 -> 02.05.2016
A3: Netzbetreiber : | B3: =Deckblatt!C11 -> Gammertinger Energie- u. Wasserversorgung GmbH
A5: Anlagenschlüssel | B5: Vergütungskategorie (Festvergütung, Eigenverbrauch oder sonstige Direktvermarktung) | C5: Monat, in dem Strommeng erzeugt bzw. gewälzt wurde | D5: erzeugte Strommenge in der jeweiligen Vergütungskategorie [kWh] | E5: tatsächlich ausbezahlte EEG-Mindestvergütung für Kategorien ohne festen Vergütungssatz [€] | F5: Vergütungssatz der angegebenen Kategorie [ct/kWh) | G5: berechnete EEG-Mindestvergütung [€]
A6: Pflichfeld | B6: Pflichtfeld (Kategorien | C6: Pflichtfeld bei Kategorien, die mit Marktwert zu vergüten sind (...MW) | D6: Pflichfeld | E6: Pflichtfeld bei Kategorien ohne festen Vergütungssatz
A7: E1006601S725010021200160359400001 | B7: SoK81a------01 | D7: 960 | F7: 50.62 | G7: 485.95
A8: E1006601S725010021200030087200001 | B8: SgK330------09 | D8: 11906 | F8: 43.01 | G8: 5120.77
A9: E1006601S725010021200050000200001 | B9: SoK111------08 | D9: 7326 | F9: 46.75 | G9: 3424.91
A10: E1006001S725010021200090088700001 | B10: SgK330------12 | D10: 3815 | F10: 24.43 | G10: 932
A11: E1006001S725010021200090088700001 | B11: SgK33410----12 | D11: 1005 | F11: 24.43 | G11: 245.52
A12: E1006001S725010021200090088700001 | B12: SgK33420----12 | D12: -1005 | F12: 16.38 | G12: -164.62
A13: E1006601S725010041200040282000001 | B13: SgK330------10 | D13: 24450 | F13: 39.14 | G13: 9569.73
A14: E1006601S725010010100250003300001 | B14: SoK111------06 | D14: 6222 | F14: 51.8 | G14: 3223
A15: E1006601S725010010100080000100001 | B15: SgK330---Jul10 | D15: 3711 | F15: 34.05 | G15: 1263.6
A16: E1006001S725010021800030363100001 | B16: SgK330------11 | D16: 2530 | F16: 28.74 | G16: 727.12
A17: E1006601S725010021800030363100001 | B17: SoK81a------01 | D17: 2243 | F17: 50.62 | G17: 1135.41
A18: E1006601S725010021800050010400001 | B18: SoK111------08 | D18: 6123 | F18: 46.75 | G18: 2862.5
A19: E1006601S725010021800080100600001 | B19: SgK330------11 | D19: 8729 | F19: 28.74 | G19: 2508.71
A20: E1006601S725010010200100409400001 | B20: SoK81a------02 | D20: 2828 | F20: 48.1 | G20: 1360.27
A21: E1006601S725010022600170117100001 | B21: SoK111------05 | D21: 4309 | F21: 54.53 | G21: 2349.7
A22: E1006601S725010022600290118700001 | B22: SgK330------11 | D22: 2708 | F22: 28.74 | G22: 778.28
A23: E1006601S725010022600290118700001 | B23: SgK33410----11 | D23: 1648 | F23: 28.74 | G23: 473.64
A24: E1006601S725010022600290118700001 | B24: SgK33420----11 | D24: -1307 | F24: 16.38 | G24: -214.09
A25: E1006601S725010022600290118700001 | B25: SgK33430----11 | D25: -341 | F25: 12 | G25: -40.92
A26: E1006601S725010022600030114300001 | B26: SoK81a------01 | D26: 1848 | F26: 50.62 | G26: 935.46
A27: E1006601S725010022600060114900001 | B27: SoK81a------03 | D27: 2729 | F27: 45.7 | G27: 1247.15
A28: E1006601S725010022600080345200001 | B28: SoK81a------01 | D28: 1739 | F28: 50.62 | G28: 880.28
A29: E1006601S725010022600080345200002 | B29: SoK111------07 | D29: 1810 | F29: 49.21 | G29: 890.7
A30: E1006601S725010031700030232100001 | B30: SoK81a------03 | D30: 3407 | F30: 45.7 | G30: 1557
A31: E1006001S725010021000130084900001 | B31: SgK330------11 | D31: 13173 | F31: 28.74 | G31: 3785.92
A32: E1006001S725010031400040202900001 | B32: SgK330------12 | D32: 9577 | F32: 24.43 | G32: 2339.66
A33: E1006001S725010031400040202900001 | B33: SgK33410----12 | D33: 962 | F33: 24.43 | G33: 235.02
A34: E1006001S725010031400040202900001 | B34: SgK33420----12 | D34: -962 | F34: 16.38 | G34: -157.58
A35: E1006001S725010022700190122600001 | B35: SgK3220--Jul12 | D35: 2757 | F35: 18.92 | G35: 521.62
A36: E1006601S725010022700310125400001 | B36: SgK330------09 | D36: 6128 | F36: 43.01 | G36: 2635.65
A37: E1006001S725010022700070120500001 | B37: SgK330------11 | D37: 10511 | F37: 28.74 | G37: 3020.86
A38: E1006601S725010041700010385300001 | B38: SoK81a------02 | D38: 2015 | F38: 48.1 | G38: 969.22
A39: E1006601S725010041700160300700001 | B39: SgK330---Okt10 | D39: 3736 | F39: 33.03 | G39: 1234
A40: E1006001S725010041700040299200001 | B40: SgK330------11 | D40: 8826 | F40: 28.74 | G40: 2536.59
A41: E1006601S725010041700050299200001 | B41: SoK81a------03 | D41: 9393 | F41: 45.7 | G41: 4292.6
A42: E1006601S725010041700070299700001 | B42: SoK81a------01 | D42: 2115 | F42: 50.62 | G42: 1070.61
A43: E1006601S725010021100100086100001 | B43: SoK111------06 | D43: 6612 | F43: 51.8 | G43: 3425.02
A44: E1006601S725010021100030085200001 | B44: SgK330---Jul10 | D44: 7940 | F44: 34.05 | G44: 2703.57
A45: E1006601S725010023100140403100001 | B45: SgK330------10 | D45: 30031 | F45: 39.14 | G45: 11754.13
A46: E1006601S725010023100220000100001 | B46: SgK330------10 | D46: 19923.6 | F46: 39.14 | G46: 7798.1
A47: E1006601S725010023100220000100001 | B47: SgK331------10 | D47: 46488.2 | F47: 37.23 | G47: 17307.56
A48: E1006601S725010023100220000100001 | B48: SgK332------10 | D48: 16988.2 | F48: 35.23 | G48: 5984.94
A49: E1006601S725010023100220000300001 | B49: SgK332---Okt10 | D49: 512200 | F49: 29.73 | G49: 152277.06
A50: E1006001S725010023100050135800001 | B50: SgK330------11 | D50: 28858 | F50: 28.74 | G50: 8293.79
A51: E1006601S725010023100060000200001 | B51: SgK330------11 | D51: 32563.2 | F51: 28.74 | G51: 9358.66
A52: E1006601S725010023100060000200001 | B52: SgK331------11 | D52: 390.8 | F52: 27.33 | G52: 106.81
A53: E1006601S725010023100080400000001 | B53: SoK111------07 | D53: 31774 | F53: 49.21 | G53: 15635.99
A54: E1006601S725010023100080400000001 | B54: SoK112------07 | D54: 1271 | F54: 46.82 | G54: 595.08
A55: E1006601S725010023100090405700001 | B55: SgK330------10 | D55: 12540 | F55: 39.14 | G55: 4908.16
A56: E1006001S725010042200010313800001 | B56: SgK3220--Okt12 | D56: 11246 | F56: 18.36 | G56: 2064.77
A57: E1006001S725010042200060314100001 | B57: SgK3220--Mai12 | D57: 4070 | F57: 19.31 | G57: 785.92
A58: E1006601S725010020300100064100001 | B58: SoK111------05 | D58: 4837 | F58: 54.53 | G58: 2637.62
A59: E1006601S725010020300100064200001 | B59: SgK330------09 | D59: 7671 | F59: 43.01 | G59: 3299.3
A60: E1006601S725010020300150064900001 | B60: SoK111------07 | D60: 13966 | F60: 49.21 | G60: 6872.67
A61: E1006601S725010020300150065000001 | B61: SgK330------10 | D61: 19977 | F61: 39.14 | G61: 7819
A62: E1006601S725010020300150065100001 | B62: SgK330------10 | D62: 9355 | F62: 39.14 | G62: 3661.55
A63: E1006001S725010020300030063100001 | B63: SgK3220--Mai13 | D63: 4344 | F63: 15.63 | G63: 678.97
A64: E1006001S725010022900020366400001 | B64: SgK330------11 | D64: 11528 | F64: 28.74 | G64: 3313.15
A65: E1006601S725010022900020366200001 | B65: SoK81a------01 | D65: 8920 | F65: 50.62 | G65: 4515.3
A66: E1006601S725010022900020366300001 | B66: SoK111------04 | D66: 1880 | F66: 57.4 | G66: 1079.12
A67: E1006601S725010022900030129700001 | B67: SgK330------09 | D67: 5184 | F67: 43.01 | G67: 2229.64
A68: E1006601S725010022900030129800001 | B68: SgK330------09 | D68: 5080 | F68: 43.01 | G68: 2184.91
A69: E1006001S725010022900060130300001 | B69: SgK330------11 | D69: 28990 | F69: 28.74 | G69: 8331.73
A70: E1006601S725010023500140143000001 | B70: SgK330------10 | D70: 15032 | F70: 39.14 | G70: 5883.52
A71: E1006001S725010023500240144600001 | B71: SgK33a2-----SV | D71: 1624 | F71: 0 | G71: 0
A72: E1006001S725010023500240144600001 | B72: SgK3220--Jul12 | D72: 10053.4 | F72: 18.92 | G72: 1902.1
A73: E1006001S725010023500240144600001 | B73: SgK3221--Jul12 | D73: 1045.6 | F73: 17.95 | G73: 187.69
A74: E1006601S725010023500260144800001 | B74: SoK111------04 | D74: 6381 | F74: 57.4 | G74: 3662.69
A75: E1006601S725010023500280144900001 | B75: SgK330------09 | D75: 12080 | F75: 43.01 | G75: 5195.61
A76: E1006001S725010023500420000400001 | B76: SgK3220--Mai14 | D76: 3928 | F76: 13.14 | G76: 516.14
A77: E1006001S725010023500050000300001 | B77: SgK3220--Jan13 | D77: 6568 | F77: 17.02 | G77: 1117.87
A78: E1006601S725010023500090141700001 | B78: SoK111------07 | D78: 8474 | F78: 49.21 | G78: 4170.06
A79: E1006001S725010024100110000300001 | B79: SgK3220--Jun14 | D79: 6331 | F79: 13.01 | G79: 823.66
A80: E1006001S725010031100020000400001 | B80: SgK5120--Apr15 | D80: 1566 | F80: 12.47 | G80: 195.28
A81: E1006601S725010031100250191100001 | B81: SgK330---Okt10 | D81: 6233 | F81: 33.03 | G81: 2058.76
A82: E1006601S725010031100040188200001 | B82: SoK111------08 | D82: 6815 | F82: 46.75 | G82: 3186.01
A83: E1006601S725010031100040188300001 | B83: SgK330------09 | D83: 4805 | F83: 43.01 | G83: 2066.63
A84: E1006601S725010023900050149600001 | B84: SoK111------08 | D84: 8857 | F84: 46.75 | G84: 4140.65
A85: E1006601S725010020800130076900001 | B85: SgK330------10 | D85: 24593 | F85: 39.14 | G85: 9625.7
A86: E1006001S725010020800170000100001 | B86: SgK5120--Jun15 | D86: 292 | F86: 12.4 | G86: 36.21
A87: E1006001S725010020800250079200001 | B87: SgK330------11 | D87: 6333 | F87: 28.74 | G87: 1820.1
A88: E1006001S725010020800080076100001 | B88: SgK330------11 | D88: 11708 | F88: 28.74 | G88: 3364.88
A89: E1006601S725010022400110111500001 | B89: SgK330------11 | D89: 0 | F89: 28.74 | G89: 0
A90: E1006601S725010022400060111700001 | B90: SgK330------09 | D90: 12925 | F90: 43.01 | G90: 5559.04
A91: E1006001S725010022400090111200001 | B91: SgK3220--Dez12 | D91: 7144 | F91: 17.45 | G91: 1246.63
A92: E1006001S725010020900150082800001 | B92: SgK330------11 | D92: 20303 | F92: 28.74 | G92: 5835.08
A93: E1006601S725010040300050244300001 | B93: SoK111------08 | D93: 7290 | F93: 46.75 | G93: 3408.08
A94: E1006601S725010042000110307200001 | B94: SgK330------11 | D94: 7041 | F94: 28.74 | G94: 2023.58
A95: E1006001S725010042000120000500001 | B95: SgK330------12 | D95: 6106 | F95: 24.43 | G95: 1491.7
A96: E1006001S725010042000120000500001 | B96: SgK33410----12 | D96: 3219 | F96: 24.43 | G96: 786.4
A97: E1006001S725010042000120000500001 | B97: SgK33420----12 | D97: -2798 | F97: 16.38 | G97: -458.31
A98: E1006001S725010042000120000500001 | B98: SgK33430----12 | D98: -421 | F98: 12 | G98: -50.52
A99: E1006601S725010042000050346400001 | B99: SgK330------09 | D99: 7012 | F99: 43.01 | G99: 3015.86
A100: E1006601S725010030100220153900001 | B100: SoK111------06 | D100: 9964 | F100: 51.8 | G100: 5161.35
A101: E1006001S725010041600110000100001 | B101: SgK5120--Okt14 | D101: 2954 | F101: 12.65 | G101: 373.68
A102: E1006601S725010041600020296200001 | B102: SgK330------11 | D102: 24095 | F102: 28.74 | G102: 6924.9
A103: E1006601S725010041600040298200001 | B103: SgK330------09 | D103: 32346 | F103: 43.01 | G103: 13912.01
A104: E1006601S725010041600040298300001 | B104: SgK330------10 | D104: 10816 | F104: 39.14 | G104: 4233.38
A105: E1006601S725010041600060296800001 | B105: SgK330------09 | D105: 11272 | F105: 43.01 | G105: 4848.09
A106: E1006601S725010030400070167100001 | B106: SgK330------09 | D106: 5692 | F106: 43.01 | G106: 2448.13
A107: E1006601S725010030400080167200001 | B107: SgK330---Okt10 | D107: 7982 | F107: 33.03 | G107: 2636.45
A108: E1006601S725010042500100317400001 | B108: SgK330------10 | D108: 11846 | F108: 39.14 | G108: 4636.52
A109: E1006601S725010042500140317800001 | B109: SoK111------04 | D109: 6355 | F109: 57.4 | G109: 3647.77
A110: E1006601S725010031550090197300001 | B110: SgK330------10 | D110: 14061 | F110: 39.14 | G110: 5503.48
A111: E1006601S725010042900010368900001 | B111: SoK81a------01 | D111: 4149 | F111: 50.62 | G111: 2100.22
A112: E1006001S725010042900070417700001 | B112: SgK330------12 | D112: 9071 | F112: 24.43 | G112: 2216.05
A113: E1006601S725010042900080389800001 | B113: SoK111------07 | D113: 4019 | F113: 49.21 | G113: 1977.75
A114: E1006601S725010042900080389900001 | B114: SgK330------10 | D114: 3732 | F114: 39.14 | G114: 1460.7
A115: E1006601S725010023000010000100001 | B115: SoK111------07 | D115: 28868 | F115: 49.21 | G115: 14205.94
A116: E1006601S725010021300100000100001 | B116: SoK111------08 | D116: 9677 | F116: 46.75 | G116: 4524
A117: E1006001S725010021300320093100001 | B117: SgK3220--Okt12 | D117: 6323.5 | F117: 18.36 | G117: 1160.99
A118: E1006001S725010021300320093100001 | B118: SgK3221--Okt12 | D118: 14025.5 | F118: 17.42 | G118: 2443.24
A119: E1006001S725010021300320093100001 | B119: SgK33a2-----SV | D119: 3776 | F119: 0 | G119: 0
A120: E1006601S725010021300340093200001 | B120: SoK111------06 | D120: 5940 | F120: 51.8 | G120: 3076.92
A121: E1006601S725010030600180404000001 | B121: SoK81a------02 | D121: 2702 | F121: 48.1 | G121: 1299.66
A122: E1006601S725010030600030176600001 | B122: SgK330------09 | D122: 7616 | F122: 43.01 | G122: 3275.64
A123: E1006601S725010030600090000900001 | B123: SoK111------08 | D123: 14166 | F123: 46.75 | G123: 6622.61
A124: E1006001S725010023800070149100001 | B124: SgK330------12 | D124: 8847 | F124: 24.43 | G124: 2161.32
A125: E1006001S725010023800070149100001 | B125: SgK33410----12 | D125: 1117 | F125: 24.43 | G125: 272.88
A126: E1006001S725010023800070149100001 | B126: SgK33420----12 | D126: -1117 | F126: 16.38 | G126: -182.96
A127: E1006601S725010010800230000100001 | B127: SoK111------04 | D127: 908 | F127: 57.4 | G127: 521.19
A128: E1006601S725010010800250000100001 | B128: SoK111------04 | D128: 716 | F128: 57.4 | G128: 410.98
A129: E1006601S725010022800170128600001 | B129: SgK330------09 | D129: 6011 | F129: 43.01 | G129: 2585.33
A130: E1006601S725010022800060127000001 | B130: SoK81a------03 | D130: 6088 | F130: 45.7 | G130: 2782.22
A131: E1006601S725010022800060127100001 | B131: SoK111------04 | D131: 2060 | F131: 57.4 | G131: 1182.44
A132: E1006601S725010024300020416100001 | B132: SoK111------07 | D132: 5835 | F132: 49.21 | G132: 2871.4
A133: E1006601S725010024300090410600001 | B133: SoK81a------03 | D133: 1606 | F133: 45.7 | G133: 733.94
A134: E1006601S725010040200060000100001 | B134: SgK330------10 | D134: 9241 | F134: 39.14 | G134: 3616.93
A135: E1006601S725010042100140358500001 | B135: SoK81a------01 | D135: 7337 | F135: 50.62 | G135: 3713.99
A136: E1006001S725010042100150418200001 | B136: SgK3220--Mrz13 | D136: 5141 | F136: 16.28 | G136: 836.95
A137: E1006001S725010042100200312600001 | B137: SgK3220--Mai12 | D137: 5397 | F137: 19.31 | G137: 1042.16
A138: E1006601S725010024600020000200001 | B138: SoK111------07 | D138: 24508.1 | F138: 49.21 | G138: 12060.44
A139: E1006601S725010024600020000200001 | B139: SoK112------07 | D139: 6943.9 | F139: 46.82 | G139: 3251.13
A140: E1006601S725010020350100065300001 | B140: SgK330------10 | D140: 27195.5 | F140: 39.14 | G140: 10644.32
A141: E1006601S725010020350100065300001 | B141: SgK331------10 | D141: 25654.5 | F141: 37.23 | G141: 9551.17
A142: E1006601S725010020350020000200001 | B142: SgK330------10 | D142: 32870.8 | F142: 39.14 | G142: 12865.63
A143: E1006601S725010020350020000200001 | B143: SgK331------10 | D143: 76698.6 | F143: 37.23 | G143: 28554.89
A144: E1006601S725010020350020000200001 | B144: SgK332------10 | D144: 4930.6 | F144: 35.23 | G144: 1737.05
A145: E1006601S725010031600100215500001 | B145: SgK330------10 | D145: 9109 | F145: 39.14 | G145: 3565.26
A146: E1006001S725010031600110000100001 | B146: SgK5120--Dez14 | D146: 133 | F146: 12.59 | G146: 16.74
A147: E1006001S725010031600130000100001 | B147: SgK3220--Feb14 | D147: 5995 | F147: 13.55 | G147: 812.32
A148: E1006601S725010031600060215000001 | B148: SgK330---Jul10 | D148: 9521 | F148: 34.05 | G148: 3241.9
A149: E1006601S725010040600020250000001 | B149: SgK330---Okt10 | D149: 27852.7 | F149: 33.03 | G149: 9199.75
A150: E1006601S725010040600020250000001 | B150: SgK331---Okt10 | D150: 57497.3 | F150: 31.42 | G150: 18065.65
A151: E1006601S725010022000130104700001 | B151: SoK111------05 | D151: 6283 | F151: 54.53 | G151: 3426.12
A152: E1006601S725010022000070104000001 | B152: SgK330---Okt10 | D152: 4135 | F152: 33.03 | G152: 1365.79
A153: E1006601S725010022000070104000001 | B153: SgK33410-Okt10 | D153: 1501 | F153: 33.03 | G153: 495.78
A154: E1006601S725010022000070104000001 | B154: SgK33420-Okt10 | D154: -1501 | F154: 16.38 | G154: -245.86
A155: E1006601S725010031500110211100001 | B155: SgK330------09 | D155: 6292 | F155: 43.01 | G155: 2706.19
A156: E1006601S725010031500090210600001 | B156: SoK111------05 | D156: 3757 | F156: 54.53 | G156: 2048.69
A157: E1006601S725010020400050151200001 | B157: SgK330------09 | D157: 8991 | F157: 43.01 | G157: 3867.03
A158: E1006601S725010024000060151300001 | B158: SoK111------07 | D158: 10819 | F158: 49.21 | G158: 5324.03
A159: E1006601S725010024000060151400001 | B159: SgK330---Jul10 | D159: 6744 | F159: 34.05 | G159: 2296.33
A160: E1006001S725010024200110000300001 | B160: SgK5120--Dez14 | D160: 3768 | F160: 12.59 | G160: 474.39
A161: E1006001S725010024200040414700001 | B161: SgK3220--Mrz13 | D161: 7223 | F161: 16.28 | G161: 1175.9
A162: E1006001S725010024200060000200001 | B162: SgK330------11 | D162: 9416 | F162: 28.74 | G162: 2706.16
A163: E1006601S725010024200080000300001 | B163: SoK111------08 | D163: 7325 | F163: 46.75 | G163: 3424.44
A164: E1006601S725010022300070110200001 | B164: SgK330------10 | D164: 12542 | F164: 39.14 | G164: 4908.94
A165: E1006601S725010040800060251400001 | B165: SoK111------07 | D165: 24078 | F165: 49.21 | G165: 11848.78
A166: E1006001S725010031000010186300001 | B166: SgK330------11 | D166: 4658 | F166: 28.74 | G166: 1338.71
A167: E1006601S725010020400030000200001 | B167: SoK111------08 | D167: 23693.6 | F167: 46.75 | G167: 11076.76
A168: E1006601S725010020400030000200001 | B168: SoK112------08 | D168: 25606.4 | F168: 44.48 | G168: 11389.73
A169: E1006001S725010020400040065800001 | B169: SgK3220--Jul12 | D169: 9276 | F169: 18.92 | G169: 1755.02
A170: E1006601S725010041550110404700001 | B170: SoK81a------02 | D170: 3015 | F170: 48.1 | G170: 1450.22
A171: E1006601S725010041550140292700001 | B171: SgK330---Jul10 | D171: 15938 | F171: 34.05 | G171: 5426.89
A172: E1006601S725010041550150292800001 | B172: SoK111------06 | D172: 5490 | F172: 51.8 | G172: 2843.82
A173: E1006601S725010041550190293300001 | B173: SgK330------10 | D173: 9975 | F173: 39.14 | G173: 3904.22
A174: E1006601S725010041550340418800001 | B174: SoK81a------03 | D174: 1854 | F174: 45.7 | G174: 847.28
A175: E1006601S725010041550350294900001 | B175: SgK330------09 | D175: 11030 | F175: 43.01 | G175: 4744
A176: E1006601S725010041550040291300001 | B176: SgK330------09 | D176: 9431 | F176: 43.01 | G176: 4056.27
A177: E1006601S725010041550450295600001 | B177: SgK330------10 | D177: 9996 | F177: 39.14 | G177: 3912.43
A178: E1006601S725010041550050291400001 | B178: SgK330------11 | D178: 14378 | F178: 28.74 | G178: 4132.24
A179: E1006601S725010041550070291700001 | B179: SgK330------09 | D179: 14039 | F179: 43.01 | G179: 6038.17
A180: E1006601S725010041550080291800001 | B180: SoK111------06 | D180: 11900 | F180: 51.8 | G180: 6164.2
A181: E1006601S725010023700030147700001 | B181: SgK330------10 | D181: 11556 | F181: 39.14 | G181: 4523.02
A182: E1006001S725010023700050000100001 | B182: SgK330------11 | D182: 12622 | F182: 28.74 | G182: 3627.56
A183: E1006601S725010011100020387200001 | B183: SoK81a------02 | D183: 2010 | F183: 48.1 | G183: 966.81
A184: E1006601S725010011100020387200002 | B184: SoK111------04 | D184: 2010 | F184: 57.4 | G184: 1153.74
A185: E1006001S725010042700120319600001 | B185: SgK330------11 | D185: 11654 | F185: 28.74 | G185: 3349.36
A186: E1006601S725010042700170342900001 | B186: SgK330------09 | D186: 8507 | F186: 43.01 | G186: 3658.86
A187: E1006001S725010042700210000300001 | B187: SgK330------12 | D187: 12412 | F187: 24.43 | G187: 3032.25
A188: E1006001S725010042700210000300001 | B188: SgK33410----12 | D188: 2046 | F188: 24.43 | G188: 499.84
A189: E1006001S725010042700210000300001 | B189: SgK33420----12 | D189: -2046 | F189: 16.38 | G189: -335.13
A190: E1006601S725010022700240358500001 | B190: SgK330------10 | D190: 10630 | F190: 39.14 | G190: 4160.58
A191: E1006601S725010020200110058700001 | B191: SoK111------06 | D191: 9330 | F191: 51.8 | G191: 4832.94
A192: E1006601S725010020200150059000001 | B192: SgK330------10 | D192: 6544 | F192: 39.14 | G192: 2561.32
A193: E1006601S725010020200090058500001 | B193: SoK111------07 | D193: 8142 | F193: 49.21 | G193: 4006.68
A194: E1006601S725010030500010171400001 | B194: SgK330------09 | D194: 6248 | F194: 43.01 | G194: 2687.26
A195: E1006601S725010030500010171500001 | B195: SgK330------09 | D195: 6274 | F195: 43.01 | G195: 2698.45
A196: E1006601S725010030500190175400001 | B196: SoK111------05 | D196: 4391 | F196: 54.53 | G196: 2394.41
A197: E1006601S725010030500220176000001 | B197: SoK111------08 | D197: 7400 | F197: 46.75 | G197: 3459.5
A198: E1006601S725010030500050172100001 | B198: SoK111------07 | D198: 9747 | F198: 49.21 | G198: 4796.5
A199: E1006001S725010030500030171800001 | B199: SgK330------11 | D199: 6713 | F199: 28.74 | G199: 1929.32
A200: E1006001S725010011300060051900001 | B200: SgK330------11 | D200: 16666 | F200: 28.74 | G200: 4789.81
A201: E1006601W725010011300060051800001 | B201: WaK231BS----12 | D201: 113443 | F201: 11.67 | G201: 13238.8
A202: E1006001S725010023600110410000001 | B202: SgK3220--Aug12 | D202: 834 | F202: 18.73 | G202: 156.21
... 38 more rows

Sheet Ausfallvermarktung
G1: =Deckblatt!H1 -> 02.05.2016
A3: Netzbetreiber : | B3: =Deckblatt!C11 -> Gammertinger Energie- u. Wasserversorgung GmbH
A5: Anlagenschlüssel | B5: Vergütungskategorie (Festvergütung in Ausnahmefällen) | C5: Monat, in dem Strommeng erzeugt bzw. gewälzt wurde | D5: erzeugte Strommenge in der jeweiligen Vergütungskategorie [kWh] | E5: tatsächlich ausbezahlte EEG-Mindestvergütung für Kategorien ohne festen Vergütungssatz [€] | F5: Vergütungssatz der angegebenen Kategorie [ct/kWh) | G5: berechnete EEG-Mindestvergütung [€]
A6: Pflichfeld | B6: Pflichtfeld (Kategorien | C6: Pflichtfeld bei Kategorien, die mit Marktwert zu vergüten sind (...MW) | D6: Pflichfeld | E6: Pflichtfeld bei Kategorien ohne festen Vergütungssatz

Sheet Preisblätter-vNE
D1: =Deckblatt!H1 -> 02.05.2016
A3: Netzbetreiber : | B3: =Deckblatt!C11 -> Gammertinger Energie- u. Wasserversorgung GmbH
B5: Name des Netzgebiets bzw. gültiger Zeitraum des Preisblatts*
A6: Preisblatt 1 | B6: Gammertinger Energie- und Wasserversorgung GmbH | E6: *Sofern Sie im Jahr 2015 mehrere gültige Preisblätter hatten (aufgrund von unterjährigen Anpassungen, bzw. mehreren Netzgebieten), sind die vermiedenen Netzentgelte für die unterschiedlichen Zeiträume bzw. Netzgebiete separat auszuweisen. Bei einer unterjährigen Anpassung Ihres Preisblattes sind die betroffenen Anlagen im Tabellenblatt "vNE" pro Zeitraum einmal aufzuführen und Vermeidungsarbeit und Vermeidungsleistung sinnvoll (entsprechend der von Ihnen vorgegebenen Berechnung der vNE) zu verteilen.
A7: Preisblatt 2
A8: Preisblatt 3
A10: Preisblatt 1 | B10: Arbeitspreis** [ct/kWh] | C10: Leistungspreis** [€/kW*a] | D10: Anmerkungen | E10: **Preise gemäß Preisblatt für das Jahr 2015. Die für Ihr Netz vorgelagerten Netzebenen ist der Preis aus dem Preisblatt des vorgelagerten Netzbetreibers einzutragen. Die Preisblätter (auch das des vorgelagerten Netzbetreibers) sind uns zusammen mit der Jahresmeldung bis spätestens zum 31.05.2016 per E-Mail zuzusenden. Für den Fall, dass für die Berechnung der vNE nicht die direkt überlagerte Spannungsebene verwendet wurde, ist der verwendete Wert in die entsprechende Zeile der direkt überlagerten Ebene einzutragen - auch wenn der Preis im Preisblatt für eine höhere Ebene gilt. Dies ist entsprechend im Feld "Anmerkungen" kenntlich zu machen. Sofern es zu einer Rückspeisung in eine oder mehrere überlagerte Spannungsebenen gekommen ist und sich dadurch Auswirkungen auf die Berechnung der vermiedenen Netzentgelte einer Spannungsebene ergeben, ist dies ebenfalls im Feld "Anmerkungen" mitzuteilen.
A11: Spannungsebene: HöS
A12: Spannungsebene: Hös/HS
A13: Spannungsebene: HS
A14: Spannungsebene: HS/MS | B14: 0.26 | C14: 57.78 | D14: HS/MS Netze BW (--> doppelte Mittelspannung §14 bei vNNE nicht mehr anwendbar)
A15: Spannungsebene: MS | B15: 0.75 | C15: 61.52 | D15: MS GEW
A16: Spannungsebene: MS/NS | B16: 0.89 | C16: 81.47 | D16: MS/NS GEW
A17: Spannungsebene: NS
A20: Preisblatt 2 | E20: **Preise gemäß Preisblatt für das Jahr 2015. Die für Ihr Netz vorgelagerten Netzebenen ist der Preis aus dem Preisblatt des vorgelagerten Netzbetreibers einzutragen. Die Preisblätter (auch das des vorgelagerten Netzbetreibers) sind uns zusammen mit der Jahresmeldung bis spätestens zum 31.05.2015 per E-Mail zuzusenden. Für den Fall, dass für die Berechnung der vNE nicht die direkt überlagerte Spannungsebene verwendet wurde, ist der verwendete Wert in die entsprechende Zeile der direkt überlagerten Ebene einzutragen - auch wenn der Preis im Preisblatt für eine höhere Ebene gilt. Dies ist entsprechend im Feld "Anmerkungen" kenntlich zu machen. Sofern es zu einer Rückspeisung in eine oder mehrere überlagerte Spannungsebenen gekommen ist und sich dadurch Auswirkungen auf die Berechnung der vermiedenen Netzentgelte einer Spannungsebene ergeben, ist dies ebenfalls im Feld "Anmerkungen" mitzuteilen.
A21: Spannungsebene: HöS
A22: Spannungsebene: Hös/HS
A23: Spannungsebene: HS
A24: Spannungsebene: HS/MS
A25: Spannungsebene: MS
A26: Spannungsebene: MS/NS
A27: Spannungsebene: NS
A30: Preisblatt 3 | E30: **Preise gemäß Preisblatt für das Jahr 2015. Die für Ihr Netz vorgelagerten Netzebenen ist der Preis aus dem Preisblatt des vorgelagerten Netzbetreibers einzutragen. Die Preisblätter (auch das des vorgelagerten Netzbetreibers) sind uns zusammen mit der Jahresmeldung bis spätestens zum 31.05.2015 per E-Mail zuzusenden. Für den Fall, dass für die Berechnung der vNE nicht die direkt überlagerte Spannungsebene verwendet wurde, ist der verwendete Wert in die entsprechende Zeile der direkt überlagerten Ebene einzutragen - auch wenn der Preis im Preisblatt für eine höhere Ebene gilt. Dies ist entsprechend im Feld "Anmerkungen" kenntlich zu machen. Sofern es zu einer Rückspeisung in eine oder mehrere überlagerte Spannungsebenen gekommen ist und sich dadurch Auswirkungen auf die Berechnung der vermiedenen Netzentgelte einer Spannungsebene ergeben, ist dies ebenfalls im Feld "Anmerkungen" mitzuteilen.
A31: Spannungsebene: HöS
A32: Spannungsebene: Hös/HS
A33: Spannungsebene: HS
A34: Spannungsebene: HS/MS
A35: Spannungsebene: MS
A36: Spannungsebene: MS/NS
A37: Spannungsebene: NS

Sheet vNE
H1: =Deckblatt!H1 -> 02.05.2016
A3: Netzbetreiber : | B3: =Deckblatt!C11 -> Gammertinger Energie- u. Wasserversorgung GmbH
A5: Anlagenschlüssel | B5: vNE-Kategorie | C5: Für Angabe gültiges Preisblatt entsprechend Tabellenblatt "Preisblätter vNE" | D5: Leistungsanteil an den vNE* [€] | E5: Arbeitsanteil an den vNE [€] | F5: nur eingeschränkte Prüfung möglich optional - sofern Sondersachverhalte vorliegen | G5: Erläuterung für eingeschränkte Prüfung Plichtfeld sofern Spalte F befüllt ist | H5: berechnete vNE gesamt [€] | I5: *Pflichtfeld bei allen lastganggemessenen Anlagen.
A6: E1006601S725010021200160359400001 | B6: So-vNNe--SpE07 | C6: Preisblatt 1 | E6: 8.544 | H6: 8.54
A7: E1006601S725010021200030087200001 | B7: Sg-vNNe--SpE07 | C7: Preisblatt 1 | E7: 105.9634 | H7: 105.96
A8: E1006601S725010021200050000200001 | B8: So-vNNe--SpE07 | C8: Preisblatt 1 | E8: 65.2014 | H8: 65.2
A9: E1006001S725010021200090088700001 | B9: Sg-vNNe--SpE07 | C9: Preisblatt 1 | E9: 33.9535 | H9: 33.95
A10: E1006601S725010041200040282000001 | B10: Sg-vNNe--SpE07 | C10: Preisblatt 1 | E10: 217.605 | H10: 217.61
A11: E1006601S725010010100250003300001 | B11: So-vNNe--SpE07 | C11: Preisblatt 1 | E11: 55.3758 | H11: 55.38
A12: E1006601S725010010100080000100001 | B12: Sg-vNNe--SpE07 | C12: Preisblatt 1 | E12: 33.0279 | H12: 33.03
A13: E1006001S725010021800030363100001 | B13: Sg-vNNe--SpE07 | C13: Preisblatt 1 | E13: 22.517 | H13: 22.52
A14: E1006601S725010021800030363100001 | B14: So-vNNe--SpE07 | C14: Preisblatt 1 | E14: 19.9627 | H14: 19.96
A15: E1006601S725010021800050010400001 | B15: So-vNNe--SpE07 | C15: Preisblatt 1 | E15: 54.4947 | H15: 54.49
A16: E1006601S725010021800080100600001 | B16: Sg-vNNe--SpE07 | C16: Preisblatt 1 | E16: 77.6881 | H16: 77.69
A17: E1006601S725010010200100409400001 | B17: So-vNNe--SpE07 | C17: Preisblatt 1 | E17: 25.1692 | H17: 25.17
A18: E1006601S725010022600170117100001 | B18: So-vNNe--SpE07 | C18: Preisblatt 1 | E18: 38.3501 | H18: 38.35
A19: E1006601S725010022600290118700001 | B19: Sg-vNNe--SpE07 | C19: Preisblatt 1 | E19: 24.1012 | H19: 24.1
A20: E1006601S725010022600030114300001 | B20: So-vNNe--SpE07 | C20: Preisblatt 1 | E20: 16.4472 | H20: 16.45
A21: E1006601S725010022600060114900001 | B21: So-vNNe--SpE07 | C21: Preisblatt 1 | E21: 24.2881 | H21: 24.29
A22: E1006601S725010022600080345200001 | B22: So-vNNe--SpE07 | C22: Preisblatt 1 | E22: 15.4771 | H22: 15.48
A23: E1006601S725010022600080345200002 | B23: So-vNNe--SpE07 | C23: Preisblatt 1 | E23: 16.109 | H23: 16.11
A24: E1006601S725010031700030232100001 | B24: So-vNNe--SpE07 | C24: Preisblatt 1 | E24: 30.3223 | H24: 30.32
A25: E1006001S725010021000130084900001 | B25: Sg-vNNe--SpE07 | C25: Preisblatt 1 | E25: 117.2397 | H25: 117.24
A26: E1006001S725010031400040202900001 | B26: Sg-vNNe--SpE07 | C26: Preisblatt 1 | E26: 85.2353 | H26: 85.24
A27: E1006001S725010022700190122600001 | B27: Sg-vNNe--SpE07 | C27: Preisblatt 1 | E27: 24.5373 | H27: 24.54
A28: E1006601S725010022700310125400001 | B28: Sg-vNNe--SpE07 | C28: Preisblatt 1 | E28: 54.5392 | H28: 54.54
A29: E1006001S725010022700070120500001 | B29: Sg-vNNe--SpE07 | C29: Preisblatt 1 | E29: 93.5479 | H29: 93.55
A30: E1006601S725010041700010385300001 | B30: So-vNNe--SpE07 | C30: Preisblatt 1 | E30: 17.9335 | H30: 17.93
A31: E1006601S725010041700160300700001 | B31: Sg-vNNe--SpE07 | C31: Preisblatt 1 | E31: 33.2504 | H31: 33.25
A32: E1006001S725010041700040299200001 | B32: Sg-vNNe--SpE07 | C32: Preisblatt 1 | E32: 78.5514 | H32: 78.55
A33: E1006601S725010041700050299200001 | B33: So-vNNe--SpE07 | C33: Preisblatt 1 | E33: 83.5977 | H33: 83.6
A34: E1006601S725010041700070299700001 | B34: So-vNNe--SpE07 | C34: Preisblatt 1 | E34: 18.8235 | H34: 18.82
A35: E1006601S725010021100100086100001 | B35: So-vNNe--SpE07 | C35: Preisblatt 1 | E35: 58.8468 | H35: 58.85
A36: E1006601S725010021100030085200001 | B36: Sg-vNNe--SpE07 | C36: Preisblatt 1 | E36: 70.666 | H36: 70.67
A37: E1006601S725010023100140403100001 | B37: Sg-vNNe--SpE07 | C37: Preisblatt 1 | E37: 267.2759 | H37: 267.28
A38: E1006601S725010023100220000100001 | B38: Sg-vNNe--SpE07 | C38: Preisblatt 1 | D38: 947.952332 | E38: 742.26 | H38: 1690.21
A39: E1006601S725010023100220000300001 | B39: Sg-vNNe--SpE07 | C39: Preisblatt 1 | D39: 5167.519895 | E39: 4558.58 | H39: 9726.1
A40: E1006001S725010023100050135800001 | B40: Sg-vNNe--SpE07 | C40: Preisblatt 1 | E40: 256.8362 | H40: 256.84
A41: E1006601S725010023100060000200001 | B41: Sg-vNNe--SpE07 | C41: Preisblatt 1 | E41: 293.2906 | H41: 293.29
A42: E1006601S725010023100080400000001 | B42: So-vNNe--SpE07 | C42: Preisblatt 1 | E42: 294.1005 | H42: 294.1
A43: E1006601S725010023100090405700001 | B43: Sg-vNNe--SpE07 | C43: Preisblatt 1 | E43: 111.606 | H43: 111.61
A44: E1006001S725010042200010313800001 | B44: Sg-vNNe--SpE07 | C44: Preisblatt 1 | E44: 100.0894 | H44: 100.09
A45: E1006001S725010042200060314100001 | B45: Sg-vNNe--SpE07 | C45: Preisblatt 1 | E45: 36.223 | H45: 36.22
A46: E1006601S725010020300100064100001 | B46: So-vNNe--SpE07 | C46: Preisblatt 1 | E46: 43.0493 | H46: 43.05
A47: E1006601S725010020300100064200001 | B47: Sg-vNNe--SpE07 | C47: Preisblatt 1 | E47: 68.2719 | H47: 68.27
A48: E1006601S725010020300150064900001 | B48: So-vNNe--SpE07 | C48: Preisblatt 1 | E48: 124.2974 | H48: 124.3
A49: E1006601S725010020300150065000001 | B49: Sg-vNNe--SpE07 | C49: Preisblatt 1 | E49: 177.7953 | H49: 177.8
A50: E1006601S725010020300150065100001 | B50: Sg-vNNe--SpE07 | C50: Preisblatt 1 | E50: 83.2595 | H50: 83.26
A51: E1006001S725010020300030063100001 | B51: Sg-vNNe--SpE07 | C51: Preisblatt 1 | E51: 38.6616 | H51: 38.66
A52: E1006001S725010022900020366400001 | B52: Sg-vNNe--SpE07 | C52: Preisblatt 1 | E52: 102.5992 | H52: 102.6
A53: E1006601S725010022900020366200001 | B53: So-vNNe--SpE07 | C53: Preisblatt 1 | E53: 79.388 | H53: 79.39
A54: E1006601S725010022900020366300001 | B54: So-vNNe--SpE07 | C54: Preisblatt 1 | E54: 16.732 | H54: 16.73
A55: E1006601S725010022900030129700001 | B55: Sg-vNNe--SpE07 | C55: Preisblatt 1 | E55: 46.1376 | H55: 46.14
A56: E1006601S725010022900030129800001 | B56: Sg-vNNe--SpE07 | C56: Preisblatt 1 | E56: 45.212 | H56: 45.21
A57: E1006001S725010022900060130300001 | B57: Sg-vNNe--SpE07 | C57: Preisblatt 1 | E57: 258.011 | H57: 258.01
A58: E1006601S725010023500140143000001 | B58: Sg-vNNe--SpE07 | C58: Preisblatt 1 | E58: 133.7848 | H58: 133.78
A59: E1006001S725010023500240144600001 | B59: Sg-vNNe--SpE07 | C59: Preisblatt 1 | E59: 98.78 | H59: 98.78
A60: E1006601S725010023500260144800001 | B60: So-vNNe--SpE07 | C60: Preisblatt 1 | E60: 56.7909 | H60: 56.79
A61: E1006601S725010023500280144900001 | B61: Sg-vNNe--SpE07 | C61: Preisblatt 1 | E61: 107.512 | H61: 107.51
A62: E1006001S725010023500420000400001 | B62: Sg-vNNe--SpE07 | C62: Preisblatt 1 | E62: 34.9592 | H62: 34.96
A63: E1006001S725010023500050000300001 | B63: Sg-vNNe--SpE07 | C63: Preisblatt 1 | E63: 58.4552 | H63: 58.46
A64: E1006601S725010023500090141700001 | B64: So-vNNe--SpE07 | C64: Preisblatt 1 | E64: 75.4186 | H64: 75.42
A65: E1006001S725010024100110000300001 | B65: Sg-vNNe--SpE07 | C65: Preisblatt 1 | E65: 56.3459 | H65: 56.35
A66: E1006001S725010031100020000400001 | B66: Sg-vNNe--SpE07 | C66: Preisblatt 1 | E66: 13.9374 | H66: 13.94
A67: E1006601S725010031100250191100001 | B67: Sg-vNNe--SpE07 | C67: Preisblatt 1 | E67: 55.4737 | H67: 55.47
A68: E1006601S725010031100040188200001 | B68: So-vNNe--SpE07 | C68: Preisblatt 1 | E68: 60.6535 | H68: 60.65
A69: E1006601S725010031100040188300001 | B69: Sg-vNNe--SpE07 | C69: Preisblatt 1 | E69: 42.7645 | H69: 42.76
A70: E1006601S725010023900050149600001 | B70: So-vNNe--SpE07 | C70: Preisblatt 1 | E70: 78.8273 | H70: 78.83
A71: E1006601S725010020800130076900001 | B71: Sg-vNNe--SpE07 | C71: Preisblatt 1 | E71: 218.8777 | H71: 218.88
A72: E1006001S725010020800170000100001 | B72: Sg-vNNe--SpE07 | C72: Preisblatt 1 | E72: 2.5988 | H72: 2.6
A73: E1006001S725010020800250079200001 | B73: Sg-vNNe--SpE07 | C73: Preisblatt 1 | E73: 56.3637 | H73: 56.36
A74: E1006001S725010020800080076100001 | B74: Sg-vNNe--SpE07 | C74: Preisblatt 1 | E74: 104.2012 | H74: 104.2
A75: E1006601S725010022400110111500001 | B75: Sg-vNNe--SpE07 | C75: Preisblatt 1 | E75: 0 | H75: 0
A76: E1006601S725010022400060111700001 | B76: Sg-vNNe--SpE07 | C76: Preisblatt 1 | E76: 115.0325 | H76: 115.03
A77: E1006001S725010022400090111200001 | B77: Sg-vNNe--SpE07 | C77: Preisblatt 1 | E77: 63.5816 | H77: 63.58
A78: E1006001S725010020900150082800001 | B78: Sg-vNNe--SpE07 | C78: Preisblatt 1 | E78: 180.6967 | H78: 180.7
A79: E1006601S725010040300050244300001 | B79: So-vNNe--SpE07 | C79: Preisblatt 1 | E79: 64.881 | H79: 64.88
A80: E1006601S725010042000110307200001 | B80: Sg-vNNe--SpE07 | C80: Preisblatt 1 | E80: 62.6649 | H80: 62.66
A81: E1006001S725010042000120000500001 | B81: Sg-vNNe--SpE07 | C81: Preisblatt 1 | E81: 54.3434 | H81: 54.34
A82: E1006601S725010042000050346400001 | B82: Sg-vNNe--SpE07 | C82: Preisblatt 1 | E82: 62.4068 | H82: 62.41
A83: E1006601S725010030100220153900001 | B83: So-vNNe--SpE07 | C83: Preisblatt 1 | E83: 88.6796 | H83: 88.68
A84: E1006001S725010041600110000100001 | B84: Sg-vNNe--SpE07 | C84: Preisblatt 1 | E84: 26.2906 | H84: 26.29
A85: E1006601S725010041600020296200001 | B85: Sg-vNNe--SpE07 | C85: Preisblatt 1 | E85: 214.4455 | H85: 214.45
A86: E1006601S725010041600040298200001 | B86: Sg-vNNe--SpE07 | C86: Preisblatt 1 | E86: 287.8794 | H86: 287.88
A87: E1006601S725010041600040298300001 | B87: Sg-vNNe--SpE07 | C87: Preisblatt 1 | E87: 96.2624 | H87: 96.26
A88: E1006601S725010041600060296800001 | B88: Sg-vNNe--SpE07 | C88: Preisblatt 1 | E88: 100.3208 | H88: 100.32
A89: E1006601S725010030400070167100001 | B89: Sg-vNNe--SpE07 | C89: Preisblatt 1 | E89: 50.6588 | H89: 50.66
A90: E1006601S725010030400080167200001 | B90: Sg-vNNe--SpE07 | C90: Preisblatt 1 | E90: 71.0398 | H90: 71.04
A91: E1006601S725010042500100317400001 | B91: Sg-vNNe--SpE07 | C91: Preisblatt 1 | E91: 105.4294 | H91: 105.43
A92: E1006601S725010042500140317800001 | B92: So-vNNe--SpE07 | C92: Preisblatt 1 | E92: 56.5595 | H92: 56.56
A93: E1006601S725010031550090197300001 | B93: Sg-vNNe--SpE07 | C93: Preisblatt 1 | E93: 125.1429 | H93: 125.14
A94: E1006601S725010042900010368900001 | B94: So-vNNe--SpE07 | C94: Preisblatt 1 | E94: 36.9261 | H94: 36.93
A95: E1006001S725010042900070417700001 | B95: Sg-vNNe--SpE07 | C95: Preisblatt 1 | E95: 80.7319 | H95: 80.73
A96: E1006601S725010042900080389800001 | B96: So-vNNe--SpE07 | C96: Preisblatt 1 | E96: 35.7691 | H96: 35.77
A97: E1006601S725010042900080389900001 | B97: Sg-vNNe--SpE07 | C97: Preisblatt 1 | E97: 33.2148 | H97: 33.21
A98: E1006601S725010023000010000100001 | B98: So-vNNe--SpE07 | C98: Preisblatt 1 | E98: 256.9252 | H98: 256.93
A99: E1006601S725010021300100000100001 | B99: So-vNNe--SpE07 | C99: Preisblatt 1 | E99: 86.1253 | H99: 86.13
A100: E1006001S725010021300320093100001 | B100: Sg-vNNe--SpE07 | C100: Preisblatt 1 | E100: 181.11 | H100: 181.11
A101: E1006601S725010021300340093200001 | B101: So-vNNe--SpE07 | C101: Preisblatt 1 | E101: 52.866 | H101: 52.87
A102: E1006601S725010030600180404000001 | B102: So-vNNe--SpE07 | C102: Preisblatt 1 | E102: 24.0478 | H102: 24.05
A103: E1006601S725010030600030176600001 | B103: Sg-vNNe--SpE07 | C103: Preisblatt 1 | E103: 67.7824 | H103: 67.78
A104: E1006601S725010030600090000900001 | B104: So-vNNe--SpE07 | C104: Preisblatt 1 | E104: 126.0774 | H104: 126.08
A105: E1006001S725010023800070149100001 | B105: Sg-vNNe--SpE07 | C105: Preisblatt 1 | E105: 78.7383 | H105: 78.74
A106: E1006601S725010010800230000100001 | B106: So-vNNe--SpE07 | C106: Preisblatt 1 | E106: 8.0812 | H106: 8.08
A107: E1006601S725010010800250000100001 | B107: So-vNNe--SpE07 | C107: Preisblatt 1 | E107: 6.3724 | H107: 6.37
A108: E1006601S725010022800170128600001 | B108: Sg-vNNe--SpE07 | C108: Preisblatt 1 | E108: 53.4979 | H108: 53.5
A109: E1006601S725010022800060127000001 | B109: So-vNNe--SpE07 | C109: Preisblatt 1 | E109: 54.1832 | H109: 54.18
A110: E1006601S725010022800060127100001 | B110: So-vNNe--SpE07 | C110: Preisblatt 1 | E110: 18.334 | H110: 18.33
A111: E1006601S725010024300020416100001 | B111: So-vNNe--SpE07 | C111: Preisblatt 1 | E111: 51.9315 | H111: 51.93
A112: E1006601S725010024300090410600001 | B112: So-vNNe--SpE07 | C112: Preisblatt 1 | E112: 14.2934 | H112: 14.29
A113: E1006601S725010040200060000100001 | B113: Sg-vNNe--SpE07 | C113: Preisblatt 1 | E113: 82.2449 | H113: 82.24
A114: E1006601S725010042100140358500001 | B114: So-vNNe--SpE07 | C114: Preisblatt 1 | E114: 65.2993 | H114: 65.3
A115: E1006001S725010042100150418200001 | B115: Sg-vNNe--SpE07 | C115: Preisblatt 1 | E115: 45.7549 | H115: 45.75
A116: E1006001S725010042100200312600001 | B116: Sg-vNNe--SpE07 | C116: Preisblatt 1 | E116: 48.0333 | H116: 48.03
A117: E1006601S725010024600020000200001 | B117: So-vNNe--SpE07 | C117: Preisblatt 1 | E117: 279.9228 | H117: 279.92
A118: E1006601S725010020350100065300001 | B118: Sg-vNNe--SpE07 | C118: Preisblatt 1 | D118: 0 | E118: 470.365 | H118: 470.37
A119: E1006601S725010020350020000200001 | B119: Sg-vNNe--SpE07 | C119: Preisblatt 1 | D119: 812.532898 | E119: 1019.05 | H119: 1831.58
A120: E1006601S725010031600100215500001 | B120: Sg-vNNe--SpE07 | C120: Preisblatt 1 | E120: 81.0701 | H120: 81.07
A121: E1006001S725010031600110000100001 | B121: Sg-vNNe--SpE07 | C121: Preisblatt 1 | E121: 1.1837 | H121: 1.18
A122: E1006001S725010031600130000100001 | B122: Sg-vNNe--SpE07 | C122: Preisblatt 1 | E122: 53.3555 | H122: 53.36
A123: E1006601S725010031600060215000001 | B123: Sg-vNNe--SpE07 | C123: Preisblatt 1 | E123: 84.7369 | H123: 84.74
A124: E1006601S725010040600020250000001 | B124: Sg-vNNe--SpE07 | C124: Preisblatt 1 | D124: 0 | E124: 759.615 | H124: 759.62
A125: E1006601S725010022000130104700001 | B125: So-vNNe--SpE07 | C125: Preisblatt 1 | E125: 55.9187 | H125: 55.92
A126: E1006601S725010022000070104000001 | B126: Sg-vNNe--SpE07 | C126: Preisblatt 1 | E126: 36.8015 | H126: 36.8
A127: E1006601S725010031500110211100001 | B127: Sg-vNNe--SpE07 | C127: Preisblatt 1 | E127: 55.9988 | H127: 56
A128: E1006601S725010031500090210600001 | B128: So-vNNe--SpE07 | C128: Preisblatt 1 | E128: 33.4373 | H128: 33.44
A129: E1006601S725010020400050151200001 | B129: Sg-vNNe--SpE07 | C129: Preisblatt 1 | E129: 80.0199 | H129: 80.02
A130: E1006601S725010024000060151300001 | B130: So-vNNe--SpE07 | C130: Preisblatt 1 | E130: 96.2891 | H130: 96.29
A131: E1006601S725010024000060151400001 | B131: Sg-vNNe--SpE07 | C131: Preisblatt 1 | E131: 60.0216 | H131: 60.02
A132: E1006001S725010024200110000300001 | B132: Sg-vNNe--SpE07 | C132: Preisblatt 1 | E132: 33.5352 | H132: 33.54
A133: E1006001S725010024200040414700001 | B133: Sg-vNNe--SpE07 | C133: Preisblatt 1 | E133: 64.2847 | H133: 64.28
A134: E1006001S725010024200060000200001 | B134: Sg-vNNe--SpE07 | C134: Preisblatt 1 | E134: 83.8024 | H134: 83.8
A135: E1006601S725010024200080000300001 | B135: So-vNNe--SpE07 | C135: Preisblatt 1 | E135: 65.1925 | H135: 65.19
A136: E1006601S725010022300070110200001 | B136: Sg-vNNe--SpE07 | C136: Preisblatt 1 | E136: 111.6238 | H136: 111.62
A137: E1006601S725010040800060251400001 | B137: So-vNNe--SpE07 | C137: Preisblatt 1 | E137: 214.2942 | H137: 214.29
A138: E1006001S725010031000010186300001 | B138: Sg-vNNe--SpE07 | C138: Preisblatt 1 | E138: 41.4562 | H138: 41.46
A139: E1006601S725010020400030000200001 | B139: So-vNNe--SpE07 | C139: Preisblatt 1 | E139: 438.77 | H139: 438.77
A140: E1006001S725010020400040065800001 | B140: Sg-vNNe--SpE07 | C140: Preisblatt 1 | E140: 82.5564 | H140: 82.56
A141: E1006601S725010041550110404700001 | B141: So-vNNe--SpE07 | C141: Preisblatt 1 | E141: 26.8335 | H141: 26.83
A142: E1006601S725010041550140292700001 | B142: Sg-vNNe--SpE07 | C142: Preisblatt 1 | E142: 141.8482 | H142: 141.85
A143: E1006601S725010041550150292800001 | B143: So-vNNe--SpE07 | C143: Preisblatt 1 | E143: 48.861 | H143: 48.86
A144: E1006601S725010041550190293300001 | B144: Sg-vNNe--SpE07 | C144: Preisblatt 1 | E144: 88.7775 | H144: 88.78
A145: E1006601S725010041550340418800001 | B145: So-vNNe--SpE07 | C145: Preisblatt 1 | E145: 16.5006 | H145: 16.5
A146: E1006601S725010041550350294900001 | B146: Sg-vNNe--SpE07 | C146: Preisblatt 1 | E146: 98.167 | H146: 98.17
A147: E1006601S725010041550040291300001 | B147: Sg-vNNe--SpE07 | C147: Preisblatt 1 | E147: 83.9359 | H147: 83.94
A148: E1006601S725010041550450295600001 | B148: Sg-vNNe--SpE07 | C148: Preisblatt 1 | E148: 88.9644 | H148: 88.96
A149: E1006601S725010041550050291400001 | B149: Sg-vNNe--SpE07 | C149: Preisblatt 1 | E149: 127.9642 | H149: 127.96
A150: E1006601S725010041550070291700001 | B150: Sg-vNNe--SpE07 | C150: Preisblatt 1 | E150: 124.9471 | H150: 124.95
A151: E1006601S725010041550080291800001 | B151: So-vNNe--SpE07 | C151: Preisblatt 1 | E151: 105.91 | H151: 105.91
A152: E1006601S725010023700030147700001 | B152: Sg-vNNe--SpE07 | C152: Preisblatt 1 | E152: 102.8484 | H152: 102.85
A153: E1006001S725010023700050000100001 | B153: Sg-vNNe--SpE07 | C153: Preisblatt 1 | E153: 112.3358 | H153: 112.34
A154: E1006601S725010011100020387200001 | B154: So-vNNe--SpE07 | C154: Preisblatt 1 | E154: 17.889 | H154: 17.89
A155: E1006601S725010011100020387200002 | B155: So-vNNe--SpE07 | C155: Preisblatt 1 | E155: 17.889 | H155: 17.89
A156: E1006001S725010042700120319600001 | B156: Sg-vNNe--SpE07 | C156: Preisblatt 1 | E156: 103.7206 | H156: 103.72
A157: E1006601S725010042700170342900001 | B157: Sg-vNNe--SpE07 | C157: Preisblatt 1 | E157: 75.7123 | H157: 75.71
A158: E1006001S725010042700210000300001 | B158: Sg-vNNe--SpE07 | C158: Preisblatt 1 | E158: 110.4668 | H158: 110.47
A159: E1006601S725010022700240358500001 | B159: Sg-vNNe--SpE07 | C159: Preisblatt 1 | E159: 94.607 | H159: 94.61
A160: E1006601S725010020200110058700001 | B160: So-vNNe--SpE07 | C160: Preisblatt 1 | E160: 83.037 | H160: 83.04
A161: E1006601S725010020200150059000001 | B161: Sg-vNNe--SpE07 | C161: Preisblatt 1 | E161: 58.2416 | H161: 58.24
A162: E1006601S725010020200090058500001 | B162: So-vNNe--SpE07 | C162: Preisblatt 1 | E162: 72.4638 | H162: 72.46
A163: E1006601S725010030500010171400001 | B163: Sg-vNNe--SpE07 | C163: Preisblatt 1 | E163: 55.6072 | H163: 55.61
A164: E1006601S725010030500010171500001 | B164: Sg-vNNe--SpE07 | C164: Preisblatt 1 | E164: 55.8386 | H164: 55.84
A165: E1006601S725010030500190175400001 | B165: So-vNNe--SpE07 | C165: Preisblatt 1 | E165: 39.0799 | H165: 39.08
A166: E1006601S725010030500220176000001 | B166: So-vNNe--SpE07 | C166: Preisblatt 1 | E166: 65.86 | H166: 65.86
A167: E1006601S725010030500050172100001 | B167: So-vNNe--SpE07 | C167: Preisblatt 1 | E167: 86.7483 | H167: 86.75
A168: E1006001S725010030500030171800001 | B168: Sg-vNNe--SpE07 | C168: Preisblatt 1 | E168: 59.7457 | H168: 59.75
A169: E1006001S725010011300060051900001 | B169: Sg-vNNe--SpE07 | C169: Preisblatt 1 | E169: 148.3274 | H169: 148.33
A170: E1006601W725010011300060051800001 | B170: Wa-vNNe--SpE07 | C170: Preisblatt 1 | E170: 1009.6427 | H170: 1009.64
A171: E1006001S725010023600110410000001 | B171: Sg-vNNe--SpE07 | C171: Preisblatt 1 | E171: 7.4226 | H171: 7.42
A172: E1006601S725010023600110409900001 | B172: So-vNNe--SpE07 | C172: Preisblatt 1 | E172: 29.5925 | H172: 29.59
A173: E1006601S725010023600210146900001 | B173: Sg-vNNe--SpE07 | C173: Preisblatt 1 | E173: 155.7856 | H173: 155.79
A174: E1006001S725010040900350270800001 | B174: Sg-vNNe--SpE07 | C174: Preisblatt 1 | E174: 111.92 | H174: 111.92
A175: E1006601S725010040900420000700001 | B175: Sg-vNNe--SpE07 | C175: Preisblatt 1 | E175: 448.4087 | H175: 448.41
A176: E1006601S725010040900440272500001 | B176: Sg-vNNe--SpE07 | C176: Preisblatt 1 | E176: 562.9339 | H176: 562.93
A177: E1006601S725010040900570274700001 | B177: So-vNNe--SpE07 | C177: Preisblatt 1 | E177: 56.782 | H177: 56.78
A178: E1006601S725010040900570274800001 | B178: So-vNNe--SpE07 | C178: Preisblatt 1 | E178: 56.426 | H178: 56.43
A179: E1006601S725010040900570274900001 | B179: So-vNNe--SpE07 | C179: Preisblatt 1 | E179: 142.222 | H179: 142.22
A180: E1006001S725010040900630275800001 | B180: Sg-vNNe--SpE07 | C180: Preisblatt 1 | E180: 47.23 | H180: 47.23
A181: E1006601S725010040900730277100001 | B181: So-vNNe--SpE07 | C181: Preisblatt 1 | E181: 6.5148 | H181: 6.51
A182: E1006601S725010040900790278000001 | B182: So-vNNe--SpE07 | C182: Preisblatt 1 | E182: 230.1006 | H182: 230.1
A183: E1006601S725010040900790278200001 | B183: Sg-vNNe--SpE07 | C183: Preisblatt 1 | E183: 215.6025 | H183: 215.6
A184: E1006601S725010040900790278100001 | B184: Sg-vNNe--SpE07 | C184: Preisblatt 1 | E184: 94.34 | H184: 94.34
A185: E1006001S725010031800150000100001 | B185: Sg-vNNe--SpE07 | C185: Preisblatt 1 | E185: 0 | H185: 0
A186: E1006001S725010021900080101800001 | B186: Sg-vNNe--SpE07 | C186: Preisblatt 1 | E186: 34.5409 | H186: 34.54
A187: E1006601S725010022200080109300001 | B187: Sg-vNNe--SpE07 | C187: Preisblatt 1 | E187: 100.9082 | H187: 100.91
A188: E1006601S725010022200070000200001 | B188: Sg-vNNe--SpE05 | C188: Preisblatt 1 | D188: 0 | E188: 221.6422 | H188: 221.64
A189: E1006001S725010020600130072200001 | B189: Sg-vNNe--SpE07 | C189: Preisblatt 1 | E189: 69.5268 | H189: 69.53
A190: E1006601S725010022100180108000001 | B190: So-vNNe--SpE07 | C190: Preisblatt 1 | E190: 66.3851 | H190: 66.39
A191: E1006001S725010022100190108200001 | B191: Sg-vNNe--SpE07 | C191: Preisblatt 1 | E191: 30.2689 | H191: 30.27
A192: E1006001S725010022100220000200001 | B192: Sg-vNNe--SpE07 | C192: Preisblatt 1 | E192: 56.0522 | H192: 56.05
A193: E1006601S725010030800020183300001 | B193: So-vNNe--SpE07 | C193: Preisblatt 1 | E193: 67.2573 | H193: 67.26
A194: E1006601S725010030800060184200001 | B194: Sg-vNNe--SpE07 | C194: Preisblatt 1 | E194: 24.7598 | H194: 24.76
A195: E1006601S725010030300210163900001 | B195: Sg-vNNe--SpE07 | C195: Preisblatt 1 | E195: 87.665 | H195: 87.67
A196: E1006601S725010041500070290100001 | B196: Sg-vNNe--SpE07 | C196: Preisblatt 1 | E196: 120.8264 | H196: 120.83
A197: E1006601S725010041400050289000001 | B197: Sg-vNNe--SpE07 | C197: Preisblatt 1 | E197: 129.9667 | H197: 129.97

Sheet Marktprämien
J1: =Deckblatt!H1 -> 02.05.2016
A3: Netzbetreiber : | B3: =Deckblatt!C11 -> Gammertinger Energie- u. Wasserversorgung GmbH
A5: Anlagenschlüssel | B5: Vergütungskategorie, die mit dem Anlagenbetreiber abgerechnet worden wären, wenn die Anlage in der Festvergütung vergütet worden wäre | C5: Monat, in dem Strommenge über das Marktprämienmodell erzeugt bzw. direkt vermarktet wurde | D5: Fernsteuerbar (d.h. Verwendung der erhöhten Managementprämie) | E5: über das Marktprämienmodell direktvermarktete Strommenge [kWh] | F5: Ausbezahlte Marktprämie in [€] (nur für Kategorien ohne festen Vergütungssatz) | G5: anzulegender Wert [ct/kWh] | H5: Marktwert [ct/kWh] | I5: Managementprämie [ct/kWh] | J5: berechnete Marktprämie in [€]
A6: Pflichtfeld | B6: Pflichtfeld (Auswahlfeld - separate Zeile pro Monat) | C6: Pflichtfeld (Auswahlfeld - separate Zeile pro Monat) | D6: Pflichtfeld (Auswahlfeld - separate Zeile pro Monat - keine Angabe entspr. Nein) | E6: Pflichtfeld (separate Zeile pro Monat) | F6: Pflichtfeld bei Kategorien ohne festen Vergütungssatz

Sheet Flexibilitätsvergütung
E1: =Deckblatt!H1 -> 02.05.2016
A3: Netzbetreiber : | B3: =Deckblatt!C11 -> Gammertinger Energie- u. Wasserversorgung GmbH
A5: Anlagenschlüssel | B5: Vergütungskategorie | C5: erzeugte Strommenge in der jeweiligen Kategorie [kWh] | D5: Zusatzleistung [kW] | E5: Flexibilitätsvergütung [€]
A6: Pflichtfeld | B6: Pflichtfeld | C6: nur erforderlich bei Flexibilitätsprämie | D6: nur erforderlich bei Flexibilitätsprämie | E6: Pflichtfeld

Sheet Nachträgliche_Korrekturen
I1: =Deckblatt!H1 -> 02.05.2016
A3: Netzbetreiber : | B3: =Deckblatt!C11 -> Gammertinger Energie- u. Wasserversorgung GmbH
A5: Anlagenschlüssel | B5: A: Grund für die nachträgliche Korrektur | C5: B: betrifft Abrechnung (Jahr) [JJJJ] | D5: C: ggf. Name [Gericht/Notar] | E5: D: Aktenzeichen/Urkundennummer | F5: Strommenge [kWh] | G5: finanzielle Förderung vor Abzug der vNE [EUR] | H5: vNE [EUR] | I5: finanzielle Förderung nach Abzug der vNE [EUR]

Sheet Eigenversorgung
N1: =Deckblatt!H1 -> 02.05.2016
A3: Netzbetreiber : | B3: =Deckblatt!C11 -> Gammertinger Energie- u. Wasserversorgung GmbH
C5: Eigenversorgung für 2015 | I5: Eigenversorgung für 2014
A6: Anlagenschlüssel | B6: Anlagenart (EEG/Nicht-EEG) | C6: Umlagekategorie | D6: Strommenge [kWh] | E6: Erhaltene Zahlung vom Anlagenbetreiber [€] | F6: Sollzahlung [€] | G6: Noch ausstehende Zahlung [€] | H6: Erhaltene Zahlung [€] | I6: Umlagekategorie | J6: Strommenge [kWh] | K6: Erhaltene Zahlung vom Anlagenbetreiber [€] | L6: Sollzahlung [€] | M6: Noch ausstehende Zahlung [€] | N6: Erhaltene Zahlung [€]
A7: Pflichtfeld | B7: Pflichtfeld | C7: Pflichtfeld | D7: Pflichtfeld | E7: Pflichtfeld | I7: Pflichtfeld | J7: Pflichtfeld | K7: Pflichtfeld

Sheet MPM_Ergebnissblatt
N1: =Deckblatt!H1 -> 02.05.2016
A3: Netzbetreiber : | B3: =Deckblatt!C11 -> Gammertinger Energie- u. Wasserversorgung GmbH
A5: Anlagenschlüssel | B5: Marktprämie [€] | C5: Marktprämie [€] | D5: Marktprämie [€] | E5: Marktprämie [€] | F5: Marktprämie [€] | G5: Marktprämie [€] | H5: Marktprämie [€] | I5: Marktprämie [€] | J5: Marktprämie [€] | K5: Marktprämie [€] | L5: Marktprämie [€] | M5: Marktprämie [€] | N5: Marktprämie gesamt [€]
B6: Januar | C6: Februar | D6: März | E6: April | F6: Mai | G6: Juni | H6: Juli | I6: August | J6: September | K6: Oktober | L6: November | M6: Dezember | N6: 2015

Sheet Marktwerte
A1: Monat | B1: Januar | C1: Februar | D1: März | E1: April | F1: Mai | G1: Juni | H1: Juli | I1: August | J1: September | K1: Oktober | L1: November | M1: Dezember
B2: 2015 | C2: 2015 | D2: 2015 | E2: 2015 | F2: 2015 | G2: 2015 | H2: 2015 | I2: 2015 | J2: 2015 | K2: 2015 | L2: 2015 | M2: 2015
A3: MW-EPEX (Marktwert-EPEX) | B3: 2.872 | C3: 3.672 | D3: 3.134 | E3: 2.972 | F3: 2.536 | G3: 3.006 | H3: 3.5 | I3: 3.161 | J3: 3.188 | K3: 3.936 | L3: 3.239 | M3: 2.778
A5: MW Wind (Marktwert Wind) | B5: 2.2 | C5: 3.163 | D5: 2.527 | E5: 2.536 | F5: 2.268 | G5: 2.792 | H5: 2.926 | I5: 2.959 | J5: 2.765 | K5: 3.656 | L5: 2.671 | M5: 2.358
A6: PM Wind (Managementprämie Wind) | B6: 0.3 | C6: =$B6 -> 0.3 | D6: =$B6 -> 0.3 | E6: 0 | F6: 0 | G6: 0 | H6: 0 | I6: 0 | J6: 0 | K6: 0 | L6: 0 | M6: 0
A7: PM Wind fst. (Managementprämie Wind fernsteuerbar) | B7: 0.4 | C7: =$B7 -> 0.4 | D7: 0.4 | E7: 0.4 | F7: 0.4 | G7: 0.4 | H7: 0.4 | I7: 0.4 | J7: 0.4 | K7: 0.4 | L7: 0.4 | M7: 0.4
A8: RW Wind (Referenzmarktwert Wind) | B8: =B5-B6 -> 1.9 | C8: =C5-C6 -> 2.863 | D8: 2.227 | E8: 2.536 | F8: 2.268 | G8: 2.792 | H8: 2.926 | I8: 2.959 | J8: 2.765 | K8: 3.656 | L8: 2.671 | M8: 2.358
A9: RW Wind (Referenzmarktwert Wind fernsteuerbar) | B9: =B5-B7 -> 1.8 | C9: =C5-C7 -> 2.763 | D9: 2.127 | E9: 2.136 | F9: 1.868 | G9: 2.392 | H9: 2.526 | I9: 2.559 | J9: 2.365 | K9: 3.256 | L9: 2.271 | M9: 1.958
A11: MW Solar (Marktwert Solar) | B11: 3.218 | C11: 3.678 | D11: 3.059 | E11: 2.64 | F11: 2.511 | G11: 3.045 | H11: 3.536 | I11: 3.067 | J11: 3.147 | K11: 3.751 | L11: 3.491 | M11: 2.91
A12: PM Solar (Managementprämie Solar) | B12: =B6 -> 0.3 | C12: =$B12 -> 0.3 | D12: =$B12 -> 0.3 | E12: 0 | F12: 0 | G12: 0 | H12: 0 | I12: 0 | J12: 0 | K12: 0 | L12: 0 | M12: 0
A13: PM Solar fst. (Managementprämie Solar fernsteuerbar) | B13: =B7 -> 0.4 | C13: =$B13 -> 0.4 | D13: 0.4 | E13: 0.4 | F13: 0.4 | G13: 0.4 | H13: 0.4 | I13: 0.4 | J13: 0.4 | K13: 0.4 | L13: 0.4 | M13: 0.4
A14: RW Solar (Referenzmarktwert Solar) | B14: =B11-B12 -> 2.918 | C14: 3.378 | D14: 2.759 | E14: 2.64 | F14: 2.511 | G14: 3.045 | H14: 3.536 | I14: 3.067 | J14: 3.147 | K14: 3.751 | L14: 3.491 | M14: 2.91
A15: RW Solar (Referenzmarktwert Solar fernsteuerbar) | B15: =B11-B13 -> 2.818 | C15: 3.278 | D15: 2.659 | E15: 2.24 | F15: 2.111 | G15: 2.645 | H15: 3.136 | I15: 2.667 | J15: 2.747 | K15: 3.351 | L15: 3.091 | M15: 2.51
A17: MW steuerbar (Marktwert steuerbar) | B17: =B3 -> 2.872 | C17: 3.672 | D17: 3.134 | E17: 2.972 | F17: 2.536 | G17: 3.006 | H17: 3.5 | I17: 3.161 | J17: 3.188 | K17: 3.936 | L17: 3.239 | M17: 2.778
A18: PM steuerbar (Managementprämie steuerbar) | B18: 0.2 | C18: =$B18 -> 0.2 | D18: =$B18 -> 0.2 | E18: 0.2 | F18: 0.2 | G18: 0.2 | H18: 0.2 | I18: 0.2 | J18: 0.2 | K18: 0.2 | L18: 0.2 | M18: 0.2
A19: PM steuerbar (Managementprämie fernsteuerbar) | B19: =B18 -> 0.2 | C19: =$B19 -> 0.2 | D19: 0.2 | E19: 0.2 | F19: 0.2 | G19: 0.2 | H19: 0.2 | I19: 0.2 | J19: 0.2 | K19: 0.2 | L19: 0.2 | M19: 0.2
A20: RW steuerbar (Referenzmarktwert steuerbar) | B20: =B17-B18 -> 2.672 | C20: 3.472 | D20: 2.934 | E20: 2.772 | F20: 2.336 | G20: 2.806 | H20: 3.3 | I20: 2.961 | J20: 2.988 | K20: 3.736 | L20: 3.039 | M20: 2.578
A21: RW steuerbar (Referenzmarktwert steuerbar fernsteuerbar) | B21: =B17-B19 -> 2.672 | C21: 3.472 | D21: 2.934 | E21: 2.772 | F21: 2.336 | G21: 2.806 | H21: 3.3 | I21: 2.961 | J21: 2.988 | K21: 3.736 | L21: 3.039 | M21: 2.578
A25: Legende:
A26: erfasste Daten
A27: berechnete Daten

Sheet Erläuterungen Kategorien (hidden)
A1: Erläuterungen zur EEG-Vergütungskategorientabelle bis einschl. Inbetriebnahmejahr 2011
A2: Informationen zu den Vergütungskategorien auf der gemeinsamen Internetseite der vier Übertragungsnetzbetreiber: www.eeg-kwk.net
A3: Bedeutung der farblichen Hinterlegung der Einträge:
A4: weiß | B4: Vergütungskategorie stimmt mit bisheriger Kategorie nach EEG 2004 überein
A5: grün | B5: Vergütungskategorie bestand bereits nach EEG 2004, Vergütung wird ab 1.1.2009 erhöht
A6: gelb | B6: Vergütungskategorie ist neu nach EEG 2009
A7: orange | B7: Vergütungskategorie ist 2012/2013 neu nach EEG 2009
A8: rosa | B8: Vergütungskategorie ist 2012 neu nach EEG 2012, nur auf Anlagen mit Inbetriebnahme nach 31.12.2011 anwendbar
A9: braun | B9: Vergütungskategorie ist 2012 neu nach EEG 2012, auch auf Anlagen mit Inbetriebnahme vor 1.1.2012 anwendbar
A10: rosa / braun | B10: Vergütungskategorie ist 2012 neu nach EEG 2012, Anwendbarkeit auf Anlagen mit Inbetriebnahme vor 1.1.2012 unsicher
A11: violett | B11: Vergütungskategorie ist 2012 neu nach EEG 2012 in der am 29.06.2012 beschlossenen Fassung (sogenannte PV-Novelle)
A12: blau | B12: Vergütungskategorie ist 2013 neu nach EEG 2012 und/oder der Managementprämienverordnung (MaPrV)
A13: blassblau | B13: Vergütungskategorie ist 2013 ergänzt worden
A15: Anmerkung: | B15: Sofern eine Unterscheidung zwischen dem EEG 2012 in der vom 01.01.2012 bis 31.03.2012 geltenden alten Fassung und der ab 01.04.2012 gelten neuen Fassung erforderlich ist, ist dies durch die Verwendung von EEG 2012 a.F. bzw. EEG 2012 n.F. gekennzeichnet.
A17: Bonusregeln für Anlagen bis einschließlich Inbetriebnahmejahr 2008
A18: aus EEG 2004 und EEG 2009
A19: Bonusregel a1: (§ 8 Abs. 2 Satz 1 EEG 2004) in Höhe von 6,0 ct/kWh für den Anteil der eingespeisten Wirkarbeit bis einschließlich 500 kW
A21: Bonusregel a2: (§ 8 Abs. 2 Satz 1 EEG 2004) in Höhe von 4,0 ct/kWh für den Anteil der eingespeisten Wirkarbeit oberhalb von 500 kW bis einschließlich 5 MW
A23: Bonusregeln a1 und a2 jeweils bei Anlagen mit ausschließlichem Einsatz von Biomasse aus: (a) Pflanzen oder Pflanzenbestandteilen ohne Aufbereitung im Sinne von § 8 Abs. 2 Satz 1 Nr. 1 EEG, (b) Gülle und Schlempe im Sinne von § 8 Abs. 2 Satz 1 Nr. 1 EEG oder (c) Stoffgemisch aus (a) und (b) sofern ein Tagebuch über den ausschließlichen Einsatz dieser Stoffe geführt wird oder eine Genehmigung der Anlage für den ausschließlichen Einsatz dieser Stoffe vorliegt, sowie keine Biomasseanlagen auf demselben Gelände betrieben werden, in denen Strom aus sonstigen Stoffen gewonnen wird.
A25: Bonusregel a3: (§ 8 Abs. 2 Satz 2 EEG 2004) in Höhe von 2,5 ct/kWh bei Verbrennung von Holz für den Anteil oberhalb von 500 kW bis einschließlich 5 MW.
A27: Weitere Nawaro-Bonusregeln G, M1, M2, L, X1, X2: siehe Erläuterungen unten für Inbetriebnahmejahre ab 2009.
A29: Bonusregel b: (§ 8 Abs. 4 EEG 2004) in Höhe von 2,0 ct/kWh für Anlagen, die auch in Kraft-Wärmekopplung betrieben werden, bei ausschließlicher Verwendung von Biomasse gemäß Biomasseverordnung und Umwandlung der Biomasse durch thermochemische Vergasung oder Trockenfermentation oder Aufarbeitung des Biogases auf Erdgasqualität oder Erzeugung des Stroms mittels Brennstoffzelle, Gasturbine, Dampfmotoren, Organic-Rankine-Anlagen, Mehrstoffgemisch-Anlagen (u.a. Kalina-Cycle-Anlagen) bzw. Stirling-Motoren für den Anteil bis einschließlich 5 MW.
A31: KWK-Bonusregeln (KWK, KA3, K09, K10, K11 und K12): Bonus KWK (§ 8 Abs. 3 EEG 2004) in Höhe von 2,0 ct/kWh bei ausschließlicher Verwendung von Biomasse gemäß Biomasseverordnung für Anlagen, die KWK-Anlage gemäß FW 308 sind und dies entsprechend nachweisen. Die Bonusregel gilt nur für den KWK-Anteil des erzeugten elektrischen Stroms. Bonus K09, K10, K11 und K12 (§ 66 Abs. 1 Nr. 3 Satz 1 EEG 2009): Für Biomasseanlagen, die vor dem 01.01.2009 in Betrieb genommen wurden und die nach dem 31.12.2008 erstmals in Kraft-Wärme-Kopplung nach Maßgabe der Anlage 3 zum EEG 2009 betrieben wurden, beträgt der KWK-Bonus 3,00 ct/kWh bei erstmaligem KWK-Betrieb in 2009 (Bonus K09), 2,97 ct/kWh bei erstmaligem KWK-Betrieb in 2010 (Bonus K10), 2,94 ct/kWh bei erstmaligem KWK-Betrieb in 2011 (Bonus K11) und 2,91 ct/kWh bei erstmaligem KWK-Betrieb in 2012 (Bonus K12). Bonus KA3 (§ 66 Abs. 1 Nr. 3 Satz 2 EEG 2009): Für Strom aus sonstigen Biomasseanlagen mit Inbetriebnahme vor dem 01.01.2009, der in Kraft-Wärme-Kopplung nach Maßgabe der Anlage 3 zum EEG 2009 erzeugt worden ist, beträgt der KWK-Bonus bis einschließlich einer Leistung von 500 Kilowatt 3,0 ct/kWh.
A33: Bonusregel y: (§ 66 Abs.1 Nr. 4a EEG 2009) Strom aus Biomasseanlagen bis zu einer Anlagenleistung von 500 KW, die Biogas einsetzen, erhalten eine um 1,0 ct/kWh höhere Vergütung, wenn entsprechende Formaldehydgrenzwerte nach TA Luft eingehalten werden (Bonus y).
A35: Bonusregel S: (§ 66 Abs. 1 Nr. 6 EEG 2009) Windenergieanlagen, die nach dem 31.12.2001 und vor dem 01.01.2009 in Betrieb genommen worden sind, erhalten einen Systemdienstleistungsbonus von 0,7 ct/kWh, wenn sie infolge einer Nachrüstung vor dem 01.01.2011 die Anforderungen der Verordnung nach § 64 Abs. 1 Nr. 1 EEG 2009 erstmals einhalten.
A38: Bonusregeln für Anlagen mit Inbetriebnahmejahr 2009, 2010, 2011, 2012
A39: aus EEG 2009
F40: Bonushöhe
A41: Bonusbezeichnung | B41: Beschreibung | C41: Einschränkung | D41: gesetzliche Norm | F41: IB in 2009 | G41: IB in 2010 | H41: IB in 2011 | I41: IB in 2012
A42: Immissionsbonus | C42: Biomasse
A43: i | B43: Immissionsschutzrechtlich genehmigte Anlagen | C43: < 0,5 MW | D43: § 27 Abs. 5 EEG | F43: 1 | G43: 0.99 | H43: 0.98
A45: Technologiebonus | C45: Deponiegas, Klärgas, Grubengas (nur t3), Biomasse
A46: t1 | B46: Technologiebonus Gasaufbereitung; | C46: < 5 MW, 0-350 Normkubikmeter pro Std. | D46: § 27 Abs. 4 Satz 1 Nr. 1 EEG; Anlage 1 Punkt I., 2a | F46: 2 | G46: 1,98 (Biom.) 1,97 (Gase) | H46: 1,96 (Biom.) 1,94 (Gase)
A47: t2 | B47: Technologiebonus Gasaufbereitung; | C47: < 5 MW, 350-700 Normkubikmeter pro Std. | D47: § 27 Abs. 4 Satz 1 Nr. 1 EEG; Anlage 1 Punkt I., 2b | F47: 1 | G47: 0.99 | H47: 0,98 (Biom.) 0,97 (Gase)
A48: t3 | B48: Technonogiebonus Innovative Anlagentechnik | C48: < 5 MW | D48: § 27 Abs. 4 Satz 1 Nr. 1 EEG; Anlage 1 Punkt II., 2 | F48: 2 | G48: 1,98 (Biom.) 1,97 (Gase) | H48: 1,96 (Biom.) 1,94 (Gase) | I48: 1,94 (Biom.)
A50: Nawarobonus | C50: Biomasse
A51: a1 | B51: Nawarobonus_allgemein | C51: <0,5 MW | D51: § 27 Abs. 4 Satz 1 Nr. 2 EEG; Anlage 2 Punkt VI., 1a (1) | F51: 6 | G51: 5.94 | H51: 5.88 | I51: 5.82
A52: a2 | B52: Nawarobonus_allgemein | C52: 0,5-5 MW | D52: § 27 Abs. 4 Satz 1 Nr. 2 EEG; Anlage 2 Punkt VI., 1a (2) | F52: 4 | G52: 3.96 | H52: 3.92 | I52: 3.88
A53: ah | B53: Nawarobonus_allgemein | C53: 0,5-5 MW; Einschränkung Holz | D53: § 27 Abs. 4 Satz 1 Nr. 2 EEG; Anlage 2 Punkt VI., 1b | F53: 2.5 | G53: 2.48 | H53: 2.45 | I53: 2.43
A55: G | B55: Nawarobonus_Biogas | C55: <0,5 MW; | D55: § 27 Abs. 4 Satz 1 Nr. 2 EEG; Anlage 2 Punkt VI., 2a | F55: 7 | G55: 6.93 | H55: 6.86
A56: M1 | B56: Nawarobonus_Biogas | C56: 0-0,150 MW; Gülleanteil > 30 % | D56: § 27 Abs. 4 Satz 1 Nr. 2 EEG; Anlage 2 Punkt VI., 2b (1) | F56: 11 | G56: 10.89 | H56: 10.78
A57: M2 | B57: Nawarobonus_Biogas | C57: 0,150-0,5 MW; Gülleanteil > 30 % | D57: § 27 Abs. 4 Satz 1 Nr. 2 EEG; Anlage 2 Punkt VI., 2b (2) | F57: 8 | G57: 7.92 | H57: 7.84
A59: L | B59: Nawarobonus_Biogas | C59: 0-0,5 MW; Landschaftspflege | D59: § 27 Abs. 4 Satz 1 Nr. 2 EEG; Anlage 2 Punkt VI., 2c | F59: 9 | G59: 8.91 | H59: 8.82
A60: X1 | B60: Nawarobonus_Biogas | C60: 0-0,150 MW; Landschaftspflege; Gülleanteil > 30 % | D60: § 27 Abs. 4 Satz 1 Nr. 2 EEG; Anlage 2 Punkt VI., 2b (1) und Punkt VI., 2c (Kombination aus Bonus M1 und Bonus L) | F60: 13 | G60: 12.87 | H60: 12.74
A61: X2 | B61: Nawarobonus_Biogas | C61: 0,150-0,5 MW; Landschaftspflege; Gülleanteil > 30 % | D61: § 27 Abs. 4 Satz 1 Nr. 2 EEG; Anlage 2 Punkt VI., 2b (2) und Punkt VI., 2c (Kombination aus Bonus M2 und Bonus L) | F61: 10 | G61: 9.9 | H61: 9.8
A63: KWK-Bonus | C63: Biomasse
A64: K | B64: KWK-Bonus | C64: Anteil KWK-Strom | D64: § 27 Abs. 4 Satz 1 Nr. 3 EEG | F64: 3 | G64: 2.97 | H64: 2.94 | I64: 2.91
A66: Wärmenutzungs-bonus | C66: Geothermie
A67: W | B67: Wärmenutzungsbonus | D67: § 28 Abs. 2 EEG; Anlage 4 | F67: 3 | G67: 2.97 | H67: 2.94
A69: Bonus für Einsatz petrothermaler Technik | C69: Geothermie
A70: P | B70: Bonus petrothermale Technik | D70: § 28 Abs. 3 EEG | F70: 4 | G70: 3.96 | H70: 3.92
A72: Systemdienst-leistungsbonus | C72: Wind
A73: S | B73: Systemdienstleistungs-bonus | D73: § 29 Abs. 2 EEG | F73: 0.5 | G73: 0.5 | H73: 0.49
A78: Hinweise zu den Bezeichnungen der Vergütungskategorien
A79: vgl. auch: Umsetzungshilfe zum EEG 2009, Version 1.1 vom 01.12.2009, Anhang 3, online unter http://www.bdew.de/bdew.nsf/id/DE_EEG-Verfahrensbeschreibun_und_-Umsetzungshilfen
A81: 1. Biomasseanlagen mit Inbetriebnahme bis Ende 2003
A82: und alle anderen Anlagen mit Inbetriebnahme bis Juli 2004
A83: Stellen 1-2: | B83: Energieart:
B84: Wa = Wasser,
B85: Bi = Biomasse,
B86: Ga = Deponie-, Klär- und Grubengas
B87: Ge = Geothermie
B88: Wi = Wind
B89: So = Solarenergie
A90: Stelle 3: | B90: „K“ für Kategorie
A91: Stelle 4 | B91: relevanter Paragraph aus dem EEG 2000:
B92: 4 für Wasserkraft sowie Deponie-, Klär- und Grubengas
B93: 5 für Biomasse
B94: 6 für Geothermie
B95: 7 für Windenergie
B96: 8 für Solarenergie
A97: Stelle 5 | B97: fortlaufende Nummer (i.d.R. entsprechende(r) Satz/ Ziffer innerhalb des Paragraphen) zur Angabe der jeweiligen Vergütungszone
A98: Stelle 6 | B98: „n“ bei Biomasseanlagen für die Vergütungszone 0-150 kW
B99: „a“ sonst
A100: Stellen 7-12 (Biomasse) | B100: Angabe der Bonusregelungen:
B101: Die Kürzel für die gewährten Vergütungsboni werden in den Stellen 7 bis 12 nach und nach in folgender Reihenfolge eingeführt:
B102: 1. NaWaRo-Bonus (a1, a2, a3, G, M1, M2, L, X1 oder X2)
B103: 2. KWK-Bonus (KWK, KA3 oder K09)
B104: 3. Formaldehyd-Bonus (y)
B105: Alle 3 Bonustypen sind – unter Beachtung der verschiedenen Geltungsbereiche (Vergütungszonen) – miteinander kombinierbar.
B106: Weitere, noch freie Stellen werden mit Minuszeichen aufgefüllt.
A107: Stellen 7-12 (außer Biomasse) | B107: Minuszeichen
A108: Stellen 13 bis 14: | B108: Inbetriebnahmejahr (2-stellig)
A111: 2. Biomasseanlagen des Inbetriebnahmezeitraums Januar 2004 bis Ende 2008
A112: und alle anderen Anlagen des Inbetriebnahmezeitraums August 2004 bis Ende 2008
A113: Stellen 1-2: | B113: Energieart (vgl. oben)
A114: Stelle 3: | B114: „K“ für Kategorie
A115: Stelle 4 (Wa, Ga, Bi, Ge) bzw. 4-5 (Wind, Solar) | B115: relevanter Paragraph aus dem EEG 2004:
B116: 6 für Wasserkraft
B117: 7 für Deponie-, Klär- und Grubengas
B118: 8 für Biomasse
B119: 9 für Geothermie
B120: 10 für Windenergie
B121: 11 für Solarenergie
A122: Stelle 5 (Wa, Ga, Bi, Ge) bzw. 6 (Wind, Solar) | B122: fortlaufende Nummer (i.d.R. entsprechende(r) Satz/ Ziffer innerhalb des Paragraphen zur Angabe der einzelnen Vergütungszone
B123: bzw. zur Darstellung weiterer vergütungsrelevanter Angaben:
B124: a) Zuschlag bei Gasen nach EEG 2004
B125: b) Wind: Unterscheidung zwischen Anfangs- und Endvergütung
B126: c) Solarenergie: Fassadenbonus
A127: Stellen 6 bis 12 (Biomasse) | B127: Angabe der Vergütungsboni bei Biomasseanlagen
B128: Die Kürzel für die gewährten Vergütungsboni werden in den Stellen 6 bis 12 nach und nach in folgender Reihenfolge eingeführt:
B129: 1. NaWaRo-Bonus (a1, a2, a3, G, M1, M2, L, X1 oder X2)
B130: 2. Technologiebonus (b)
B131: 3. Formaldehyd-Bonus (y)
B132: 4. KWK-Bonus (KWK, KA3, K09, K10, K11 oder K12)
B133: Alle 4 Bonustypen sind – unter Beachtung der verschiedenen Geltungsbereiche (Vergütungszonen) – miteinander kombinierbar.
B134: Freie Stellen bis Stelle 12 werden mit Minuszeichen aufgefüllt.
A135: Stellen 6 bis 7 (Geothermie) | B135: Angabe der Vergütungsboni bei Geothermieanlagen :
B136: Die Kürzel für die gewährten Vergütungsboni werden in den Stellen 6 bis 7 in folgender Reihenfolge eingeführt:
B137: 1. Wärmenutzungs-Bonus (W)
B138: 2. Bonus für petrothermale Techniken (P)
B139: Die Bonustypen sind miteinander kombinierbar.
B140: Freie Stellen bis Stelle 12 werden mit Minuszeichen aufgefüllt.
A141: Stelle 7 (Windenergie) | B141: Angabe des Systemdienstleistungs-Bonus (SDL-Bonus):
B142: „S“ bei Vorliegen der Voraussetzungen für den SDL-Bonus
B143: Alle weiteren Stellen bis Stelle 12 werden mit Minuszeichen aufgefüllt
A144: Stellen 13 bis 14: | B144: Inbetriebnahmejahr (2-stellig)
A147: 3. Anlagen mit Vergütung nach EEG 2009
A148: Stellen 1-2: | B148: Energieart:
B149: Wa = Wasser,
B150: Bi = Biomasse,
B151: De = Deponiegas (ab Inbetriebnahmejahr 2009)
B152: Kl = Klärgas (ab Inbetriebnahmejahr 2009)
B153: Gr = Grubengas (ab Inbetriebnahmejahr 2009)
B154: Ge = Geothermie
B155: Wn = Wind onshore (ab Inbetriebnahmejahr 2009)
B156: Wr = Wind Repowering (ab Inbetriebnahmejahr 2009)
B157: Wf = Wind offshore (ab Inbetriebnahmejahr 2009)
B158: So = Solarenergie-Freiflächenanlagen
B159: Sg = Solarenergie an oder auf Gebäuden (ab Inbetriebnahmejahr 2009)
A160: Stelle 3: | B160: „K“ für Kategorie
A161: Stellen 4-5 | B161: relevanter Paragraph aus dem EEG 2009:
B162: 23 für Wasserkraft
B163: 24 für Deponiegas
B164: 25 für Klärgas
B165: 26 für Grubengas
B166: 27 für Biomasse
B167: 28 für Geothermie
B168: 29 für Windenergie an Land
B169: 30 für Windenergie an Land Repowering
B170: 31 für Windenergie offshore
B171: 32 für Solarenergie (Freiflächenanlagen)
B172: 33 für Solarenergie an oder auf Gebäuden
A173: Stelle 6 | B173: fortlaufende Nummer (i.d.R. entsprechende(r) Satz/ Ziffer innerhalb des Paragraphen) zur Darstellung der jeweiligen Vergütungszone
B174: oder anderer vergütungsrelevanter Angaben:
B175: a) Wasserkraft: modernisierte Anlage oder Neubau
B176: b) Windenergie: Anfangs- oder Endvergütung
B177: c) Solarenergie: „normale“ Vergütung oder Eigenverbrauch
A178: Stelle 7-8 (Biomasse) | B178: Angabe der Vergütungsboni:
B179: Die Kürzel für die gewährten Vergütungsboni werden in den Stellen 7 bis 12 nach und nach in folgender Reihenfolge eingeführt:
B180: 1. Technologiebonus (t1, t2, t3)
B181: 2. NaWaRo-Bonus (a1, a2, ah, G, M1, M2, L, X1 oder X2)
B182: 3. Formaldehyd-Bonus (i)
B183: 4. KWK-Bonus (K)
B184: Alle 4 Bonustypen sind – unter Beachtung der verschiedenen Geltungsbereiche (Vergütungszonen) – miteinander kombinierbar.
A185: Stellen 7-8 (Geothermie) | B185: Angabe der Vergütungsboni:
B186: Die Kürzel für die gewährten Vergütungsboni werden in den Stellen 7 bis 8 in folgender Reihenfolge eingeführt:
B187: 1. Wärmenutzungs-Bonus (W)
B188: 2. Bonus für petrothermale Techniken (P)
B189: Die Bonustypen sind miteinander kombinierbar.
A190: Stelle 7 (Windenergie) | B190: Angabe des Systemdienstleistungs-Bonus (SDL-Bonus):
B191: „S“ bei Vorliegen der Voraussetzungen für den SDL-Bonus
A192: Stellen 7-8 (Solar) | B192: Angabe zum Solarstrom-Selbstverbrauch in Stelle 7:
B193: "1" - fiktive Einspeisung des selbstverbrauchten Stroms
B194: "2" - fiktive Rückspeisung des selbstverbrauchten Stroms, ggf. nur Anteil bis zu 30 % der Gesamterzeugung der Anlage im Kalenderjahr
B195: "3" - fiktive Rückspeisung des selbstverbrauchten Stroms über 30 % der Gesamterzeugung der Anlage im Kalenderjahr
B196: In Stelle 8 wird die Leistungsstufe (0 … 30 kW, 30 … 100 kW und 100 … 500 kW) unterschieden.
A197: Stellen 7-12 | B197: "BS" (teilweise nur "B") für Bestandsschutz: Durch Übergangsbestimmungen geregelter Investitionsschutz des Weitergeltens von Vergütungen
A198: Alle weiteren Stellen bis Stelle 12 werden mit Minuszeichen aufgefüllt, Ausnahmen:
B199: - unterjährig einsetzende neue Vergütungssätze (bei Photovoltaikanlagen ab Juli, September oder Oktober): Monatsangaben in den Stellen 10 bis 12
B200: - "BS" (teilweise nur "B") für Bestandsschutz: Durch Übergangsbestimmungen geregelter Investitionsschutz des Weitergeltens von Vergütungen
A201: Stellen 13 bis 14: | B201: Inbetriebnahmejahr (2-stellig)
A204: 4. Anlagen mit Vergütung nach EEG 2012
A205: Stellen 1-2: | B205: Energieart:
B206: Wa = Wasser,
B207: Bi = Biomasse,
B208: Ga = Deponie-, Klär- oder Grubengas (bis Inbetriebnahmejahr 2008)
B209: De = Deponiegas (ab Inbetriebnahmejahr 2009)
B210: Kl = Klärgas (ab Inbetriebnahmejahr 2009)
B211: Gr = Grubengas (ab Inbetriebnahmejahr 2009)
B212: Ge = Geothermie
B213: Wi = Wind (bis Inbetriebnahmejahr 2008)
B214: Wn = Wind onshore (ab Inbetriebnahmejahr 2009)
B215: Wr = Wind Repowering (ab Inbetriebnahmejahr 2009)
B216: Wf = Wind offshore (ab Inbetriebnahmejahr 2009)
B217: So = Solarenergie-Freiflächenanlagen (auch an oder auf Gebäuden bis Inbetriebnahmejahr 2008)
B218: Sg = Solarenergie an oder auf Gebäuden (ab Inbetriebnahmejahr 2009)
A219: Stelle 3: | B219: „K“ für Kategorie
A220: Stellen 4-5, teils 4-6 | B220: relevanter Paragraph aus dem EEG 2012:
B221: 17 für Verringerung des Vergütungsanspruchs (alle Energieträger)
B222: 23 für Wasserkraft
B223: 24 für Deponiegas
B224: 25 für Klärgas
B225: 26 für Grubengas
B226: 27 für Biomasse
B227: 27a für Vergärung von Bioabfällen (Energieträger Biomasse)
B228: 27b für Vergärung von Gülle (Energieträger Biomasse)
B229: 28 für Geothermie
B230: 29 für Windenergie an Land
B231: 30 für Windenergie an Land Repowering
... 74 more rows

Sheet Beispiel Solarstromeigenverbr. (hidden)
A1: Beispiel für den Solarstrom-Eigenverbrauch einer PV-Anlage
A3: Photovoltaikanlage an oder auf Gebäude, Inbetriebnahme im Juli 2010
A4: elektrische Leistung: 200 kW
A5: Von der gesamten im Kalenderjahr erzeugten Strommenge von 200.000 kWh werden zeitgleich 80.000 kWh nach § 33 Abs. 2 EEG selbst verbraucht.
A7: 1. Aufteilung auf die Leistungszonen
A9: Bei Photovoltaikanlagen erfolgt die Aufteilung der Einspeisung auf die Leistungszone entsprechend der installierten Leistung.
A11: Der Leistungszone 0-30 kW werden zugerechnet:
A12: 30 / 200 = 15 % der erzeugten und selbstverbrauchten Strommenge
B13: Gesamterzeugung: | D13: 30.000 kWh
B14: Selbstverbrauch: | D14: 12.000 kWh
B15: davon | C15: bis 30 % Gesamterzeugung: | D15: 9.000 kWh
C16: über 30 % Gesamterzeugung: | D16: 3.000 kWh
B17: Einspeisung ins Netz: | D17: 18.000 kWh
A19: Der Leistungszone 30-100 kW werden zugerechnet:
A20: 70 / 200 = 35 % der erzeugten und selbstverbrauchten Strommenge
B21: Gesamterzeugung: | D21: 70.000 kWh
B22: Selbstverbrauch: | D22: 28.000 kWh
B23: davon | C23: bis 30 % Gesamterzeugung: | D23: 21.000 kWh
C24: über 30 % Gesamterzeugung: | D24: 7.000 kWh
B25: Einspeisung ins Netz: | D25: 42.000 kWh
A27: Der Leistungszone 100-1000 kW werden zugerechnet:
A28: Rest: 100 / 200 = 50 % der erzeugten und selbstverbrauchten Strommenge
B29: Gesamterzeugung: | D29: 100.000 kWh
B30: Selbstverbrauch: | D30: 40.000 kWh
B31: davon | C31: bis 30 % Gesamterzeugung: | D31: 30.000 kWh
C32: über 30 % Gesamterzeugung: | D32: 10.000 kWh
B33: Einspeisung ins Netz: | D33: 60.000 kWh
A36: 2. Vergütungskategorien
A38: Aus diesen Angaben ergibt sich folgende Aufteilung der gesamten EEG-Strommenge auf die Vergütungskategorien:
A40: Vergütungskategorie | B40: Vergütungssatz der Vergütungskategorie | D40: Strommenge, die der jeweiligen Kategorie zugerechnet wird | F40: Vergütung | H40: Beschreibung der Vergütungskategorie
B41: (ct/kWh) | D41: (kWh) | F41: (Euro)
A43: SgK330---Jul10 | B43: 34.05 | D43: 18000 | F43: =D43*B43/100 -> 6129 | H43: 0-30 KW
A44: SgK33410-Jul10 | B44: 34.05 | D44: 12000 | F44: 4086 | H44: 0-30 KW, selbstverbrauchte Erzeugung
A45: SgK33420-Jul10 | B45: 16.38 | D45: -9000 | F45: -1474.2 | H45: 0-30 KW, Rückvergütung für Selbstverbrauch bis 30% der Gesamterzeugung der Anlage
A46: SgK33430-Jul10 | B46: 12 | D46: -3000 | F46: -360 | H46: 0-30 KW, Rückvergütung für Selbstverbrauch über 30% der Gesamterzeugung der Anlage
A47: SgK331---Jul10 | B47: 32.39 | D47: 42000 | F47: 13603.8 | H47: 30-100 KW
A48: SgK33411-Jul10 | B48: 32.39 | D48: 28000 | F48: 9069.2 | H48: 30-100 KW, selbstverbrauchte Erzeugung
A49: SgK33421-Jul10 | B49: 16.38 | D49: -21000 | F49: -3439.8 | H49: 30-100 KW, Rückvergütung für Selbstverbrauch bis 30% der Gesamterzeugung der Anlage
A50: SgK33431-Jul10 | B50: 12 | D50: -7000 | F50: -840 | H50: 30-100 KW, Rückvergütung für Selbstverbrauch über 30% der Gesamterzeugung der Anlage
A51: SgK332---Jul10 | B51: 30.65 | D51: 60000 | F51: 18390 | H51: 100 KW-1 MW
A52: SgK33412-Jul10 | B52: 30.65 | D52: 40000 | F52: 12260 | H52: 100-500 KW, selbstverbrauchte Erzeugung
A53: SgK33422-Jul10 | B53: 16.38 | D53: -30000 | F53: -4914 | H53: 100-500 KW, Rückvergütung für Selbstverbrauch bis 30% der Gesamterzeugung der Anlage
A54: SgK33432-Jul10 | B54: 12 | D54: -10000 | F54: -1200 | H54: 100-500 KW, Rückvergütung für Selbstverbrauch über 30% der Gesamterzeugung der Anlage
A56: Summe | D56: =SUM(D43:D54) -> 120000 | F56: =SUM(F43:F54) -> 51310
A58: Die summierte Strommenge von 120.000 kWh entspricht der tatsächlichen Netzeinspeisung.
A59: Diese Strommenge ist bei der Berechnung der vermiedenen Netzentgelte zugrunde zu legen.
A60: Das heißt, dass für den selbst verbrauchten Strom (im Beispiel 80.000 kWh) keine vermiedenen Netzentgelte berechnet werden.
A63: 3. Berechnung der vermiedenen Netzentgelte:
A65: Erfolgt die Einspeisung z.B. in Spannungsebene 5 (Mittelspannung), so werden die vermiedenen Netzentgelte in die vNNE-Kategorie
A66: der Spannungsebene 5 eingetragen:
A67: Sg-vNNe--SpE05
A69: Die Höhe der vermiedenen Netzentgelte bemisst sich allerdings nach den Netzentgelten (Leistungsanteil und Arbeitsanteil) der
A70: Spannungsebene, in der durch die EEG-Einspeisung Netznutzung vermieden wird.
A71: In der Regel ist dies die Netz- bzw. Umspannebene, die der Einspeiseebene direkt vorgelagert ist - in diesem Beispiel wäre demnach
A72: das Netzentgelt der Ebene 4 (HS/MS) für die Berechnung der vermiedenen Netzentgelte maßgeblich.

Sheet Beispiel Biomasseanlage (hidden)
A1: Beispiel für die Einordnung einer EEG-Anlage in die zutreffenden EEG-Vergütungskategorien
A3: Biomasseanlage, Inbetriebnahme in 2006
A4: elektrische Leistung: 400 kW
A5: Stromerzeugung erfolgt zu 30% in KWK-Betrieb, Anforderungen der Anlage 3 zum EEG werden erfüllt
A6: Die Anlage hat Anspruch auf den allgemeinen NaWaRo-Bonus a1
A8: Berechnung der EEG-Vergütung in 2009:
A10: 1. Berechnung der Leistung nach § 18 Abs. 2 EEG, die für die Aufteilung in die Vergütungszonen relevant ist ("Bemessungsleistung"):
A12: EEG-Strom-Erzeugung in 2009: | D12: W2009 = | E12: 3285000 | F12: kWh
A14: Anzahl der Stunden des Jahres 2009: | D14: n2009 = | E14: 8760 | F14: h
A16: Anzahl der Stunden von Jahresbeginn 2009 bis zur erstmaligen
A17: Erzeugung von Strom aus Erneuerbaren Energien | D17: n2009,vorEEGErzeugung = | E17: 0 | F17: h
A19: Anzahl der Stunden im Jahr 2009 von der endgültigen
A20: Stilllegung bis zum Ende des Kalenderjahres 2009: | D20: n2009,nachStillegung = | E20: 0 | F20: h
A22: Bemessungsleistung PB,i nach § 18 Abs. 2 EEG: | D22: PB,2009 = | E22: =E12/(E14-E17-E20) -> 375 | F22: kW
A24: Formel für PB,i allgemein (vgl. EEG-Verfahrensbeschreibung):
A31: 2. Aufteilung der Stromerzeugung auf die Vergütungskategorien:
A33: zu beachten: | B33: 1. Aufteilung auf die Leistungszonen 0-150 kW und 150-500 kW
B34: 2. Aufteilung zwischen KWK-Anteil und Nicht-KWK-Anteil
A36: Der Leistungszone 0-150 kW werden zugerechnet:
A37: 150 / 375 = 40 % der erzeugten Strommenge
A38: davon entfallen | B38: 70 % auf den Nicht-KWK-Anteil und
B39: 30 % auf den KWK-Anteil
A41: Der Leistungszone 150-500 kW werden zugerechnet:
A42: (375-150) / 375 = 60 % der erzeugten Strommenge
A43: davon entfallen | B43: 70 % auf den Nicht-KWK-Anteil und
B44: 30 % auf den KWK-Anteil
A47: Aus diesen Angaben ergibt sich folgende Aufteilung der gesamten EEG-Strommenge auf die Vergütungskategorien:
A49: Vergütungskategorie | B49: Anteil der gesamten Strom-erzeugung, der der jeweilig. Kategorie zugerechnet wird | D49: Strommenge, die der jeweiligen Kategorie zugerechnet wird | F49: Vergütungssatz der Vergütungskategorie | G49: Vergütung
E50: (kWh) | F50: (ct/kWh) | G50: (Euro)
A52: BiK81a1-----06 | B52: 40% * 70% = | C52: =0.4*0.7 -> 0.28 | D52: 28% von 3.285.000 = | E52: =C52*E$12 -> 919800 | F52: 17.67 | G52: =E52*F52/100 -> 162528.66
A53: BiK81a1KA3--06 | B53: 40% * 30% = | C53: =0.4*0.3 -> 0.12 | D53: 12% von 3.285.000 = | E53: =C53*E$12 -> 394200 | F53: 20.67 | G53: =E53*F53/100 -> 81481.14
A54: BiK82a1-----06 | B54: 60% * 70% = | C54: =0.6*0.7 -> 0.42 | D54: 42% von 3.285.000 = | E54: =C54*E$12 -> 1379700 | F54: 15.6 | G54: =E54*F54/100 -> 215233.2
A55: BiK82a1KA3--06 | B55: 60% * 30% = | C55: =0.6*0.3 -> 0.18 | D55: 18% von 3.285.000 = | E55: =C55*E$12 -> 591300 | F55: 18.6 | G55: =E55*F55/100 -> 109981.8
A57: Summe | C57: =SUM(C52:C55) -> 1 | E57: =SUM(E52:E55) -> 3285000 | G57: =SUM(G52:G55) -> 569224.8
A60: In Formelschreibweise lässt sich die Vergütungsberechnung für 2009 in diesem Beispiel wie folgt darstellen:
A75: = 162.528,66 Euro + 81.481.14 Euro + 215.233,20 Euro + 109.981,80 Euro
A77: = 569.224,80 Euro
A82: 3. Berechnung der vermiedenen Netzentgelte:
A84: Erfolgt die Einspeisung z.B. in Spannungsebene 5 (Mittelspannung), so werden die vermiedenen Netzentgelte in die vNNE-Kategorie
A85: der Spannungsebene 5 eingetragen:
A86: Bi-vNNe--SpE05
A88: Die Höhe der vermiedenen Netzentgelte bemisst sich allerdings nach den Netzentgelten (Leistungsanteil und Arbeitsanteil) der
A89: Spannungsebene, in der durch die EEG-Einspeisung Netznutzung vermieden wird.
A90: In der Regel ist dies die Netz- bzw. Umspannebene, die der Einspeiseebene direkt vorgelagert ist - in diesem Beispiel wäre demnach
A91: das Netzentgelt der Ebene 4 (HS/MS) für die Berechnung der vermiedenen Netzentgelte maßgeblich.

Sheet Konfiguration (hidden)
A1: Energieträger | B1: Typ | C1: Erlaubt in Stammdaten ? | D1: Code | E1: ShortCode | G1: Spannungsebenen | I1: Code | L1: Einspeisemanagement | M1: Code | N1: Erlaubt in Auswahl ? | P1: Bundesländer | Q1: Code | S1: Buchungstypen | U1: Prüfungsschritt/Fehlernummer: | V1: Fehlerbeschreibung | W1: Zeile (bei Schritt 1 u. 2) bzw. Anlagenschlüssel (bei Schritt 3) | X1: Tabellenblatt (nur bei Schritt 1 und 2) | Y1: Spalte (nur bei Schritt 2, sofern möglich) | AB1: Inbetriebnahmejahre | AC1: Von | AD1: Bis | AF1: SORT_KEY | AG1: TYP | AH1: EEG_Kategorien | AI1: VEG | AJ1: VEG_KONTROLLE | AK1: VIN_Kontrolle | AL1: VIN | AM1: Leistungsgrenze Von | AN1: Leistungsgrenze Bis | AO1: Ergänzende Infos | AP1: TEC-Bonus | AQ1: KWK-Bonus | AR1: RV-Anteil | AS1: KWK | AT1: Anfangs (A) bzw. Endvergütung (Bei Wind) oder SV-kategorie (Sv) o. Spanungsebene (bei vNNE) o. nur Negative Vergütung (NegVerg) oder nur gegen Nachweis (NACHWEIS) oder Modernisierung (MOD) oder Marktintegrationsmodell (MIM/MIMA) oder Bemessungsleistung (BEM) oder Flexibilitätszuschalg (FLZ) oder Bezugsmonat bei DV oder Bedingung (PotMIM) für MIM bzw. Auschlusskriterium für MIM (NotMIM) | AU1: Vergütungssatz | AV1: Ausfallvergütung | AW1: anz-wert | AX1: Fernsteuerbar | BA1: MPM-Auswahl | BD1: AV-Ausswahl | BG1: Erläuterung der 3 Prüfungsschritte: | BV1: Legende zu Gründen für die nachträgliche Korrekturen nach § 62 EEG 2014 | BW1: ausführliche Gründe | BY1: Ausnahmen | CA1: Ausnahmen vNE
A2: Wasser | B2: Wasserkraft | C2: Ja | D2: Wasser | E2: Wa | G2: HöS | H2: keine gültige Spannungsebene | I2: HOES | J2: - | L2: Nicht regelbar | M2: nr | N2: Ja | P2: Baden-Württemberg | Q2: BW | S2: BIL | AB2: Inbetriebnahme 01.01. bis 31.07.2004 | AC2: 2004-01-01 | AD2: 2004-07-31 | AF2: 1 | AG2: EEG | AH2: WaK41a------01 | AI2: Wasser | AJ2: =VLOOKUP(AI2,ENERGIETRAEGER,1,FALSE) -> Wasser | AK2: =VLOOKUP(AL2,VIN,1,FALSE) -> Inbetriebnahme bis 2001 | AL2: Inbetriebnahme bis 2001 | AO2: 0-0,5 MW | AU2: 7.67 | AV2: 6.14 | AW2: 7.67 | AZ2: EEG | BA2: WaK41a------01 | BC2: EEG | BD2: WaK41a------01 | BG2: Schritt 1 von 3 (Stammdatenprüfung): | BH2: Prüfung der Stammdaten (Tabellenblatt "Stammdaten") auf Vollständigkeit und Gültigkeit | BV2: 1a | BW2: 1 a) Rückforderungen mit Abwicklung im aktuellen Prüfungsvermerk auf Grund von § 57 Abs. 5 EEG 2014 (§62 Abs. 1 Nr. 1 EEG 2014) | BY2: Volllaststunden | CA2: Abweichender Arbeitsanteil
A3: Biomasse | B3: Biomasse | C3: Ja | D3: Biomasse | E3: Bi | G3: Hös/HS | H3: Spannungsebene: HöS | I3: HSHOES | J3: HOES | L3: regelbar nach § 9 Abs. 1 EEG 2014 | M3: P61 | N3: Ja | P3: Bayern | Q3: BY | S3: BIP | AB3: Inbetriebnahme 01-03/2012 | AC3: 2012-01-01 | AD3: 2012-03-31 | AF3: 2 | AG3: EEG | AH3: WaK42a------01 | AI3: Wasser | AJ3: Wasser | AK3: Inbetriebnahme bis 2001 | AL3: Inbetriebnahme bis 2001 | AO3: 0,5-5 MW | AU3: 6.65 | AV3: 5.32 | AW3: 6.65 | AZ3: EEG | BA3: WaK42a------01 | BC3: EEG | BD3: WaK42a------01 | BG3: Schritt 2a von 3 (Bewegungsdatenprüfung ohne Marktprämie): | BH3: Prüfung der Angaben in den Tabellenblättern "Einspeisevergütung_Sonst", "Ausfallvermarktung", "Nachträgliche Korrekturen", "Eigenversorgung" und "vNE" auf Vollständigkeit und Gültigkeit (nur möglich, wenn die Stammdatenprüfung ohne Fehler durchlaufen wurde) | BV3: 2 | BW3: 2. rechtskräftige Gerichtsentscheidungen im Hauptsacheverfahren (§ 62 Abs. 1 Nr. 2 EEG 2014) | BY3: Fehlende Bewegungsdaten | CA3: Abweichender Leistungsanteil
A4: Geothermie | B4: Geothermie | C4: Ja | D4: Geothermie | E4: Ge | G4: HS | H4: Spannungsebene: Hös/HS | I4: HS | J4: HSHOES | L4: regelbar nach § 9 Abs. 2 EEG 2014 | M4: P62 | N4: Ja | P4: Hessen | Q4: HE | S4: GAL | AB4: Inbetriebnahme 01-06/2010 | AC4: 2010-01-01 | AD4: 2010-06-30 | AF4: 3 | AG4: EEG | AH4: WaK41a------02 | AI4: Wasser | AJ4: Wasser | AK4: Inbetriebnahme 2002 | AL4: Inbetriebnahme 2002 | AO4: 0-0,5 MW | AU4: 7.67 | AV4: 6.14 | AW4: 7.67 | AZ4: EEG | BA4: WaK41a------02 | BC4: EEG | BD4: WaK41a------02 | BG4: Schritt 2b von 3 (Bewegungsdatenprüfung für Marktprämie): | BH4: Prüfung der Angaben zur Direktvermarktung vom Typ Marktprämie (Tabellenblätter "MPM_anzulegender_Wert" und "MPM_Monatswerte") auf Vollständigkeit und Gültigkeit (nur möglich, wenn die Stammdatenprüfung ohne Fehler durchlaufen wurde) | BV4: 3 | BW4: 3. Übermittlung und Abgleich von Daten nach § 61 Abs. 5 EEG 2014 (§62 Abs. 1 Nr. 3 EEG 2014) | BY4: Aufteilung des Selbstverbrauchs | CA4: Abweichender Arbeitsanteil / Abweichender Leistungsanteil
A5: Wind | B5: Windenergie an Land | C5: Ja | D5: Wind | E5: Wi | G5: HS/MS | H5: Spannungsebene: HS | I5: MSHS | J5: HS | L5: 70%-Begrenzung | M5: 70P | N5: Ja | P5: Rheinland-Pfalz | Q5: RP | S5: GAP | AB5: Inbetriebnahme 01-07/2004 | AC5: 2004-01-01 | AD5: 2004-07-31 | AF5: 4 | AG5: EEG | AH5: WaK42a------02 | AI5: Wasser | AJ5: Wasser | AK5: Inbetriebnahme 2002 | AL5: Inbetriebnahme 2002 | AO5: 0,5-5 MW | AU5: 6.65 | AV5: 5.32 | AW5: 6.65 | AZ5: EEG | BA5: WaK42a------02 | BC5: EEG | BD5: WaK42a------02 | BG5: Schritt 3 von 3 (abschließende Prüfung) | BH5: Prüfung der Gesamtergebnisse auf Plausibilität und Vollständigkeit (nur möglich, wenn alle vorherigen Prüfungsschritte ohne Fehler durchlaufen wurden) | BV5: 4 | BW5: 4. Verfahren bei der Clearingstelle nach § 81 EEG 2014 (§ 62 Abs. 1 Nr. 4 EEG 2014) | BY5: Volllaststunden u. Aufteilung des Selbstverbrauchs
A6: Solar | B6: Solare Strahlungsenergie | C6: Ja | D6: Solar | E6: So | G6: MS | H6: Spannungsebene: HS/MS | I6: MS | J6: MSHS | L6: regelbar nach § 6 Abs. 1 EEG 2012 | M6: P61 | N6: Ja | S6: GEL | AB6: Inbetriebnahme 04/2012 | AC6: 2012-04-01 | AD6: 2012-04-30 | AF6: 5 | AG6: EEG | AH6: WaK41a------03 | AI6: Wasser | AJ6: Wasser | AK6: Inbetriebnahme 2003 | AL6: Inbetriebnahme 2003 | AO6: 0-0,5 MW | AU6: 7.67 | AV6: 6.14 | AW6: 7.67 | AZ6: EEG | BA6: WaK41a------03 | BC6: EEG | BD6: WaK41a------03 | BV6: 5 | BW6: 5. Entscheidungen der Bundesnetzagentur nach § 85 EEG 2014 (§ 62 Abs. 1 Nr. 5 EEG 2014) | BY6: Marktintegrationsmodell
A7: Solar/Gebäude | B7: Solare Strahlungsenergie | C7: Ja | D7: SolarGebaeude | E7: Sg | G7: MS/NS | H7: Spannungsebene: MS | I7: NSMS | J7: MS | L7: regelbar nach § 6 Abs. 2 EEG 2012 | M7: P62 | N7: Ja | S7: GEP | AB7: Inbetriebnahme 04-06/2012 | AC7: 2012-04-01 | AD7: 2012-06-30 | AF7: 6 | AG7: EEG | AH7: WaK42a------03 | AI7: Wasser | AJ7: Wasser | AK7: Inbetriebnahme 2003 | AL7: Inbetriebnahme 2003 | AO7: 0,5-5 MW | AU7: 6.65 | AV7: 5.32 | AW7: 6.65 | AZ7: EEG | BA7: WaK42a------03 | BC7: EEG | BD7: WaK42a------03 | BV7: 6 | BW7: 6. vollstreckbarer Titel mit Anlagenbetreiber, der erst nach der Abrechnung nach § 58 Abs. 1 EEG 2014 ergangen ist (§ 62 Abs. 1 Nr. 6 EEG 2014) | BY7: Volllaststunden u. Marktintegrationsmodell
A8: Deponiegas | B8: Deponie-, Klär-, Grubengas | C8: Ja | D8: Deponiegas | E8: De | G8: NS | H8: Spannungsebene: MS/NS | I8: NS | J8: NSMS | S8: SOL | AB8: Inbetriebnahme 05/2012 | AC8: 2012-05-01 | AD8: 2012-05-31 | AF8: 7 | AG8: EEG | AH8: WaK41a------04 | AI8: Wasser | AJ8: Wasser | AK8: Inbetriebnahme 01-07/2004 | AL8: Inbetriebnahme 01-07/2004 | AO8: 0-0,5 MW | AU8: 7.67 | AV8: 6.14 | AW8: 7.67 | AZ8: EEG | BA8: WaK41a------04 | BC8: EEG | BD8: WaK41a------04 | BY8: Volllaststunden u. Marktintegrationsmodell bei < 10kWp (implizit angenommen)
A9: Klärgas | B9: Deponie-, Klär-, Grubengas | C9: Ja | D9: Klaergas | E9: Kl | S9: SOP | AB9: Inbetriebnahme 06/2012 | AC9: 2012-06-01 | AD9: 2012-06-30 | AF9: 8 | AG9: EEG | AH9: WaK42a------04 | AI9: Wasser | AJ9: Wasser | AK9: Inbetriebnahme 01-07/2004 | AL9: Inbetriebnahme 01-07/2004 | AO9: 0,5-5 MW | AU9: 6.65 | AV9: 5.32 | AW9: 6.65 | AZ9: EEG | BA9: WaK42a------04 | BC9: EEG | BD9: WaK42a------04 | BY9: Marktintegrationsmodell bei < 10kWp (implizit angenommen)
A10: Grubengas | B10: Deponie-, Klär-, Grubengas | C10: Ja | D10: Grubengas | E10: Gr | S10: SOT | AB10: Inbetriebnahme 07/2012 | AC10: 2012-07-01 | AD10: 2012-07-31 | AF10: 9 | AG10: EEG | AH10: WaK61-------04 | AI10: Wasser | AJ10: Wasser | AK10: Inbetriebnahme 08-12/2004 | AL10: Inbetriebnahme 08-12/2004 | AO10: 0-0,5 MW | AU10: 9.67 | AV10: 7.74 | AW10: 9.67 | AZ10: EEG | BA10: WaK61-------04 | BC10: EEG | BD10: WaK61-------04
A11: Wind onshore | B11: Windenergie an Land | C11: Ja | D11: WindOnshore | E11: Wn | S11: WNL | AB11: Inbetriebnahme 07-09/2010 | AC11: 2010-07-01 | AD11: 2010-09-30 | AF11: 10 | AG11: EEG | AH11: WaK62-------04 | AI11: Wasser | AJ11: Wasser | AK11: Inbetriebnahme 08-12/2004 | AL11: Inbetriebnahme 08-12/2004 | AO11: 0,5-5 MW | AU11: 6.65 | AV11: 5.32 | AW11: 6.65 | AZ11: EEG | BA11: WaK62-------04 | BC11: EEG | BD11: WaK62-------04
A12: Wind Repowering | B12: Windenergie an Land | C12: Ja | D12: WindRepowering | E12: Wr | S12: WNP | AB12: Inbetriebnahme 08/2012 | AC12: 2012-08-01 | AD12: 2012-08-31 | AF12: 11 | AG12: EEG | AH12: WaK63-------04 | AI12: Wasser | AJ12: Wasser | AK12: Inbetriebnahme 08-12/2004 | AL12: Inbetriebnahme 08-12/2004 | AO12: >5 MW , Zubau 0-0,5 MW | AU12: 7.67 | AV12: 6.14 | AW12: 7.67 | AZ12: EEG | BA12: WaK63-------04 | BC12: EEG | BD12: WaK63-------04
A13: Deponie-,Klär-,Grubengas | B13: Deponie-, Klär-, Grubengas | C13: Nein | D13: Gas | E13: Ga | S13: WAL | AB13: Inbetriebnahme 08-12/2004 | AC13: 2004-08-01 | AD13: 2004-12-31 | AF13: 12 | AG13: EEG | AH13: WaK64-------04 | AI13: Wasser | AJ13: Wasser | AK13: Inbetriebnahme 08-12/2004 | AL13: Inbetriebnahme 08-12/2004 | AO13: >5 MW , Zubau 0,5-10 MW | AU13: 6.65 | AV13: 5.32 | AW13: 6.65 | AZ13: EEG | BA13: WaK64-------04 | BC13: EEG | BD13: WaK64-------04
S14: WAP | AB14: Inbetriebnahme 09/2012 | AC14: 2012-09-01 | AD14: 2012-09-30 | AF14: 13 | AG14: EEG | AH14: WaK65-------04 | AI14: Wasser | AJ14: Wasser | AK14: Inbetriebnahme 08-12/2004 | AL14: Inbetriebnahme 08-12/2004 | AO14: >5 MW , Zubau 10-20 MW | AU14: 6.1 | AV14: 4.88 | AW14: 6.1 | AZ14: EEG | BA14: WaK65-------04 | BC14: EEG | BD14: WaK65-------04
AB15: Inbetriebnahme 10/2012 | AC15: 2012-10-01 | AD15: 2012-10-31 | AF15: 14 | AG15: EEG | AH15: WaK66-------04 | AI15: Wasser | AJ15: Wasser | AK15: Inbetriebnahme 08-12/2004 | AL15: Inbetriebnahme 08-12/2004 | AO15: >5 MW , Zubau 20-50 MW | AU15: 4.56 | AV15: 3.65 | AW15: 4.56 | AZ15: EEG | BA15: WaK66-------04 | BC15: EEG | BD15: WaK66-------04
G16: Nein | AB16: Inbetriebnahme 10-12/2010 | AC16: 2010-10-01 | AD16: 2010-12-31 | AF16: 15 | AG16: EEG | AH16: WaK67-------04 | AI16: Wasser | AJ16: Wasser | AK16: Inbetriebnahme 08-12/2004 | AL16: Inbetriebnahme 08-12/2004 | AO16: >5 MW , Zubau 50-150 MW | AU16: 3.7 | AV16: 2.96 | AW16: 3.7 | AZ16: EEG | BA16: WaK67-------04 | BC16: EEG | BD16: WaK67-------04
A17: EV-Anlagenarten | B17: Code | C17: DB-Code | G17: Ja (keine Belieferung Dritter) | AB17: Inbetriebnahme 11/2012 | AC17: 2012-11-01 | AD17: 2012-11-30 | AF17: 16 | AG17: EEG | AH17: WaK61-------05 | AI17: Wasser | AJ17: Wasser | AK17: Inbetriebnahme 2005 | AL17: Inbetriebnahme 2005 | AO17: 0-0,5 MW | AU17: 9.67 | AV17: 7.74 | AW17: 9.67 | AZ17: EEG | BA17: WaK61-------05 | BC17: EEG | BD17: WaK61-------05
A18: EEG-Anlagen | B18: EEG | C18: EEG-Anlage | G18: Ja (mit Belieferung Dritter) | AB18: Inbetriebnahme 12/2012 | AC18: 2012-12-01 | AD18: 2012-12-31 | AF18: 17 | AG18: EEG | AH18: WaK62-------05 | AI18: Wasser | AJ18: Wasser | AK18: Inbetriebnahme 2005 | AL18: Inbetriebnahme 2005 | AO18: 0,5-5 MW | AU18: 6.65 | AV18: 5.32 | AW18: 6.65 | AZ18: EEG | BA18: WaK62-------05 | BC18: EEG | BD18: WaK62-------05
A19: hocheffiziente KWK-Anlagen | B19: KWK | C19: hocheffiziente KWK-Anlage | G19: Ja | AB19: Inbetriebnahme 01/2013 | AC19: 2013-01-01 | AD19: 2013-01-31 | AF19: 18 | AG19: EEG | AH19: WaK63-------05 | AI19: Wasser | AJ19: Wasser | AK19: Inbetriebnahme 2005 | AL19: Inbetriebnahme 2005 | AO19: >5 MW , Zubau 0-0,5 MW | AU19: 7.59 | AV19: 6.07 | AW19: 7.59 | AZ19: EEG | BA19: WaK63-------05 | BC19: EEG | BD19: WaK63-------05
A20: nicht hocheffiziente KWKG-Anlagen oder konventionelle Anlagen | B20: KONV | C20: konventionelle Anlage | AB20: Inbetriebnahme 02/2013 | AC20: 2013-02-01 | AD20: 2013-02-28 | AF20: 19 | AG20: EEG | AH20: WaK64-------05 | AI20: Wasser | AJ20: Wasser | AK20: Inbetriebnahme 2005 | AL20: Inbetriebnahme 2005 | AO20: >5 MW , Zubau 0,5-10 MW | AU20: 6.58 | AV20: 5.26 | AW20: 6.58 | AZ20: EEG | BA20: WaK64-------05 | BC20: EEG | BD20: WaK64-------05
A21: nicht hocheffiziente KWKG-Anlagen | B21: KONV | C21: konventionelle Anlage | G21: Ja | AB21: Inbetriebnahme 03/2013 | AC21: 2013-03-01 | AD21: 2013-03-31 | AF21: 20 | AG21: EEG | AH21: WaK65-------05 | AI21: Wasser | AJ21: Wasser | AK21: Inbetriebnahme 2005 | AL21: Inbetriebnahme 2005 | AO21: >5 MW , Zubau 10-20 MW | AU21: 6.04 | AV21: 4.83 | AW21: 6.04 | AZ21: EEG | BA21: WaK65-------05 | BC21: EEG | BD21: WaK65-------05
A22: konventionelle Anlagen | B22: KONV | C22: konventionelle Anlage | G22: Nein | AB22: Inbetriebnahme 04/2013 | AC22: 2013-04-01 | AD22: 2013-04-30 | AF22: 21 | AG22: EEG | AH22: WaK66-------05 | AI22: Wasser | AJ22: Wasser | AK22: Inbetriebnahme 2005 | AL22: Inbetriebnahme 2005 | AO22: >5 MW , Zubau 20-50 MW | AU22: 4.51 | AV22: 3.61 | AW22: 4.51 | AZ22: EEG | BA22: WaK66-------05 | BC22: EEG | BD22: WaK66-------05
A23: Nicht-EEG-Anlagen | B23: NON-EEG | C23: konventionelle Anlage | AB23: Inbetriebnahme 05/2013 | AC23: 2013-05-01 | AD23: 2013-05-31 | AF23: 22 | AG23: EEG | AH23: WaK67-------05 | AI23: Wasser | AJ23: Wasser | AK23: Inbetriebnahme 2005 | AL23: Inbetriebnahme 2005 | AO23: >5 MW , Zubau 50-150 MW | AU23: 3.66 | AV23: 2.93 | AW23: 3.66 | AZ23: EEG | BA23: WaK67-------05 | BC23: EEG | BD23: WaK67-------05
AB24: Inbetriebnahme 06/2013 | AC24: 2013-06-01 | AD24: 2013-06-30 | AF24: 23 | AG24: EEG | AH24: WaK61-------06 | AI24: Wasser | AJ24: Wasser | AK24: Inbetriebnahme 2006 | AL24: Inbetriebnahme 2006 | AO24: 0-0,5 MW | AU24: 9.67 | AV24: 7.74 | AW24: 9.67 | AZ24: EEG | BA24: WaK61-------06 | BC24: EEG | BD24: WaK61-------06
AB25: Inbetriebnahme 07/2013 | AC25: 2013-07-01 | AD25: 2013-07-31 | AF25: 24 | AG25: EEG | AH25: WaK62-------06 | AI25: Wasser | AJ25: Wasser | AK25: Inbetriebnahme 2006 | AL25: Inbetriebnahme 2006 | AO25: 0,5-5 MW | AU25: 6.65 | AV25: 5.32 | AW25: 6.65 | AZ25: EEG | BA25: WaK62-------06 | BC25: EEG | BD25: WaK62-------06
A26: Umlagen | B26: Code EEG | C26: Code KWK | D26: Code KONV | E26: Code NON-EEG | F26: Preis | G26: Preis Vorjahr | H26: Verdichtung | AB26: Inbetriebnahme 08/2013 | AC26: 2013-08-01 | AD26: 2013-08-31 | AF26: 25 | AG26: EEG | AH26: WaK63-------06 | AI26: Wasser | AJ26: Wasser | AK26: Inbetriebnahme 2006 | AL26: Inbetriebnahme 2006 | AO26: >5 MW, Zubau 0-0,5 MW | AU26: 7.51 | AV26: 6.01 | AW26: 7.51 | AZ26: EEG | BA26: WaK63-------06 | BC26: EEG | BD26: WaK63-------06
A27: EV6111-EEG-RED | B27: EV6111-EEG-RED | C27: INVALID | D27: INVALID | E27: INVALID | F27: 1.851 | G27: 1.872 | H27: EEG-Umlage nach § 61 Abs. 1 Satz 1 Nr. 1 EEG 2014 (30% der vollen Umlage) | AB27: Inbetriebnahme 09/2013 | AC27: 2013-09-01 | AD27: 2013-09-30 | AF27: 26 | AG27: EEG | AH27: WaK64-------06 | AI27: Wasser | AJ27: Wasser | AK27: Inbetriebnahme 2006 | AL27: Inbetriebnahme 2006 | AO27: >5 MW, Zubau 0,5-10 MW | AU27: 6.51 | AV27: 5.21 | AW27: 6.51 | AZ27: EEG | BA27: WaK64-------06 | BC27: EEG | BD27: WaK64-------06
A28: EV6111NEEG-RED | B28: INVALID | C28: EV6111NEEG-RED | D28: INVALID | E28: EV6111NEEG-RED | F28: 1.851 | G28: 1.872 | H28: EEG-Umlage nach § 61 Abs. 1 Satz 1 Nr. 1 EEG 2014 (30% der vollen Umlage) | AB28: Inbetriebnahme 10/2013 | AC28: 2013-10-01 | AD28: 2013-10-31 | AF28: 27 | AG28: EEG | AH28: WaK65-------06 | AI28: Wasser | AJ28: Wasser | AK28: Inbetriebnahme 2006 | AL28: Inbetriebnahme 2006 | AO28: >5 MW , Zubau 10-20 MW | AU28: 5.98 | AV28: 4.78 | AW28: 5.98 | AZ28: EEG | BA28: WaK65-------06 | BC28: EEG | BD28: WaK65-------06
A29: EV61121NEEG100 | B29: INVALID | C29: INVALID | D29: EV61121NEEG100 | E29: EV61121NEEG100 | F29: 6.17 | G29: 6.24 | H29: EEG-Umlage nach § 61 Abs. 1 Satz 2 EEG 2014 (volle Umlage) | AB29: Inbetriebnahme 11/2013 | AC29: 2013-11-01 | AD29: 2013-11-30 | AF29: 28 | AG29: EEG | AH29: WaK66-------06 | AI29: Wasser | AJ29: Wasser | AK29: Inbetriebnahme 2006 | AL29: Inbetriebnahme 2006 | AO29: >5 MW , Zubau 20-50 MW | AU29: 4.46 | AV29: 3.57 | AW29: 4.46 | AZ29: EEG | BA29: WaK66-------06 | BC29: EEG | BD29: WaK66-------06
A30: EV61122-EEG100 | B30: EV61122-EEG100 | C30: INVALID | D30: INVALID | E30: INVALID | F30: 6.17 | G30: 6.24 | H30: EEG-Umlage nach § 61 Abs. 1 Satz 2 EEG 2014 (volle Umlage) | AB30: Inbetriebnahme 12/2013 | AC30: 2013-12-01 | AD30: 2013-12-31 | AF30: 29 | AG30: EEG | AH30: WaK67-------06 | AI30: Wasser | AJ30: Wasser | AK30: Inbetriebnahme 2006 | AL30: Inbetriebnahme 2006 | AO30: >5 MW , Zubau 50-150 MW | AU30: 3.62 | AV30: 2.9 | AW30: 3.62 | AZ30: EEG | BA30: WaK67-------06 | BC30: EEG | BD30: WaK67-------06
A31: EV61122NEEG100 | B31: INVALID | C31: EV61122NEEG100 | D31: INVALID | E31: EV61122NEEG100 | F31: 6.17 | G31: 6.24 | H31: EEG-Umlage nach § 61 Abs. 1 Satz 2 EEG 2014 (volle Umlage) | AB31: Inbetriebnahme 01/2014 | AC31: 2014-01-01 | AD31: 2014-01-31 | AF31: 30 | AG31: EEG | AH31: WaK61-------07 | AI31: Wasser | AJ31: Wasser | AK31: Inbetriebnahme 2007 | AL31: Inbetriebnahme 2007 | AO31: 0-0,5 MW | AU31: 9.67 | AV31: 7.74 | AW31: 9.67 | AZ31: EEG | BA31: WaK61-------07 | BC31: EEG | BD31: WaK61-------07
A32: EV6124-EEG---0 | B32: EV6124-EEG---0 | C32: INVALID | D32: INVALID | E32: INVALID | F32: 0 | G32: 0 | H32: EEG-Umlage nach § 61 Abs. 2 Nr. 4 EEG 2014 (keine Umlage) | AB32: Inbetriebnahme 02/2014 | AC32: 2014-02-01 | AD32: 2014-02-28 | AF32: 31 | AG32: EEG | AH32: WaK62-------07 | AI32: Wasser | AJ32: Wasser | AK32: Inbetriebnahme 2007 | AL32: Inbetriebnahme 2007 | AO32: 0,5-5 MW | AU32: 6.65 | AV32: 5.32 | AW32: 6.65 | AZ32: EEG | BA32: WaK62-------07 | BC32: EEG | BD32: WaK62-------07
A33: EV6124NEEG---0 | B33: INVALID | C33: EV604NEEG-ZINS | D33: EV604NEEG-ZINS | E33: EV604NEEG-ZINS | F33: 0 | G33: 0 | H33: EEG-Umlage nach § 61 Abs. 2 Nr. 4 EEG 2014 (keine Umlage) | AB33: Inbetriebnahme 03/2014 | AC33: 2014-03-01 | AD33: 2014-03-31 | AF33: 32 | AG33: EEG | AH33: WaK63-------07 | AI33: Wasser | AJ33: Wasser | AK33: Inbetriebnahme 2007 | AL33: Inbetriebnahme 2007 | AO33: >5 MW , Zubau 0-0,5 MW | AU33: 7.43 | AV33: 5.94 | AW33: 7.43 | AZ33: EEG | BA33: WaK63-------07 | BC33: EEG | BD33: WaK63-------07
A34: EV604-EEG-ZINS | B34: EV604-EEG-ZINS | C34: INVALID | D34: INVALID | E34: INVALID | H34: Zinsbetrag entsprechend § 60 Abs. 4 EEG i. V. m. § 7 Abs. 4 AusglMechV | AB34: Inbetriebnahme 04/2014 | AC34: 2014-04-01 | AD34: 2014-04-30 | AF34: 33 | AG34: EEG | AH34: WaK64-------07 | AI34: Wasser | AJ34: Wasser | AK34: Inbetriebnahme 2007 | AL34: Inbetriebnahme 2007 | AO34: >5 MW , Zubau 0,5-10 MW | AU34: 6.44 | AV34: 5.15 | AW34: 6.44 | AZ34: EEG | BA34: WaK64-------07 | BC34: EEG | BD34: WaK64-------07
A35: EV604NEEG-ZINS | B35: INVALID | C35: EV604NEEG-ZINS | D35: EV604NEEG-ZINS | E35: EV604NEEG-ZINS | H35: Zinsbetrag entsprechend § 60 Abs. 4 EEG i. V. m. § 7 Abs. 4 AusglMechV | AB35: Inbetriebnahme 05/2014 | AC35: 2014-05-01 | AD35: 2014-05-31 | AF35: 34 | AG35: EEG | AH35: WaK65-------07 | AI35: Wasser | AJ35: Wasser | AK35: Inbetriebnahme 2007 | AL35: Inbetriebnahme 2007 | AO35: >5 MW , Zubau 10-20 MW | AU35: 5.92 | AV35: 4.74 | AW35: 5.92 | AZ35: EEG | BA35: WaK65-------07 | BC35: EEG | BD35: WaK65-------07
AB36: Inbetriebnahme 06/2014 | AC36: 2014-06-01 | AD36: 2014-06-30 | AF36: 35 | AG36: EEG | AH36: WaK66-------07 | AI36: Wasser | AJ36: Wasser | AK36: Inbetriebnahme 2007 | AL36: Inbetriebnahme 2007 | AO36: >5 MW , Zubau 20-50 MW | AU36: 4.42 | AV36: 3.54 | AW36: 4.42 | AZ36: EEG | BA36: WaK66-------07 | BC36: EEG | BD36: WaK66-------07
AB37: Inbetriebnahme 07/2014 | AC37: 2014-07-01 | AD37: 2014-07-31 | AF37: 36 | AG37: EEG | AH37: WaK67-------07 | AI37: Wasser | AJ37: Wasser | AK37: Inbetriebnahme 2007 | AL37: Inbetriebnahme 2007 | AO37: >5 MW , Zubau 50-150 MW | AU37: 3.58 | AV37: 2.86 | AW37: 3.58 | AZ37: EEG | BA37: WaK67-------07 | BC37: EEG | BD37: WaK67-------07
AB38: Inbetriebnahme 08/2014 | AC38: 2014-08-01 | AD38: 2014-08-31 | AF38: 37 | AG38: EEG | AH38: WaK61-------08 | AI38: Wasser | AJ38: Wasser | AK38: Inbetriebnahme 2008 | AL38: Inbetriebnahme 2008 | AO38: 0-0,5 MW | AU38: 9.67 | AV38: 7.74 | AW38: 9.67 | AZ38: EEG | BA38: WaK61-------08 | BC38: EEG | BD38: WaK61-------08
AB39: Inbetriebnahme 09/2014 | AC39: 2014-09-01 | AD39: 2014-09-30 | AF39: 38 | AG39: EEG | AH39: WaK62-------08 | AI39: Wasser | AJ39: Wasser | AK39: Inbetriebnahme 2008 | AL39: Inbetriebnahme 2008 | AO39: 0,5-5 MW | AU39: 6.65 | AV39: 5.32 | AW39: 6.65 | AZ39: EEG | BA39: WaK62-------08 | BC39: EEG | BD39: WaK62-------08
AB40: Inbetriebnahme 10/2014 | AC40: 2014-10-01 | AD40: 2014-10-31 | AF40: 39 | AG40: EEG | AH40: WaK63-------08 | AI40: Wasser | AJ40: Wasser | AK40: Inbetriebnahme 2008 | AL40: Inbetriebnahme 2008 | AO40: >5 MW , Zubau 0-0,5 MW | AU40: 7.36 | AV40: 5.89 | AW40: 7.36 | AZ40: EEG | BA40: WaK63-------08 | BC40: EEG | BD40: WaK63-------08
AB41: Inbetriebnahme 11/2014 | AC41: 2014-11-01 | AD41: 2014-11-30 | AF41: 40 | AG41: EEG | AH41: WaK64-------08 | AI41: Wasser | AJ41: Wasser | AK41: Inbetriebnahme 2008 | AL41: Inbetriebnahme 2008 | AO41: >5 MW , Zubau 0,5-10 MW | AU41: 6.38 | AV41: 5.1 | AW41: 6.38 | AZ41: EEG | BA41: WaK64-------08 | BC41: EEG | BD41: WaK64-------08
A42: Liefermonate | AB42: Inbetriebnahme 12/2014 | AC42: 2014-12-01 | AD42: 2014-12-31 | AF42: 41 | AG42: EEG | AH42: WaK65-------08 | AI42: Wasser | AJ42: Wasser | AK42: Inbetriebnahme 2008 | AL42: Inbetriebnahme 2008 | AO42: >5 MW , Zubau 10-20 MW | AU42: 5.86 | AV42: 4.69 | AW42: 5.86 | AZ42: EEG | BA42: WaK65-------08 | BC42: EEG | BD42: WaK65-------08
A43: Januar | B43: 1 | AB43: Inbetriebnahme 01/2015 | AC43: 2015-01-01 | AD43: 2015-01-31 | AF43: 42 | AG43: EEG | AH43: WaK66-------08 | AI43: Wasser | AJ43: Wasser | AK43: Inbetriebnahme 2008 | AL43: Inbetriebnahme 2008 | AO43: >5 MW , Zubau 20-50 MW | AU43: 4.38 | AV43: 3.5 | AW43: 4.38 | AZ43: EEG | BA43: WaK66-------08 | BC43: EEG | BD43: WaK66-------08
A44: Februar | B44: 2 | AB44: Inbetriebnahme 02/2015 | AC44: 2015-02-01 | AD44: 2015-02-28 | AF44: 43 | AG44: EEG | AH44: WaK67-------08 | AI44: Wasser | AJ44: Wasser | AK44: Inbetriebnahme 2008 | AL44: Inbetriebnahme 2008 | AO44: >5 MW , Zubau 50-150 MW | AU44: 3.54 | AV44: 2.83 | AW44: 3.54 | AZ44: EEG | BA44: WaK67-------08 | BC44: EEG | BD44: WaK67-------08
A45: März | B45: 3 | AB45: Inbetriebnahme 03/2015 | AC45: 2015-03-01 | AD45: 2015-03-31 | AF45: 44 | AG45: EEG | AH45: WaK230------09 | AI45: Wasser | AJ45: Wasser | AK45: Inbetriebnahme 2009 | AL45: Inbetriebnahme 2009 | AO45: 0-0,5 MW, Anlage < 5 MW | AU45: 12.67 | AV45: 10.14 | AW45: 12.67 | AZ45: EEG | BA45: WaK230------09 | BC45: EEG | BD45: WaK230------09
A46: April | B46: 4 | AB46: Inbetriebnahme 04/2015 | AC46: 2015-04-01 | AD46: 2015-04-30 | AF46: 45 | AG46: EEG | AH46: WaK231------09 | AI46: Wasser | AJ46: Wasser | AK46: Inbetriebnahme 2009 | AL46: Inbetriebnahme 2009 | AO46: 0-0,5 MW, Anlage < 5 MW, Modernisierung | AT46: MOD | AU46: 11.67 | AV46: 9.34 | AW46: 11.67 | AZ46: EEG | BA46: WaK231------09 | BC46: EEG | BD46: WaK231------09
A47: Mai | B47: 5 | AB47: Inbetriebnahme 05/2015 | AC47: 2015-05-01 | AD47: 2015-05-31 | AF47: 46 | AG47: EEG | AH47: WaK232------09 | AI47: Wasser | AJ47: Wasser | AK47: Inbetriebnahme 2009 | AL47: Inbetriebnahme 2009 | AO47: 0,5-2 MW, Anlage < 5 MW | AU47: 8.65 | AV47: 6.92 | AW47: 8.65 | AZ47: EEG | BA47: WaK232------09 | BC47: EEG | BD47: WaK232------09
A48: Juni | B48: 6 | AB48: Inbetriebnahme 06/2015 | AC48: 2015-06-01 | AD48: 2015-06-30 | AF48: 47 | AG48: EEG | AH48: WaK233------09 | AI48: Wasser | AJ48: Wasser | AK48: Inbetriebnahme 2009 | AL48: Inbetriebnahme 2009 | AO48: 2-5 MW, Anlage < 5 MW | AU48: 7.65 | AV48: 6.12 | AW48: 7.65 | AZ48: EEG | BA48: WaK233------09 | BC48: EEG | BD48: WaK233------09
A49: Juli | B49: 7 | AB49: Inbetriebnahme 07/2015 | AC49: 2015-07-01 | AD49: 2015-07-31 | AF49: 48 | AG49: EEG | AH49: WaK234------09 | AI49: Wasser | AJ49: Wasser | AK49: Inbetriebnahme 2009 | AL49: Inbetriebnahme 2009 | AO49: 0,5-5 MW, Anlage < 5 MW, Modernisierung | AT49: MOD | AU49: 8.65 | AV49: 6.92 | AW49: 8.65 | AZ49: EEG | BA49: WaK234------09 | BC49: EEG | BD49: WaK234------09
A50: August | B50: 8 | AB50: Inbetriebnahme 08/2015 | AC50: 2015-08-01 | AD50: 2015-08-31 | AF50: 49 | AG50: EEG | AH50: WaK235------09 | AI50: Wasser | AJ50: Wasser | AK50: Inbetriebnahme 2009 | AL50: Inbetriebnahme 2009 | AO50: >5 MW, Zubau 0-0,5 MW | AU50: 7.29 | AV50: 5.83 | AW50: 7.29 | AZ50: EEG | BA50: WaK235------09 | BC50: EEG | BD50: WaK235------09
A51: September | B51: 9 | AB51: Inbetriebnahme 09/2015 | AC51: 2015-09-01 | AD51: 2015-09-30 | AF51: 50 | AG51: EEG | AH51: WaK236------09 | AI51: Wasser | AJ51: Wasser | AK51: Inbetriebnahme 2009 | AL51: Inbetriebnahme 2009 | AO51: >5 MW, Zubau 0,5-10 MW | AU51: 6.32 | AV51: 5.06 | AW51: 6.32 | AZ51: EEG | BA51: WaK236------09 | BC51: EEG | BD51: WaK236------09
A52: Oktober | B52: 10 | AB52: Inbetriebnahme 10/2015 | AC52: 2015-10-01 | AD52: 2015-10-31 | AF52: 51 | AG52: EEG | AH52: WaK237------09 | AI52: Wasser | AJ52: Wasser | AK52: Inbetriebnahme 2009 | AL52: Inbetriebnahme 2009 | AO52: >5 MW, Zubau 10-20 MW | AU52: 5.8 | AV52: 4.64 | AW52: 5.8 | AZ52: EEG | BA52: WaK237------09 | BC52: EEG | BD52: WaK237------09
A53: November | B53: 11 | AB53: Inbetriebnahme 11/2015 | AC53: 2015-11-01 | AD53: 2015-11-30 | AF53: 52 | AG53: EEG | AH53: WaK238------09 | AI53: Wasser | AJ53: Wasser | AK53: Inbetriebnahme 2009 | AL53: Inbetriebnahme 2009 | AO53: >5 MW, Zubau 20-50 MW | AU53: 4.34 | AV53: 3.47 | AW53: 4.34 | AZ53: EEG | BA53: WaK238------09 | BC53: EEG | BD53: WaK238------09
A54: Dezember | B54: 12 | AB54: Inbetriebnahme 12/2015 | AC54: 2015-12-01 | AD54: 2015-12-31 | AF54: 53 | AG54: EEG | AH54: WaK239------09 | AI54: Wasser | AJ54: Wasser | AK54: Inbetriebnahme 2009 | AL54: Inbetriebnahme 2009 | AO54: >5 MW, Zubau >50 MW | AU54: 3.5 | AV54: 2.8 | AW54: 3.5 | AZ54: EEG | BA54: WaK239------09 | BC54: EEG | BD54: WaK239------09
AB55: Inbetriebnahme 2002 | AC55: 2002-01-01 | AD55: 2002-12-31 | AF55: 54 | AG55: EEG | AH55: WaK230------10 | AI55: Wasser | AJ55: Wasser | AK55: Inbetriebnahme 2010 | AL55: Inbetriebnahme 2010 | AO55: 0-0,5 MW, Anlage < 5 MW | AU55: 12.67 | AV55: 10.14 | AW55: 12.67 | AZ55: EEG | BA55: WaK230------10 | BC55: EEG | BD55: WaK230------10
AB56: Inbetriebnahme 2003 | AC56: 2003-01-01 | AD56: 2003-12-31 | AF56: 55 | AG56: EEG | AH56: WaK231------10 | AI56: Wasser | AJ56: Wasser | AK56: Inbetriebnahme 2010 | AL56: Inbetriebnahme 2010 | AO56: 0-0,5 MW, Anlage < 5 MW, Modernisierung | AT56: MOD | AU56: 11.67 | AV56: 9.34 | AW56: 11.67 | AZ56: EEG | BA56: WaK231------10 | BC56: EEG | BD56: WaK231------10
AB57: Inbetriebnahme 2004 | AC57: 2004-01-01 | AD57: 2004-12-31 | AF57: 56 | AG57: EEG | AH57: WaK232------10 | AI57: Wasser | AJ57: Wasser | AK57: Inbetriebnahme 2010 | AL57: Inbetriebnahme 2010 | AO57: 0,5-2 MW, Anlage < 5 MW | AU57: 8.65 | AV57: 6.92 | AW57: 8.65 | AZ57: EEG | BA57: WaK232------10 | BC57: EEG | BD57: WaK232------10
AB58: Inbetriebnahme 2005 | AC58: 2005-01-01 | AD58: 2005-12-31 | AF58: 57 | AG58: EEG | AH58: WaK233------10 | AI58: Wasser | AJ58: Wasser | AK58: Inbetriebnahme 2010 | AL58: Inbetriebnahme 2010 | AO58: 2-5 MW, Anlage < 5 MW | AU58: 7.65 | AV58: 6.12 | AW58: 7.65 | AZ58: EEG | BA58: WaK233------10 | BC58: EEG | BD58: WaK233------10
AB59: Inbetriebnahme 2006 | AC59: 2006-01-01 | AD59: 2006-12-31 | AF59: 58 | AG59: EEG | AH59: WaK234------10 | AI59: Wasser | AJ59: Wasser | AK59: Inbetriebnahme 2010 | AL59: Inbetriebnahme 2010 | AO59: 0,5-5 MW, Anlage < 5 MW, Modernisierung | AT59: MOD | AU59: 8.65 | AV59: 6.92 | AW59: 8.65 | AZ59: EEG | BA59: WaK234------10 | BC59: EEG | BD59: WaK234------10
AB60: Inbetriebnahme 2007 | AC60: 2007-01-01 | AD60: 2007-12-31 | AF60: 59 | AG60: EEG | AH60: WaK235------10 | AI60: Wasser | AJ60: Wasser | AK60: Inbetriebnahme 2010 | AL60: Inbetriebnahme 2010 | AO60: >5 MW, Zubau 0-0,5 MW | AU60: 7.22 | AV60: 5.78 | AW60: 7.22 | AZ60: EEG | BA60: WaK235------10 | BC60: EEG | BD60: WaK235------10
AB61: Inbetriebnahme 2008 | AC61: 2008-01-01 | AD61: 2008-12-31 | AF61: 60 | AG61: EEG | AH61: WaK236------10 | AI61: Wasser | AJ61: Wasser | AK61: Inbetriebnahme 2010 | AL61: Inbetriebnahme 2010 | AO61: >5 MW, Zubau 0,5-10 MW | AU61: 6.26 | AV61: 5.01 | AW61: 6.26 | AZ61: EEG | BA61: WaK236------10 | BC61: EEG | BD61: WaK236------10
AB62: Inbetriebnahme 2009 | AC62: 2009-01-01 | AD62: 2009-12-31 | AF62: 61 | AG62: EEG | AH62: WaK237------10 | AI62: Wasser | AJ62: Wasser | AK62: Inbetriebnahme 2010 | AL62: Inbetriebnahme 2010 | AO62: >5 MW, Zubau 10-20 MW | AU62: 5.74 | AV62: 4.59 | AW62: 5.74 | AZ62: EEG | BA62: WaK237------10 | BC62: EEG | BD62: WaK237------10
AB63: Inbetriebnahme 2010 | AC63: 2010-01-01 | AD63: 2010-12-31 | AF63: 62 | AG63: EEG | AH63: WaK238------10 | AI63: Wasser | AJ63: Wasser | AK63: Inbetriebnahme 2010 | AL63: Inbetriebnahme 2010 | AO63: >5 MW, Zubau 20-50 MW | AU63: 4.3 | AV63: 3.44 | AW63: 4.3 | AZ63: EEG | BA63: WaK238------10 | BC63: EEG | BD63: WaK238------10
AB64: Inbetriebnahme 2011 | AC64: 2011-01-01 | AD64: 2011-12-31 | AF64: 63 | AG64: EEG | AH64: WaK239------10 | AI64: Wasser | AJ64: Wasser | AK64: Inbetriebnahme 2010 | AL64: Inbetriebnahme 2010 | AO64: >5 MW, Zubau >50 MW | AU64: 3.47 | AV64: 2.78 | AW64: 3.47 | AZ64: EEG | BA64: WaK239------10 | BC64: EEG | BD64: WaK239------10
AB65: Inbetriebnahme 2012 | AC65: 2012-01-01 | AD65: 2012-12-31 | AF65: 64 | AG65: EEG | AH65: WaK230------11 | AI65: Wasser | AJ65: Wasser | AK65: Inbetriebnahme 2011 | AL65: Inbetriebnahme 2011 | AO65: 0-0,5 MW, Anlage < 5 MW | AU65: 12.67 | AV65: 10.14 | AW65: 12.67 | AZ65: EEG | BA65: WaK230------11 | BC65: EEG | BD65: WaK230------11
AB66: Inbetriebnahme 2013 | AC66: 2013-01-01 | AD66: 2013-12-31 | AF66: 65 | AG66: EEG | AH66: WaK231------11 | AI66: Wasser | AJ66: =VLOOKUP(AI66,ENERGIETRAEGER,1,FALSE) -> Wasser | AK66: =VLOOKUP(AL66,VIN,1,FALSE) -> Inbetriebnahme 2011 | AL66: Inbetriebnahme 2011 | AO66: 0-0,5 MW, Anlage < 5 MW, Modernisierung | AT66: MOD | AU66: 11.67 | AV66: 9.34 | AW66: 11.67 | AZ66: EEG | BA66: WaK231------11 | BC66: EEG | BD66: WaK231------11
AB67: Inbetriebnahme 2014 | AC67: 2014-01-01 | AD67: 2014-12-31 | AF67: 66 | AG67: EEG | AH67: WaK232------11 | AI67: Wasser | AJ67: Wasser | AK67: Inbetriebnahme 2011 | AL67: Inbetriebnahme 2011 | AO67: 0,5-2 MW, Anlage < 5 MW | AU67: 8.65 | AV67: 6.92 | AW67: 8.65 | AZ67: EEG | BA67: WaK232------11 | BC67: EEG | BD67: WaK232------11
AB68: Inbetriebnahme 08-12/2014 | AC68: 2014-08-01 | AD68: 2014-12-31 | AF68: 67 | AG68: EEG | AH68: WaK233------11 | AI68: Wasser | AJ68: Wasser | AK68: Inbetriebnahme 2011 | AL68: Inbetriebnahme 2011 | AO68: 2-5 MW, Anlage < 5 MW | AU68: 7.65 | AV68: 6.12 | AW68: 7.65 | AZ68: EEG | BA68: WaK233------11 | BC68: EEG | BD68: WaK233------11
AB69: Inbetriebnahme 2015 | AC69: 2015-01-01 | AD69: 2015-12-31 | AF69: 68 | AG69: EEG | AH69: WaK234------11 | AI69: Wasser | AJ69: Wasser | AK69: Inbetriebnahme 2011 | AL69: Inbetriebnahme 2011 | AO69: 0,5-5 MW, Anlage < 5 MW, Modernisierung | AT69: MOD | AU69: 8.65 | AV69: 6.92 | AW69: 8.65 | AZ69: EEG | BA69: WaK234------11 | BC69: EEG | BD69: WaK234------11
AB70: Inbetriebnahme 2016 | AC70: 2016-01-01 | AD70: 2016-12-31 | AF70: 69 | AG70: EEG | AH70: WaK235------11 | AI70: Wasser | AJ70: Wasser | AK70: Inbetriebnahme 2011 | AL70: Inbetriebnahme 2011 | AO70: >5 MW, Zubau 0-0,5 MW | AU70: 7.14 | AV70: 5.71 | AW70: 7.14 | AZ70: EEG | BA70: WaK235------11 | BC70: EEG | BD70: WaK235------11
AB71: Inbetriebnahme 01/2016 | AC71: 2016-01-01 | AD71: 2016-01-31 | AF71: 70 | AG71: EEG | AH71: WaK236------11 | AI71: Wasser | AJ71: Wasser | AK71: Inbetriebnahme 2011 | AL71: Inbetriebnahme 2011 | AO71: >5 MW, Zubau 0,5-10 MW | AU71: 6.19 | AV71: 4.95 | AW71: 6.19 | AZ71: EEG | BA71: WaK236------11 | BC71: EEG | BD71: WaK236------11
AB72: Inbetriebnahme 02/2016 | AC72: 2016-02-01 | AD72: 2016-02-29 | AF72: 71 | AG72: EEG | AH72: WaK237------11 | AI72: Wasser | AJ72: Wasser | AK72: Inbetriebnahme 2011 | AL72: Inbetriebnahme 2011 | AO72: >5 MW, Zubau 10-20 MW | AU72: 5.68 | AV72: 4.54 | AW72: 5.68 | AZ72: EEG | BA72: WaK237------11 | BC72: EEG | BD72: WaK237------11
AB73: Inbetriebnahme 03/2016 | AC73: 2016-03-01 | AD73: 2016-03-31 | AF73: 72 | AG73: EEG | AH73: WaK238------11 | AI73: Wasser | AJ73: Wasser | AK73: Inbetriebnahme 2011 | AL73: Inbetriebnahme 2011 | AO73: >5 MW, Zubau 20-50 MW | AU73: 4.25 | AV73: 3.4 | AW73: 4.25 | AZ73: EEG | BA73: WaK238------11 | BC73: EEG | BD73: WaK238------11
AB74: Inbetriebnahme 04/2016 | AC74: 2016-04-01 | AD74: 2016-04-30 | AF74: 73 | AG74: EEG | AH74: WaK239------11 | AI74: Wasser | AJ74: Wasser | AK74: Inbetriebnahme 2011 | AL74: Inbetriebnahme 2011 | AO74: >5 MW, Zubau >50 MW | AU74: 3.43 | AV74: 2.74 | AW74: 3.43 | AZ74: EEG | BA74: WaK239------11 | BC74: EEG | BD74: WaK239------11
AB75: Inbetriebnahme 05/2016 | AC75: 2016-05-01 | AD75: 2016-05-31 | AF75: 74 | AG75: EEG | AH75: WaK230BS----12 | AI75: Wasser | AJ75: Wasser | AK75: Inbetriebnahme 2012 | AL75: Inbetriebnahme 2012 | AO75: 0-0,5 MW, Anlage 0,5-5 MW, wasserrechtliche Genehmigung vor 01.01.2012 (Bestandsschutz nach § 66 Abs. 5 EEG 2012) | AU75: 12.67 | AV75: 10.14 | AW75: 12.67 | AZ75: EEG | BA75: WaK230BS----12 | BC75: EEG | BD75: WaK230BS----12
AB76: Inbetriebnahme 06/2016 | AC76: 2016-06-01 | AD76: 2016-06-30 | AF76: 75 | AG76: EEG | AH76: WaK231BS----12 | AI76: Wasser | AJ76: Wasser | AK76: Modernisierung 2012 | AL76: Modernisierung 2012 | AO76: 0-0,5 MW, Anlage < 5 MW mit IB vor 01.08.2004, Modernisierung (Bestandsschutz nach § 66 Abs. 14 EEG 2012) | AU76: 11.67 | AV76: 9.34 | AW76: 11.67 | AZ76: EEG | BA76: WaK231BS----12 | BC76: EEG | BD76: WaK231BS----12
AB77: Inbetriebnahme 07/2016 | AC77: 2016-07-01 | AD77: 2016-07-31 | AF77: 76 | AG77: EEG | AH77: WaK232BS----12 | AI77: Wasser | AJ77: Wasser | AK77: Inbetriebnahme 2012 | AL77: Inbetriebnahme 2012 | AO77: 0,5-2 MW, Anlage 0,5-5 MW, wasserrechtliche Genehmigung vor 01.01.2012 (Bestandsschutz nach § 66 Abs. 5 EEG 2012) | AU77: 8.65 | AV77: 6.92 | AW77: 8.65 | AZ77: EEG | BA77: WaK232BS----12 | BC77: EEG | BD77: WaK232BS----12
AB78: Inbetriebnahme 08/2016 | AC78: 2016-08-01 | AD78: 2016-08-31 | AF78: 77 | AG78: EEG | AH78: WaK233BS----12 | AI78: Wasser | AJ78: Wasser | AK78: Inbetriebnahme 2012 | AL78: Inbetriebnahme 2012 | AO78: 2-5 MW, Anlage 0,5-5 MW, wasserrechtliche Genehmigung vor 01.01.2012 (Bestandsschutz nach § 66 Abs. 5 EEG 2012) | AU78: 7.65 | AV78: 6.12 | AW78: 7.65 | AZ78: EEG | BA78: WaK233BS----12 | BC78: EEG | BD78: WaK233BS----12
AB79: Inbetriebnahme 09/2016 | AC79: 2016-09-01 | AD79: 2016-09-30 | AF79: 78 | AG79: EEG | AH79: WaK234BS----12 | AI79: Wasser | AJ79: Wasser | AK79: Modernisierung 2012 | AL79: Modernisierung 2012 | AO79: 0,5-5 MW, Anlage < 5 MW mit IB vor 01.08.2004, Modernisierung (Bestandsschutz nach § 66 Abs. 14 EEG 2012) | AT79: MOD | AU79: 8.65 | AV79: 6.92 | AW79: 8.65 | AZ79: EEG | BA79: WaK234BS----12 | BC79: EEG | BD79: WaK234BS----12
AB80: Inbetriebnahme 10/2016 | AC80: 2016-10-01 | AD80: 2016-10-31 | AF80: 79 | AG80: EEG | AH80: WaK230------12 | AI80: Wasser | AJ80: Wasser | AK80: Inbetriebnahme 2012 | AL80: Inbetriebnahme 2012 | AO80: 0-0,5 MW | AU80: 12.7 | AV80: 10.16 | AW80: 12.7 | AZ80: EEG | BA80: WaK230------12 | BC80: EEG | BD80: WaK230------12
AB81: Inbetriebnahme 11/2016 | AC81: 2016-11-01 | AD81: 2016-11-30 | AF81: 80 | AG81: EEG | AH81: WaK231------12 | AI81: Wasser | AJ81: Wasser | AK81: Inbetriebnahme 2012 | AL81: Inbetriebnahme 2012 | AO81: 0,5-2 MW | AU81: 8.3 | AV81: 6.64 | AW81: 8.3 | AZ81: EEG | BA81: WaK231------12 | BC81: EEG | BD81: WaK231------12
AB82: Inbetriebnahme 12/2016 | AC82: 2016-12-01 | AD82: 2016-12-31 | AF82: 81 | AG82: EEG | AH82: WaK232------12 | AI82: Wasser | AJ82: Wasser | AK82: Inbetriebnahme 2012 | AL82: Inbetriebnahme 2012 | AO82: 2-5 MW | AU82: 6.3 | AV82: 5.04 | AW82: 6.3 | AZ82: EEG | BA82: WaK232------12 | BC82: EEG | BD82: WaK232------12
AB83: Inbetriebnahme 01-03/2016 | AC83: 2016-01-01 | AD83: 2016-06-30 | AF83: 82 | AG83: EEG | AH83: WaK233------12 | AI83: Wasser | AJ83: Wasser | AK83: Inbetriebnahme 2012 | AL83: Inbetriebnahme 2012 | AO83: 5-10 MW | AU83: 5.5 | AV83: 4.4 | AW83: 5.5 | AZ83: EEG | BA83: WaK233------12 | BC83: EEG | BD83: WaK233------12
AB84: Inbetriebnahme 04-06/2016 | AC84: 2016-04-01 | AD84: 2016-02-28 | AF84: 83 | AG84: EEG | AH84: WaK234------12 | AI84: Wasser | AJ84: Wasser | AK84: Inbetriebnahme 2012 | AL84: Inbetriebnahme 2012 | AO84: 10-20 MW | AU84: 5.3 | AV84: 4.24 | AW84: 5.3 | AZ84: EEG | BA84: WaK234------12 | BC84: EEG | BD84: WaK234------12
AB85: Inbetriebnahme 07-09/2016 | AC85: 2016-07-01 | AD85: 2016-09-30 | AF85: 84 | AG85: EEG | AH85: WaK235------12 | AI85: Wasser | AJ85: Wasser | AK85: Inbetriebnahme 2012 | AL85: Inbetriebnahme 2012 | AO85: 20-50 MW | AU85: 4.2 | AV85: 3.36 | AW85: 4.2 | AZ85: EEG | BA85: WaK235------12 | BC85: EEG | BD85: WaK235------12
AB86: Inbetriebnahme 10-12/2016 | AC86: 2016-10-01 | AD86: 2016-12-31 | AF86: 85 | AG86: EEG | AH86: WaK236------12 | AI86: Wasser | AJ86: Wasser | AK86: Inbetriebnahme 2012 | AL86: Inbetriebnahme 2012 | AO86: > 50 MW | AU86: 3.4 | AV86: 2.72 | AW86: 3.4 | AZ86: EEG | BA86: WaK236------12 | BC86: EEG | BD86: WaK236------12
AB87: Inbetriebnahme 30.06. bis 31.12.2006 | AC87: 2006-06-30 | AD87: 2006-12-31 | AF87: 86 | AG87: EEG | AH87: WaK230M-----12 | AI87: Wasser | AJ87: Wasser | AK87: Modernisierung 2012 | AL87: Modernisierung 2012 | AO87: 0-0,5 MW, IB vor 01.01.2009, Modernisierung 2012 | AT87: MOD | AU87: 12.7 | AV87: 10.16 | AW87: 12.7 | AZ87: EEG | BA87: WaK230M-----12 | BC87: EEG | BD87: WaK230M-----12
AB88: Inbetriebnahme bis 2001 | AD88: 2001-12-31 | AF88: 87 | AG88: EEG | AH88: WaK231M-----12 | AI88: Wasser | AJ88: Wasser | AK88: Modernisierung 2012 | AL88: Modernisierung 2012 | AO88: 0,5-2 MW, IB vor 01.01.2009, Modernisierung 2012 | AT88: MOD | AU88: 8.3 | AV88: 6.64 | AW88: 8.3 | AZ88: EEG | BA88: WaK231M-----12 | BC88: EEG | BD88: WaK231M-----12
AB89: Inbetriebnahme bis 2012 | AD89: 2012-12-31 | AF89: 88 | AG89: EEG | AH89: WaK232M-----12 | AI89: Wasser | AJ89: Wasser | AK89: Modernisierung 2012 | AL89: Modernisierung 2012 | AO89: 2-5 MW, IB vor 01.01.2009, Modernisierung 2012 | AT89: MOD | AU89: 6.3 | AV89: 5.04 | AW89: 6.3 | AZ89: EEG | BA89: WaK232M-----12 | BC89: EEG | BD89: WaK232M-----12
AB90: Modernisierung 2012 | AC90: 2012-01-01 | AD90: 2012-12-31 | AF90: 89 | AG90: EEG | AH90: WaK233M-----12 | AI90: Wasser | AJ90: Wasser | AK90: Modernisierung 2012 | AL90: Modernisierung 2012 | AO90: 5-10 MW, IB vor 01.01.2009, Modernisierung 2012 | AT90: MOD | AU90: 5.5 | AV90: 4.4 | AW90: 5.5 | AZ90: EEG | BA90: WaK233M-----12 | BC90: EEG | BD90: WaK233M-----12
AB91: Modernisierung 2013 | AC91: 2013-01-01 | AD91: 2013-12-31 | AF91: 90 | AG91: EEG | AH91: WaK234M-----12 | AI91: Wasser | AJ91: Wasser | AK91: Modernisierung 2012 | AL91: Modernisierung 2012 | AO91: 10-20 MW, IB vor 01.01.2009, Modernisierung 2012 | AT91: MOD | AU91: 5.3 | AV91: 4.24 | AW91: 5.3 | AZ91: EEG | BA91: WaK234M-----12 | BC91: EEG | BD91: WaK234M-----12
AB92: Modernisierung 2014 | AC92: 2014-01-01 | AD92: 2014-07-31 | AF92: 91 | AG92: EEG | AH92: WaK235M-----12 | AI92: Wasser | AJ92: Wasser | AK92: Modernisierung 2012 | AL92: Modernisierung 2012 | AO92: 20-50 MW, IB vor 01.01.2009, Modernisierung 2012 | AT92: MOD | AU92: 4.2 | AV92: 3.36 | AW92: 4.2 | AZ92: EEG | BA92: WaK235M-----12 | BC92: EEG | BD92: WaK235M-----12
AB93: Modernisierung 08-12/2014 | AC93: 2014-08-01 | AD93: 2014-12-31 | AF93: 92 | AG93: EEG | AH93: WaK236M-----12 | AI93: Wasser | AJ93: Wasser | AK93: Modernisierung 2012 | AL93: Modernisierung 2012 | AO93: > 50 MW, IB vor 01.01.2009, Modernisierung 2012 | AT93: MOD | AU93: 3.4 | AV93: 2.72 | AW93: 3.4 | AZ93: EEG | BA93: WaK236M-----12 | BC93: EEG | BD93: WaK236M-----12
AB94: Modernisierung 2015 | AC94: 2015-01-01 | AD94: 2015-12-31 | AF94: 93 | AG94: EEG | AH94: WaK230BS----13 | AI94: Wasser | AJ94: Wasser | AK94: Inbetriebnahme 2013 | AL94: Inbetriebnahme 2013 | AO94: 0-0,5 MW, Anlage 0,5-5 MW, wasserrechtliche Genehmigung vor 01.01.2012 (Bestandsschutz nach § 66 Abs. 5 EEG 2012) | AU94: 12.67 | AV94: 10.14 | AW94: 12.67 | AZ94: EEG | BA94: WaK230BS----13 | BC94: EEG | BD94: WaK230BS----13
AB95: Modernisierung 2016 | AC95: 2016-01-01 | AD95: 2016-12-31 | AF95: 94 | AG95: EEG | AH95: WaK231BS----13 | AI95: Wasser | AJ95: Wasser | AK95: Modernisierung 2013 | AL95: Modernisierung 2013 | AO95: 0-0,5 MW, Anlage < 5 MW mit IB vor 01.08.2004, Modernisierung (Bestandsschutz nach § 66 Abs. 14 EEG 2012) | AU95: 11.67 | AV95: 9.34 | AW95: 11.67 | AZ95: EEG | BA95: WaK231BS----13 | BC95: EEG | BD95: WaK231BS----13
AB96: Inbetriebnahme 07-09/2012 | AC96: 2012-07-01 | AD96: 2012-09-30 | AF96: 95 | AG96: EEG | AH96: WaK232BS----13 | AI96: Wasser | AJ96: Wasser | AK96: Inbetriebnahme 2013 | AL96: Inbetriebnahme 2013 | AO96: 0,5-2 MW, Anlage 0,5-5 MW, wasserrechtliche Genehmigung vor 01.01.2012 (Bestandsschutz nach § 66 Abs. 5 EEG 2012) | AU96: 8.65 | AV96: 6.92 | AW96: 8.65 | AZ96: EEG | BA96: WaK232BS----13 | BC96: EEG | BD96: WaK232BS----13
AB97: Inbetriebnahme bis 31.07.2014 | AD97: 2014-07-31 | AF97: 96 | AG97: EEG | AH97: WaK233BS----13 | AI97: Wasser | AJ97: Wasser | AK97: Inbetriebnahme 2013 | AL97: Inbetriebnahme 2013 | AO97: 2-5 MW, Anlage 0,5-5 MW, wasserrechtliche Genehmigung vor 01.01.2012 (Bestandsschutz nach § 66 Abs. 5 EEG 2012) | AU97: 7.65 | AV97: 6.12 | AW97: 7.65 | AZ97: EEG | BA97: WaK233BS----13 | BC97: EEG | BD97: WaK233BS----13
AB98: Inbetriebnahme ab 08.2014 | AC98: 2014-08-01 | AF98: 97 | AG98: EEG | AH98: WaK234BS----13 | AI98: Wasser | AJ98: Wasser | AK98: Modernisierung 2013 | AL98: Modernisierung 2013 | AO98: 0,5-5 MW, Anlage < 5 MW mit IB vor 01.08.2004, Modernisierung (Bestandsschutz nach § 66 Abs. 14 EEG 2012) | AU98: 8.65 | AV98: 6.92 | AW98: 8.65 | AZ98: EEG | BA98: WaK234BS----13 | BC98: EEG | BD98: WaK234BS----13
AF99: 98 | AG99: EEG | AH99: WaK230------13 | AI99: Wasser | AJ99: Wasser | AK99: Inbetriebnahme 2013 | AL99: Inbetriebnahme 2013 | AO99: 0-0,5 MW | AU99: 12.57 | AV99: 10.06 | AW99: 12.57 | AZ99: EEG | BA99: WaK230------13 | BC99: EEG | BD99: WaK230------13
AF100: 99 | AG100: EEG | AH100: WaK231------13 | AI100: Wasser | AJ100: Wasser | AK100: Inbetriebnahme 2013 | AL100: Inbetriebnahme 2013 | AO100: 0,5-2 MW | AU100: 8.22 | AV100: 6.58 | AW100: 8.22 | AZ100: EEG | BA100: WaK231------13 | BC100: EEG | BD100: WaK231------13
AF101: 100 | AG101: EEG | AH101: WaK232------13 | AI101: Wasser | AJ101: Wasser | AK101: Inbetriebnahme 2013 | AL101: Inbetriebnahme 2013 | AO101: 2-5 MW | AU101: 6.24 | AV101: 4.99 | AW101: 6.24 | AZ101: EEG | BA101: WaK232------13 | BC101: EEG | BD101: WaK232------13
AF102: 101 | AG102: EEG | AH102: WaK233------13 | AI102: Wasser | AJ102: Wasser | AK102: Inbetriebnahme 2013 | AL102: Inbetriebnahme 2013 | AO102: 5-10 MW | AU102: 5.45 | AV102: 4.36 | AW102: 5.45 | AZ102: EEG | BA102: WaK233------13 | BC102: EEG | BD102: WaK233------13
AF103: 102 | AG103: EEG | AH103: WaK234------13 | AI103: Wasser | AJ103: Wasser | AK103: Inbetriebnahme 2013 | AL103: Inbetriebnahme 2013 | AO103: 10-20 MW | AU103: 5.25 | AV103: 4.2 | AW103: 5.25 | AZ103: EEG | BA103: WaK234------13 | BC103: EEG | BD103: WaK234------13
AF104: 103 | AG104: EEG | AH104: WaK235------13 | AI104: Wasser | AJ104: Wasser | AK104: Inbetriebnahme 2013 | AL104: Inbetriebnahme 2013 | AO104: 20-50 MW | AU104: 4.16 | AV104: 3.33 | AW104: 4.16 | AZ104: EEG | BA104: WaK235------13 | BC104: EEG | BD104: WaK235------13
AF105: 104 | AG105: EEG | AH105: WaK236------13 | AI105: Wasser | AJ105: Wasser | AK105: Inbetriebnahme 2013 | AL105: Inbetriebnahme 2013 | AO105: > 50 MW | AU105: 3.37 | AV105: 2.7 | AW105: 3.37 | AZ105: EEG | BA105: WaK236------13 | BC105: EEG | BD105: WaK236------13
AF106: 105 | AG106: EEG | AH106: WaK230M-----13 | AI106: Wasser | AJ106: Wasser | AK106: Modernisierung 2013 | AL106: Modernisierung 2013 | AO106: 0-0,5 MW, IB vor 01.01.2009, Modernisierung 2013 | AT106: MOD | AU106: 12.57 | AV106: 10.06 | AW106: 12.57 | AZ106: EEG | BA106: WaK230M-----13 | BC106: EEG | BD106: WaK230M-----13
AF107: 106 | AG107: EEG | AH107: WaK231M-----13 | AI107: Wasser | AJ107: Wasser | AK107: Modernisierung 2013 | AL107: Modernisierung 2013 | AO107: 0,5-2 MW, IB vor 01.01.2009, Modernisierung 2013 | AT107: MOD | AU107: 8.22 | AV107: 6.58 | AW107: 8.22 | AZ107: EEG | BA107: WaK231M-----13 | BC107: EEG | BD107: WaK231M-----13
AF108: 107 | AG108: EEG | AH108: WaK232M-----13 | AI108: Wasser | AJ108: Wasser | AK108: Modernisierung 2013 | AL108: Modernisierung 2013 | AO108: 2-5 MW, IB vor 01.01.2009, Modernisierung 2013 | AT108: MOD | AU108: 6.24 | AV108: 4.99 | AW108: 6.24 | AZ108: EEG | BA108: WaK232M-----13 | BC108: EEG | BD108: WaK232M-----13
AF109: 108 | AG109: EEG | AH109: WaK233M-----13 | AI109: Wasser | AJ109: Wasser | AK109: Modernisierung 2013 | AL109: Modernisierung 2013 | AO109: 5-10 MW, IB vor 01.01.2009, Modernisierung 2013 | AT109: MOD | AU109: 5.45 | AV109: 4.36 | AW109: 5.45 | AZ109: EEG | BA109: WaK233M-----13 | BC109: EEG | BD109: WaK233M-----13
AF110: 109 | AG110: EEG | AH110: WaK234M-----13 | AI110: Wasser | AJ110: Wasser | AK110: Modernisierung 2013 | AL110: Modernisierung 2013 | AO110: 10-20 MW, IB vor 01.01.2009, Modernisierung 2013 | AT110: MOD | AU110: 5.25 | AV110: 4.2 | AW110: 5.25 | AZ110: EEG | BA110: WaK234M-----13 | BC110: EEG | BD110: WaK234M-----13
AF111: 110 | AG111: EEG | AH111: WaK235M-----13 | AI111: Wasser | AJ111: Wasser | AK111: Modernisierung 2013 | AL111: Modernisierung 2013 | AO111: 20-50 MW, IB vor 01.01.2009, Modernisierung 2013 | AT111: MOD | AU111: 4.16 | AV111: 3.33 | AW111: 4.16 | AZ111: EEG | BA111: WaK235M-----13 | BC111: EEG | BD111: WaK235M-----13
AF112: 111 | AG112: EEG | AH112: WaK236M-----13 | AI112: Wasser | AJ112: Wasser | AK112: Modernisierung 2013 | AL112: Modernisierung 2013 | AO112: > 50 MW, IB vor 01.01.2009, Modernisierung 2013 | AT112: MOD | AU112: 3.37 | AV112: 2.7 | AW112: 3.37 | AZ112: EEG | BA112: WaK236M-----13 | BC112: EEG | BD112: WaK236M-----13
AF113: 112 | AG113: EEG | AH113: WaK230------14 | AI113: Wasser | AJ113: Wasser | AK113: Inbetriebnahme 2014 | AL113: Inbetriebnahme 2014 | AO113: 0-0,5 MW | AU113: 12.45 | AV113: 9.96 | AW113: 12.45 | AZ113: EEG | BA113: WaK230------14 | BC113: EEG | BD113: WaK230------14
AF114: 113 | AG114: EEG | AH114: WaK231------14 | AI114: Wasser | AJ114: Wasser | AK114: Inbetriebnahme 2014 | AL114: Inbetriebnahme 2014 | AO114: 0,5-2 MW | AU114: 8.13 | AV114: 6.5 | AW114: 8.13 | AZ114: EEG | BA114: WaK231------14 | BC114: EEG | BD114: WaK231------14
AF115: 114 | AG115: EEG | AH115: WaK232------14 | AI115: Wasser | AJ115: Wasser | AK115: Inbetriebnahme 2014 | AL115: Inbetriebnahme 2014 | AO115: 2-5 MW | AU115: 6.17 | AV115: 4.94 | AW115: 6.17 | AZ115: EEG | BA115: WaK232------14 | BC115: EEG | BD115: WaK232------14
AF116: 115 | AG116: EEG | AH116: WaK233------14 | AI116: Wasser | AJ116: Wasser | AK116: Inbetriebnahme 2014 | AL116: Inbetriebnahme 2014 | AO116: 5-10 MW | AU116: 5.39 | AV116: 4.31 | AW116: 5.39 | AZ116: EEG | BA116: WaK233------14 | BC116: EEG | BD116: WaK233------14
AF117: 116 | AG117: EEG | AH117: WaK234------14 | AI117: Wasser | AJ117: Wasser | AK117: Inbetriebnahme 2014 | AL117: Inbetriebnahme 2014 | AO117: 10-20 MW | AU117: 5.19 | AV117: 4.15 | AW117: 5.19 | AZ117: EEG | BA117: WaK234------14 | BC117: EEG | BD117: WaK234------14
AF118: 117 | AG118: EEG | AH118: WaK235------14 | AI118: Wasser | AJ118: Wasser | AK118: Inbetriebnahme 2014 | AL118: Inbetriebnahme 2014 | AO118: 20-50 MW | AU118: 4.12 | AV118: 3.3 | AW118: 4.12 | AZ118: EEG | BA118: WaK235------14 | BC118: EEG | BD118: WaK235------14
AF119: 118 | AG119: EEG | AH119: WaK236------14 | AI119: Wasser | AJ119: Wasser | AK119: Inbetriebnahme 2014 | AL119: Inbetriebnahme 2014 | AO119: > 50 MW | AU119: 3.33 | AV119: 2.66 | AW119: 3.33 | AZ119: EEG | BA119: WaK236------14 | BC119: EEG | BD119: WaK236------14
AF120: 119 | AG120: EEG | AH120: WaK230M-----14 | AI120: Wasser | AJ120: Wasser | AK120: Modernisierung 2014 | AL120: Modernisierung 2014 | AO120: 0-0,5 MW, IB vor 01.01.2009, Modernisierung 2014 | AT120: MOD | AU120: 12.45 | AV120: 9.96 | AW120: 12.45 | AZ120: EEG | BA120: WaK230M-----14 | BC120: EEG | BD120: WaK230M-----14
AF121: 120 | AG121: EEG | AH121: WaK231M-----14 | AI121: Wasser | AJ121: Wasser | AK121: Modernisierung 2014 | AL121: Modernisierung 2014 | AO121: 0,5-2 MW, IB vor 01.01.2009, Modernisierung 2014 | AT121: MOD | AU121: 8.13 | AV121: 6.5 | AW121: 8.13 | AZ121: EEG | BA121: WaK231M-----14 | BC121: EEG | BD121: WaK231M-----14
AF122: 121 | AG122: EEG | AH122: WaK232M-----14 | AI122: Wasser | AJ122: Wasser | AK122: Modernisierung 2014 | AL122: Modernisierung 2014 | AO122: 2-5 MW, IB vor 01.01.2009, Modernisierung 2014 | AT122: MOD | AU122: 6.17 | AV122: 4.94 | AW122: 6.17 | AZ122: EEG | BA122: WaK232M-----14 | BC122: EEG | BD122: WaK232M-----14
AF123: 122 | AG123: EEG | AH123: WaK233M-----14 | AI123: Wasser | AJ123: Wasser | AK123: Modernisierung 2014 | AL123: Modernisierung 2014 | AO123: 5-10 MW, IB vor 01.01.2009, Modernisierung 2014 | AT123: MOD | AU123: 5.39 | AV123: 4.31 | AW123: 5.39 | AZ123: EEG | BA123: WaK233M-----14 | BC123: EEG | BD123: WaK233M-----14
AF124: 123 | AG124: EEG | AH124: WaK234M-----14 | AI124: Wasser | AJ124: Wasser | AK124: Modernisierung 2014 | AL124: Modernisierung 2014 | AO124: 10-20 MW, IB vor 01.01.2009, Modernisierung 2014 | AT124: MOD | AU124: 5.19 | AV124: 4.15 | AW124: 5.19 | AZ124: EEG | BA124: WaK234M-----14 | BC124: EEG | BD124: WaK234M-----14
AF125: 124 | AG125: EEG | AH125: WaK235M-----14 | AI125: Wasser | AJ125: Wasser | AK125: Modernisierung 2014 | AL125: Modernisierung 2014 | AO125: 20-50 MW, IB vor 01.01.2009, Modernisierung 2014 | AT125: MOD | AU125: 4.12 | AV125: 3.3 | AW125: 4.12 | AZ125: EEG | BA125: WaK235M-----14 | BC125: EEG | BD125: WaK235M-----14
AF126: 125 | AG126: EEG | AH126: WaK236M-----14 | AI126: Wasser | AJ126: Wasser | AK126: Modernisierung 2014 | AL126: Modernisierung 2014 | AO126: > 50 MW, IB vor 01.01.2009, Modernisierung 2014 | AT126: MOD | AU126: 3.33 | AV126: 2.66 | AW126: 3.33 | AZ126: EEG | BA126: WaK236M-----14 | BC126: EEG | BD126: WaK236M-----14
AF127: 126 | AG127: EEG | AH127: WaK400------14 | AI127: Wasser | AJ127: Wasser | AK127: Inbetriebnahme 08-12/2014 | AL127: Inbetriebnahme 08-12/2014 | AO127: 0-0,5 MW | AU127: 12.32 | AV127: 10.02 | AW127: 12.52 | AZ127: EEG | BA127: WaK400------14 | BC127: EEG | BD127: WaK400------14
AF128: 127 | AG128: EEG | AH128: WaK401------14 | AI128: Wasser | AJ128: Wasser | AK128: Inbetriebnahme 08-12/2014 | AL128: Inbetriebnahme 08-12/2014 | AO128: 0,5-2 MW | AU128: 8.05 | AV128: 6.6 | AW128: 8.25 | AZ128: EEG | BA128: WaK401------14 | BC128: EEG | BD128: WaK401------14
AF129: 128 | AG129: EEG | AH129: WaK402------14 | AI129: Wasser | AJ129: Wasser | AK129: Inbetriebnahme 08-12/2014 | AL129: Inbetriebnahme 08-12/2014 | AO129: 2-5 MW | AU129: 6.11 | AV129: 5.05 | AW129: 6.31 | AZ129: EEG | BA129: WaK402------14 | BC129: EEG | BD129: WaK402------14
AF130: 129 | AG130: EEG | AH130: WaK403------14 | AI130: Wasser | AJ130: =VLOOKUP(AI130,ENERGIETRAEGER,1,FALSE) -> Wasser | AK130: =VLOOKUP(AL130,VIN,1,FALSE) -> Inbetriebnahme 08-12/2014 | AL130: Inbetriebnahme 08-12/2014 | AO130: 5-10 MW | AU130: 5.34 | AV130: 4.43 | AW130: 5.54 | AZ130: EEG | BA130: WaK403------14 | BC130: EEG | BD130: WaK403------14
AF131: 130 | AG131: EEG | AH131: WaK404------14 | AI131: Wasser | AJ131: Wasser | AK131: Inbetriebnahme 08-12/2014 | AL131: Inbetriebnahme 08-12/2014 | AO131: 10-20 MW | AU131: 5.14 | AV131: 4.27 | AW131: 5.34 | AZ131: EEG | BA131: WaK404------14 | BC131: EEG | BD131: WaK404------14
AF132: 131 | AG132: EEG | AH132: WaK405------14 | AI132: Wasser | AJ132: Wasser | AK132: Inbetriebnahme 08-12/2014 | AL132: Inbetriebnahme 08-12/2014 | AO132: 20-50 MW | AU132: 4.08 | AV132: 3.42 | AW132: 4.28 | AZ132: EEG | BA132: WaK405------14 | BC132: EEG | BD132: WaK405------14
AF133: 132 | AG133: EEG | AH133: WaK406------14 | AI133: Wasser | AJ133: Wasser | AK133: Inbetriebnahme 08-12/2014 | AL133: Inbetriebnahme 08-12/2014 | AO133: > 50 MW | AU133: 3.3 | AV133: 2.8 | AW133: 3.5 | AZ133: EEG | BA133: WaK406------14 | BC133: EEG | BD133: WaK406------14
AF134: 133 | AG134: EEG | AH134: WaK400M-----14 | AI134: Wasser | AJ134: Wasser | AK134: Modernisierung 08-12/2014 | AL134: Modernisierung 08-12/2014 | AO134: 0-0,5 MW, IB vor 01.01.2009, Modernisierung 2014 | AT134: MOD | AU134: 12.52 | AV134: 10.02 | AW134: 12.52 | AZ134: EEG | BA134: WaK400M-----14 | BC134: EEG | BD134: WaK400M-----14
AF135: 134 | AG135: EEG | AH135: WaK401M-----14 | AI135: Wasser | AJ135: Wasser | AK135: Modernisierung 08-12/2014 | AL135: Modernisierung 08-12/2014 | AO135: 0,5-2 MW, IB vor 01.01.2009, Modernisierung 2014 | AT135: MOD | AU135: 8.25 | AV135: 6.6 | AW135: 8.25 | AZ135: EEG | BA135: WaK401M-----14 | BC135: EEG | BD135: WaK401M-----14
AF136: 135 | AG136: EEG | AH136: WaK402M-----14 | AI136: Wasser | AJ136: Wasser | AK136: Modernisierung 08-12/2014 | AL136: Modernisierung 08-12/2014 | AO136: 2-5 MW, IB vor 01.01.2009, Modernisierung 2014 | AT136: MOD | AU136: 6.31 | AV136: 5.05 | AW136: 6.31 | AZ136: EEG | BA136: WaK402M-----14 | BC136: EEG | BD136: WaK402M-----14
AF137: 136 | AG137: EEG | AH137: WaK403M-----14 | AI137: Wasser | AJ137: Wasser | AK137: Modernisierung 08-12/2014 | AL137: Modernisierung 08-12/2014 | AO137: 5-10 MW, IB vor 01.01.2009, Modernisierung 2014 | AT137: MOD | AU137: 5.54 | AV137: 4.43 | AW137: 5.54 | AZ137: EEG | BA137: WaK403M-----14 | BC137: EEG | BD137: WaK403M-----14
AF138: 137 | AG138: EEG | AH138: WaK404M-----14 | AI138: Wasser | AJ138: Wasser | AK138: Modernisierung 08-12/2014 | AL138: Modernisierung 08-12/2014 | AO138: 10-20 MW, IB vor 01.01.2009, Modernisierung 2014 | AT138: MOD | AU138: 5.34 | AV138: 4.27 | AW138: 5.34 | AZ138: EEG | BA138: WaK404M-----14 | BC138: EEG | BD138: WaK404M-----14
AF139: 138 | AG139: EEG | AH139: WaK405M-----14 | AI139: Wasser | AJ139: Wasser | AK139: Modernisierung 08-12/2014 | AL139: Modernisierung 08-12/2014 | AO139: 20-50 MW, IB vor 01.01.2009, Modernisierung 2014 | AT139: MOD | AU139: 4.28 | AV139: 3.42 | AW139: 4.28 | AZ139: EEG | BA139: WaK405M-----14 | BC139: EEG | BD139: WaK405M-----14
AF140: 139 | AG140: EEG | AH140: WaK406M-----14 | AI140: Wasser | AJ140: Wasser | AK140: Modernisierung 08-12/2014 | AL140: Modernisierung 08-12/2014 | AO140: > 50 MW, IB vor 01.01.2009, Modernisierung 2014 | AT140: MOD | AU140: 3.5 | AV140: 2.8 | AW140: 3.5 | AZ140: EEG | BA140: WaK406M-----14 | BC140: EEG | BD140: WaK406M-----14
AF141: 140 | AG141: EEG | AH141: WaK400------15 | AI141: Wasser | AJ141: Wasser | AK141: Inbetriebnahme 2015 | AL141: Inbetriebnahme 2015 | AO141: 0-0,5 MW | AU141: 12.32 | AV141: 10.02 | AW141: 12.52 | AZ141: EEG | BA141: WaK400------15 | BC141: EEG | BD141: WaK400------15
AF142: 141 | AG142: EEG | AH142: WaK401------15 | AI142: Wasser | AJ142: Wasser | AK142: Inbetriebnahme 2015 | AL142: Inbetriebnahme 2015 | AO142: 0,5-2 MW | AU142: 8.05 | AV142: 6.6 | AW142: 8.25 | AZ142: EEG | BA142: WaK401------15 | BC142: EEG | BD142: WaK401------15
AF143: 142 | AG143: EEG | AH143: WaK402------15 | AI143: Wasser | AJ143: Wasser | AK143: Inbetriebnahme 2015 | AL143: Inbetriebnahme 2015 | AO143: 2-5 MW | AU143: 6.11 | AV143: 5.05 | AW143: 6.31 | AZ143: EEG | BA143: WaK402------15 | BC143: EEG | BD143: WaK402------15
AF144: 143 | AG144: EEG | AH144: WaK403------15 | AI144: Wasser | AJ144: Wasser | AK144: Inbetriebnahme 2015 | AL144: Inbetriebnahme 2015 | AO144: 5-10 MW | AU144: 5.34 | AV144: 4.43 | AW144: 5.54 | AZ144: EEG | BA144: WaK403------15 | BC144: EEG | BD144: WaK403------15
AF145: 144 | AG145: EEG | AH145: WaK404------15 | AI145: Wasser | AJ145: Wasser | AK145: Inbetriebnahme 2015 | AL145: Inbetriebnahme 2015 | AO145: 10-20 MW | AU145: 5.14 | AV145: 4.27 | AW145: 5.34 | AZ145: EEG | BA145: WaK404------15 | BC145: EEG | BD145: WaK404------15
AF146: 145 | AG146: EEG | AH146: WaK405------15 | AI146: Wasser | AJ146: Wasser | AK146: Inbetriebnahme 2015 | AL146: Inbetriebnahme 2015 | AO146: 20-50 MW | AU146: 4.08 | AV146: 3.42 | AW146: 4.28 | AZ146: EEG | BA146: WaK405------15 | BC146: EEG | BD146: WaK405------15
AF147: 146 | AG147: EEG | AH147: WaK406------15 | AI147: Wasser | AJ147: Wasser | AK147: Inbetriebnahme 2015 | AL147: Inbetriebnahme 2015 | AO147: > 50 MW | AU147: 3.3 | AV147: 2.8 | AW147: 3.5 | AZ147: EEG | BA147: WaK406------15 | BC147: EEG | BD147: WaK406------15
AF148: 147 | AG148: EEG | AH148: WaK400M-----15 | AI148: Wasser | AJ148: Wasser | AK148: Modernisierung 2015 | AL148: Modernisierung 2015 | AO148: 0-0,5 MW, IB vor 01.01.2009, Modernisierung 2015 | AT148: MOD | AU148: 12.52 | AV148: 10.02 | AW148: 12.52 | AZ148: EEG | BA148: WaK400M-----15 | BC148: EEG | BD148: WaK400M-----15
AF149: 148 | AG149: EEG | AH149: WaK401M-----15 | AI149: Wasser | AJ149: Wasser | AK149: Modernisierung 2015 | AL149: Modernisierung 2015 | AO149: 0,5-2 MW, IB vor 01.01.2009, Modernisierung 2015 | AT149: MOD | AU149: 8.25 | AV149: 6.6 | AW149: 8.25 | AZ149: EEG | BA149: WaK401M-----15 | BC149: EEG | BD149: WaK401M-----15
AF150: 149 | AG150: EEG | AH150: WaK402M-----15 | AI150: Wasser | AJ150: Wasser | AK150: Modernisierung 2015 | AL150: Modernisierung 2015 | AO150: 2-5 MW, IB vor 01.01.2009, Modernisierung 2015 | AT150: MOD | AU150: 6.31 | AV150: 5.05 | AW150: 6.31 | AZ150: EEG | BA150: WaK402M-----15 | BC150: EEG | BD150: WaK402M-----15
AF151: 150 | AG151: EEG | AH151: WaK403M-----15 | AI151: Wasser | AJ151: Wasser | AK151: Modernisierung 2015 | AL151: Modernisierung 2015 | AO151: 5-10 MW, IB vor 01.01.2009, Modernisierung 2015 | AT151: MOD | AU151: 5.54 | AV151: 4.43 | AW151: 5.54 | AZ151: EEG | BA151: WaK403M-----15 | BC151: EEG | BD151: WaK403M-----15
AF152: 151 | AG152: EEG | AH152: WaK404M-----15 | AI152: Wasser | AJ152: Wasser | AK152: Modernisierung 2015 | AL152: Modernisierung 2015 | AO152: 10-20 MW, IB vor 01.01.2009, Modernisierung 2015 | AT152: MOD | AU152: 5.34 | AV152: 4.27 | AW152: 5.34 | AZ152: EEG | BA152: WaK404M-----15 | BC152: EEG | BD152: WaK404M-----15
AF153: 152 | AG153: EEG | AH153: WaK405M-----15 | AI153: Wasser | AJ153: Wasser | AK153: Modernisierung 2015 | AL153: Modernisierung 2015 | AO153: 20-50 MW, IB vor 01.01.2009, Modernisierung 2015 | AT153: MOD | AU153: 4.28 | AV153: 3.42 | AW153: 4.28 | AZ153: EEG | BA153: WaK405M-----15 | BC153: EEG | BD153: WaK405M-----15
AF154: 153 | AG154: EEG | AH154: WaK406M-----15 | AI154: Wasser | AJ154: Wasser | AK154: Modernisierung 2015 | AL154: Modernisierung 2015 | AO154: > 50 MW, IB vor 01.01.2009, Modernisierung 2015 | AT154: MOD | AU154: 3.5 | AV154: 2.8 | AW154: 3.5 | AZ154: EEG | BA154: WaK406M-----15 | BC154: EEG | BD154: WaK406M-----15
AF155: 154 | AG155: EEG | AH155: WaK400------16 | AI155: Wasser | AJ155: =VLOOKUP(AI155,ENERGIETRAEGER,1,FALSE) -> Wasser | AK155: Inbetriebnahme 2016 | AL155: Inbetriebnahme 2016 | AO155: 0-0,5 MW | AU155: 12.26 | AV155: 9.97 | AW155: 12.46 | AZ155: EEG | BA155: WaK400------16 | BC155: EEG | BD155: WaK400------16
AF156: 155 | AG156: EEG | AH156: WaK401------16 | AI156: Wasser | AJ156: Wasser | AK156: Inbetriebnahme 2016 | AL156: Inbetriebnahme 2016 | AO156: 0,5-2 MW | AU156: 8.01 | AV156: 6.57 | AW156: 8.21 | AZ156: EEG | BA156: WaK401------16 | BC156: EEG | BD156: WaK401------16
AF157: 156 | AG157: EEG | AH157: WaK402------16 | AI157: Wasser | AJ157: Wasser | AK157: Inbetriebnahme 2016 | AL157: Inbetriebnahme 2016 | AO157: 2-5 MW | AU157: 6.08 | AV157: 5.02 | AW157: 6.28 | AZ157: EEG | BA157: WaK402------16 | BC157: EEG | BD157: WaK402------16
AF158: 157 | AG158: EEG | AH158: WaK403------16 | AI158: Wasser | AJ158: Wasser | AK158: Inbetriebnahme 2016 | AL158: Inbetriebnahme 2016 | AO158: 5-10 MW | AU158: 5.31 | AV158: 4.41 | AW158: 5.51 | AZ158: EEG | BA158: WaK403------16 | BC158: EEG | BD158: WaK403------16
AF159: 158 | AG159: EEG | AH159: WaK404------16 | AI159: Wasser | AJ159: Wasser | AK159: Inbetriebnahme 2016 | AL159: Inbetriebnahme 2016 | AO159: 10-20 MW | AU159: 5.11 | AV159: 4.25 | AW159: 5.31 | AZ159: EEG | BA159: WaK404------16 | BC159: EEG | BD159: WaK404------16
AF160: 159 | AG160: EEG | AH160: WaK405------16 | AI160: Wasser | AJ160: Wasser | AK160: Inbetriebnahme 2016 | AL160: Inbetriebnahme 2016 | AO160: 20-50 MW | AU160: 4.06 | AV160: 3.41 | AW160: 4.26 | AZ160: EEG | BA160: WaK405------16 | BC160: EEG | BD160: WaK405------16
AF161: 160 | AG161: EEG | AH161: WaK406------16 | AI161: Wasser | AJ161: Wasser | AK161: Inbetriebnahme 2016 | AL161: Inbetriebnahme 2016 | AO161: > 50 MW | AU161: 3.28 | AV161: 2.78 | AW161: 3.48 | AZ161: EEG | BA161: WaK406------16 | BC161: EEG | BD161: WaK406------16
AF162: 161 | AG162: EEG | AH162: WaK400M-----16 | AI162: Wasser | AJ162: Wasser | AK162: Modernisierung 2016 | AL162: Modernisierung 2016 | AO162: 0-0,5 MW, IB vor 01.01.2009, Modernisierung 2016 | AT162: MOD | AU162: 12.46 | AV162: 9.97 | AW162: 12.46 | AZ162: EEG | BA162: WaK400M-----16 | BC162: EEG | BD162: WaK400M-----16
AF163: 162 | AG163: EEG | AH163: WaK401M-----16 | AI163: Wasser | AJ163: Wasser | AK163: Modernisierung 2016 | AL163: Modernisierung 2016 | AO163: 0,5-2 MW, IB vor 01.01.2009, Modernisierung 2016 | AT163: MOD | AU163: 8.21 | AV163: 6.57 | AW163: 8.21 | AZ163: EEG | BA163: WaK401M-----16 | BC163: EEG | BD163: WaK401M-----16
AF164: 163 | AG164: EEG | AH164: WaK402M-----16 | AI164: Wasser | AJ164: Wasser | AK164: Modernisierung 2016 | AL164: Modernisierung 2016 | AO164: 2-5 MW, IB vor 01.01.2009, Modernisierung 2016 | AT164: MOD | AU164: 6.28 | AV164: 5.02 | AW164: 6.28 | AZ164: EEG | BA164: WaK402M-----16 | BC164: EEG | BD164: WaK402M-----16
AF165: 164 | AG165: EEG | AH165: WaK403M-----16 | AI165: Wasser | AJ165: Wasser | AK165: Modernisierung 2016 | AL165: Modernisierung 2016 | AO165: 5-10 MW, IB vor 01.01.2009, Modernisierung 2016 | AT165: MOD | AU165: 5.51 | AV165: 4.41 | AW165: 5.51 | AZ165: EEG | BA165: WaK403M-----16 | BC165: EEG | BD165: WaK403M-----16
AF166: 165 | AG166: EEG | AH166: WaK404M-----16 | AI166: Wasser | AJ166: Wasser | AK166: Modernisierung 2016 | AL166: Modernisierung 2016 | AO166: 10-20 MW, IB vor 01.01.2009, Modernisierung 2016 | AT166: MOD | AU166: 5.31 | AV166: 4.25 | AW166: 5.31 | AZ166: EEG | BA166: WaK404M-----16 | BC166: EEG | BD166: WaK404M-----16
AF167: 166 | AG167: EEG | AH167: WaK405M-----16 | AI167: Wasser | AJ167: Wasser | AK167: Modernisierung 2016 | AL167: Modernisierung 2016 | AO167: 20-50 MW, IB vor 01.01.2009, Modernisierung 2016 | AT167: MOD | AU167: 4.26 | AV167: 3.41 | AW167: 4.26 | AZ167: EEG | BA167: WaK405M-----16 | BC167: EEG | BD167: WaK405M-----16
AF168: 167 | AG168: EEG | AH168: WaK406M-----16 | AI168: Wasser | AJ168: Wasser | AK168: Modernisierung 2016 | AL168: Modernisierung 2016 | AO168: > 50 MW, IB vor 01.01.2009, Modernisierung 2016 | AT168: MOD | AU168: 3.48 | AV168: 2.78 | AW168: 3.48 | AZ168: EEG | BA168: WaK406M-----16 | BC168: EEG | BD168: WaK406M-----16
AF169: 168 | AG169: EEG | AH169: BiK51n------01 | AI169: Biomasse | AJ169: =VLOOKUP(AI169,ENERGIETRAEGER,1,FALSE) -> Biomasse | AK169: =VLOOKUP(AL169,VIN,1,FALSE) -> Inbetriebnahme bis 2001 | AL169: Inbetriebnahme bis 2001 | AO169: 0-0,150 MW | AQ169: =IF(ISERR(FIND("Anteil KWK",AS169)),"","Ja") ->  | AS169: Anteil Nicht-KWK | AU169: 11.67 | AV169: 9.34 | AW169: 11.67 | AZ169: EEG | BA169: BiK51n------01 | BC169: EEG | BD169: BiK51n------01
AF170: 169 | AG170: EEG | AH170: BiK51nKA3---01 | AI170: Biomasse | AJ170: Biomasse | AK170: Inbetriebnahme bis 2001 | AL170: Inbetriebnahme bis 2001 | AO170: 0-0,150 MW, Bonusregel K wenn Anlage 3 erfüllt | AQ170: =IF(ISERR(FIND("Anteil KWK",AS170)),"","Ja") -> Ja | AS170: Anteil KWK gemäß Anlage 3 | AU170: 14.67 | AV170: 11.74 | AW170: 14.67 | AZ170: EEG | BA170: BiK51nKA3---01 | BC170: EEG | BD170: BiK51nKA3---01
AF171: 170 | AG171: EEG | AH171: BiK51nK09---01 | AI171: Biomasse | AJ171: Biomasse | AK171: Inbetriebnahme bis 2001 | AL171: Inbetriebnahme bis 2001 | AO171: 0-0,150 MW, Bonusregel K erstmals 2009 | AQ171: Ja | AS171: Anteil KWK, erstmals 2009 | AU171: 14.67 | AV171: 11.74 | AW171: 14.67 | AZ171: EEG | BA171: BiK51nK09---01 | BC171: EEG | BD171: BiK51nK09---01
AF172: 171 | AG172: EEG | AH172: BiK51nK10---01 | AI172: Biomasse | AJ172: Biomasse | AK172: Inbetriebnahme bis 2001 | AL172: Inbetriebnahme bis 2001 | AO172: 0-0,150 MW, Bonusregel K erstmals 2010 | AQ172: Ja | AS172: Anteil KWK, erstmals 2010 | AU172: 14.64 | AV172: 11.71 | AW172: 14.64 | AZ172: EEG | BA172: BiK51nK10---01 | BC172: EEG | BD172: BiK51nK10---01
AF173: 172 | AG173: EEG | AH173: BiK51nK11---01 | AI173: Biomasse | AJ173: Biomasse | AK173: Inbetriebnahme bis 2001 | AL173: Inbetriebnahme bis 2001 | AO173: 0-0,150 MW, Bonusregel K erstmals 2011 | AQ173: Ja | AS173: Anteil KWK, erstmals 2011 | AU173: 14.61 | AV173: 11.69 | AW173: 14.61 | AZ173: EEG | BA173: BiK51nK11---01 | BC173: EEG | BD173: BiK51nK11---01
AF174: 173 | AG174: EEG | AH174: BiK51nK12---01 | AI174: Biomasse | AJ174: Biomasse | AK174: Inbetriebnahme bis 2001 | AL174: Inbetriebnahme bis 2001 | AO174: 0-0,150 MW, Bonusregel K erstmals 2012 | AQ174: Ja | AS174: Anteil KWK, erstmals 2012 | AU174: 14.58 | AV174: 11.66 | AW174: 14.58 | AZ174: EEG | BA174: BiK51nK12---01 | BC174: EEG | BD174: BiK51nK12---01
AF175: 174 | AG175: EEG | AH175: BiK51ny-----01 | AI175: Biomasse | AJ175: Biomasse | AK175: Inbetriebnahme bis 2001 | AL175: Inbetriebnahme bis 2001 | AO175: 0-0,150 MW, Bonusregel y | AS175: Anteil Nicht-KWK | AU175: 12.67 | AV175: 10.14 | AW175: 12.67 | AZ175: EEG | BA175: BiK51ny-----01 | BC175: EEG | BD175: BiK51ny-----01
AF176: 175 | AG176: EEG | AH176: BiK51nKA3y--01 | AI176: Biomasse | AJ176: Biomasse | AK176: Inbetriebnahme bis 2001 | AL176: Inbetriebnahme bis 2001 | AO176: 0-0,150 MW, Bonusregeln y und K wenn Anlage 3 erfüllt | AQ176: Ja | AS176: Anteil KWK gemäß Anlage 3 | AU176: 15.67 | AV176: 12.54 | AW176: 15.67 | AZ176: EEG | BA176: BiK51nKA3y--01 | BC176: EEG | BD176: BiK51nKA3y--01
AF177: 176 | AG177: EEG | AH177: BiK51nK09y--01 | AI177: Biomasse | AJ177: Biomasse | AK177: Inbetriebnahme bis 2001 | AL177: Inbetriebnahme bis 2001 | AO177: 0-0,150 MW, Bonusregeln y und K erstmals 2009 | AQ177: Ja | AS177: Anteil KWK, erstmals 2009 | AU177: 15.67 | AV177: 12.54 | AW177: 15.67 | AZ177: EEG | BA177: BiK51nK09y--01 | BC177: EEG | BD177: BiK51nK09y--01
AF178: 177 | AG178: EEG | AH178: BiK51nK10y--01 | AI178: Biomasse | AJ178: Biomasse | AK178: Inbetriebnahme bis 2001 | AL178: Inbetriebnahme bis 2001 | AO178: 0-0,150 MW, Bonusregeln y und K erstmals 2010 | AQ178: Ja | AS178: Anteil KWK, erstmals 2010 | AU178: 15.64 | AV178: 12.51 | AW178: 15.64 | AZ178: EEG | BA178: BiK51nK10y--01 | BC178: EEG | BD178: BiK51nK10y--01
AF179: 178 | AG179: EEG | AH179: BiK51nK11y--01 | AI179: Biomasse | AJ179: Biomasse | AK179: Inbetriebnahme bis 2001 | AL179: Inbetriebnahme bis 2001 | AO179: 0-0,150 MW, Bonusregeln y und K erstmals 2011 | AQ179: Ja | AS179: Anteil KWK, erstmals 2011 | AU179: 15.61 | AV179: 12.49 | AW179: 15.61 | AZ179: EEG | BA179: BiK51nK11y--01 | BC179: EEG | BD179: BiK51nK11y--01
AF180: 179 | AG180: EEG | AH180: BiK51nK12y--01 | AI180: Biomasse | AJ180: Biomasse | AK180: Inbetriebnahme bis 2001 | AL180: Inbetriebnahme bis 2001 | AO180: 0-0,150 MW, Bonusregeln y und K erstmals 2012 | AQ180: Ja | AS180: Anteil KWK, erstmals 2012 | AU180: 15.58 | AV180: 12.46 | AW180: 15.58 | AZ180: EEG | BA180: BiK51nK12y--01 | BC180: EEG | BD180: BiK51nK12y--01
AF181: 180 | AG181: EEG | AH181: BiK51na1----01 | AI181: Biomasse | AJ181: Biomasse | AK181: Inbetriebnahme bis 2001 | AL181: Inbetriebnahme bis 2001 | AO181: 0-0,150 MW; Bonusregel a1 | AS181: Anteil Nicht-KWK | AU181: 17.67 | AV181: 14.14 | AW181: 17.67 | AZ181: EEG | BA181: BiK51na1----01 | BC181: EEG | BD181: BiK51na1----01
AF182: 181 | AG182: EEG | AH182: BiK51na1KA3-01 | AI182: Biomasse | AJ182: Biomasse | AK182: Inbetriebnahme bis 2001 | AL182: Inbetriebnahme bis 2001 | AO182: 0-0,150 MW, Bonusregeln a1, K wenn Anlage 3 erfüllt | AQ182: Ja | AS182: Anteil KWK gemäß Anlage 3 | AU182: 20.67 | AV182: 16.54 | AW182: 20.67 | AZ182: EEG | BA182: BiK51na1KA3-01 | BC182: EEG | BD182: BiK51na1KA3-01
AF183: 182 | AG183: EEG | AH183: BiK51na1K09-01 | AI183: Biomasse | AJ183: Biomasse | AK183: Inbetriebnahme bis 2001 | AL183: Inbetriebnahme bis 2001 | AO183: 0-0,150 MW, Bonusregeln a1, K erstmals 2009 | AQ183: Ja | AS183: Anteil KWK, erstmals 2009 | AU183: 20.67 | AV183: 16.54 | AW183: 20.67 | AZ183: EEG | BA183: BiK51na1K09-01 | BC183: EEG | BD183: BiK51na1K09-01
AF184: 183 | AG184: EEG | AH184: BiK51na1K10-01 | AI184: Biomasse | AJ184: Biomasse | AK184: Inbetriebnahme bis 2001 | AL184: Inbetriebnahme bis 2001 | AO184: 0-0,150 MW, Bonusregeln a1, K erstmals 2010 | AQ184: Ja | AS184: Anteil KWK, erstmals 2010 | AU184: 20.64 | AV184: 16.51 | AW184: 20.64 | AZ184: EEG | BA184: BiK51na1K10-01 | BC184: EEG | BD184: BiK51na1K10-01
AF185: 184 | AG185: EEG | AH185: BiK51na1K11-01 | AI185: Biomasse | AJ185: Biomasse | AK185: Inbetriebnahme bis 2001 | AL185: Inbetriebnahme bis 2001 | AO185: 0-0,150 MW, Bonusregeln a1, K erstmals 2011 | AQ185: Ja | AS185: Anteil KWK, erstmals 2011 | AU185: 20.61 | AV185: 16.49 | AW185: 20.61 | AZ185: EEG | BA185: BiK51na1K11-01 | BC185: EEG | BD185: BiK51na1K11-01
AF186: 185 | AG186: EEG | AH186: BiK51na1K12-01 | AI186: Biomasse | AJ186: =VLOOKUP(AI186,ENERGIETRAEGER,1,FALSE) -> Biomasse | AK186: =VLOOKUP(AL186,VIN,1,FALSE) -> Inbetriebnahme bis 2001 | AL186: Inbetriebnahme bis 2001 | AO186: 0-0,150 MW, Bonusregeln a1, K erstmals 2012 | AQ186: Ja | AS186: Anteil KWK, erstmals 2012 | AU186: 20.58 | AV186: 16.46 | AW186: 20.58 | AZ186: EEG | BA186: BiK51na1K12-01 | BC186: EEG | BD186: BiK51na1K12-01
AF187: 186 | AG187: EEG | AH187: BiK51na1y---01 | AI187: Biomasse | AJ187: Biomasse | AK187: Inbetriebnahme bis 2001 | AL187: Inbetriebnahme bis 2001 | AO187: 0-0,150 MW; Bonusregeln a1, y | AS187: Anteil Nicht-KWK | AU187: 18.67 | AV187: 14.94 | AW187: 18.67 | AZ187: EEG | BA187: BiK51na1y---01 | BC187: EEG | BD187: BiK51na1y---01
AF188: 187 | AG188: EEG | AH188: BiK51na1KA3y01 | AI188: Biomasse | AJ188: Biomasse | AK188: Inbetriebnahme bis 2001 | AL188: Inbetriebnahme bis 2001 | AO188: 0-0,150 MW, Bonusregeln a1, y und K wenn Anlage 3 erfüllt | AQ188: Ja | AS188: Anteil KWK gemäß Anlage 3 | AU188: 21.67 | AV188: 17.34 | AW188: 21.67 | AZ188: EEG | BA188: BiK51na1KA3y01 | BC188: EEG | BD188: BiK51na1KA3y01
AF189: 188 | AG189: EEG | AH189: BiK51na1K09y01 | AI189: Biomasse | AJ189: Biomasse | AK189: Inbetriebnahme bis 2001 | AL189: Inbetriebnahme bis 2001 | AO189: 0-0,150 MW, Bonusregeln a1, y und K erstmals 2009 | AQ189: Ja | AS189: Anteil KWK, erstmals 2009 | AU189: 21.67 | AV189: 17.34 | AW189: 21.67 | AZ189: EEG | BA189: BiK51na1K09y01 | BC189: EEG | BD189: BiK51na1K09y01
AF190: 189 | AG190: EEG | AH190: BiK51na1K10y01 | AI190: Biomasse | AJ190: Biomasse | AK190: Inbetriebnahme bis 2001 | AL190: Inbetriebnahme bis 2001 | AO190: 0-0,150 MW, Bonusregeln a1, y und K erstmals 2010 | AQ190: Ja | AS190: Anteil KWK, erstmals 2010 | AU190: 21.64 | AV190: 17.31 | AW190: 21.64 | AZ190: EEG | BA190: BiK51na1K10y01 | BC190: EEG | BD190: BiK51na1K10y01
AF191: 190 | AG191: EEG | AH191: BiK51na1K11y01 | AI191: Biomasse | AJ191: Biomasse | AK191: Inbetriebnahme bis 2001 | AL191: Inbetriebnahme bis 2001 | AO191: 0-0,150 MW, Bonusregeln a1, y und K erstmals 2011 | AQ191: Ja | AS191: Anteil KWK, erstmals 2011 | AU191: 21.61 | AV191: 17.29 | AW191: 21.61 | AZ191: EEG | BA191: BiK51na1K11y01 | BC191: EEG | BD191: BiK51na1K11y01
AF192: 191 | AG192: EEG | AH192: BiK51na1K12y01 | AI192: Biomasse | AJ192: Biomasse | AK192: Inbetriebnahme bis 2001 | AL192: Inbetriebnahme bis 2001 | AO192: 0-0,150 MW, Bonusregeln a1, y und K erstmals 2012 | AQ192: Ja | AS192: Anteil KWK, erstmals 2012 | AU192: 21.58 | AV192: 17.26 | AW192: 21.58 | AZ192: EEG | BA192: BiK51na1K12y01 | BC192: EEG | BD192: BiK51na1K12y01
AF193: 192 | AG193: EEG | AH193: BiK51nG-----01 | AI193: Biomasse | AJ193: Biomasse | AK193: Inbetriebnahme bis 2001 | AL193: Inbetriebnahme bis 2001 | AO193: 0-0,15 MW, Bonusregel G | AS193: Anteil Nicht-KWK | AU193: 18.67 | AV193: 14.94 | AW193: 18.67 | AZ193: EEG | BA193: BiK51nG-----01 | BC193: EEG | BD193: BiK51nG-----01
AF194: 193 | AG194: EEG | AH194: BiK51nGKA3--01 | AI194: Biomasse | AJ194: Biomasse | AK194: Inbetriebnahme bis 2001 | AL194: Inbetriebnahme bis 2001 | AO194: 0-0,15 MW, Bonusregeln G und K wenn Anlage 3 erfüllt | AQ194: Ja | AS194: Anteil KWK gemäß Anlage 3 | AU194: 21.67 | AV194: 17.34 | AW194: 21.67 | AZ194: EEG | BA194: BiK51nGKA3--01 | BC194: EEG | BD194: BiK51nGKA3--01
AF195: 194 | AG195: EEG | AH195: BiK51nGK09--01 | AI195: Biomasse | AJ195: Biomasse | AK195: Inbetriebnahme bis 2001 | AL195: Inbetriebnahme bis 2001 | AO195: 0-0,15 MW, Bonusregeln G und K erstmals 2009 | AQ195: Ja | AS195: Anteil KWK, erstmals 2009 | AU195: 21.67 | AV195: 17.34 | AW195: 21.67 | AZ195: EEG | BA195: BiK51nGK09--01 | BC195: EEG | BD195: BiK51nGK09--01
AF196: 195 | AG196: EEG | AH196: BiK51nGK10--01 | AI196: Biomasse | AJ196: Biomasse | AK196: Inbetriebnahme bis 2001 | AL196: Inbetriebnahme bis 2001 | AO196: 0-0,15 MW, Bonusregeln G und K erstmals 2010 | AQ196: Ja | AS196: Anteil KWK, erstmals 2010 | AU196: 21.64 | AV196: 17.31 | AW196: 21.64 | AZ196: EEG | BA196: BiK51nGK10--01 | BC196: EEG | BD196: BiK51nGK10--01
AF197: 196 | AG197: EEG | AH197: BiK51nGK11--01 | AI197: Biomasse | AJ197: Biomasse | AK197: Inbetriebnahme bis 2001 | AL197: Inbetriebnahme bis 2001 | AO197: 0-0,15 MW, Bonusregeln G und K erstmals 2011 | AQ197: Ja | AS197: Anteil KWK, erstmals 2011 | AU197: 21.61 | AV197: 17.29 | AW197: 21.61 | AZ197: EEG | BA197: BiK51nGK11--01 | BC197: EEG | BD197: BiK51nGK11--01
AF198: 197 | AG198: EEG | AH198: BiK51nGK12--01 | AI198: Biomasse | AJ198: Biomasse | AK198: Inbetriebnahme bis 2001 | AL198: Inbetriebnahme bis 2001 | AO198: 0-0,15 MW, Bonusregeln G und K erstmals 2012 | AQ198: Ja | AS198: Anteil KWK, erstmals 2012 | AU198: 21.58 | AV198: 17.26 | AW198: 21.58 | AZ198: EEG | BA198: BiK51nGK12--01 | BC198: EEG | BD198: BiK51nGK12--01
AF199: 198 | AG199: EEG | AH199: BiK51nGy----01 | AI199: Biomasse | AJ199: Biomasse | AK199: Inbetriebnahme bis 2001 | AL199: Inbetriebnahme bis 2001 | AO199: 0-0,15 MW, Bonusregel G, y | AS199: Anteil Nicht-KWK | AU199: 19.67 | AV199: 15.74 | AW199: 19.67 | AZ199: EEG | BA199: BiK51nGy----01 | BC199: EEG | BD199: BiK51nGy----01
AF200: 199 | AG200: EEG | AH200: BiK51nGKA3y-01 | AI200: Biomasse | AJ200: Biomasse | AK200: Inbetriebnahme bis 2001 | AL200: Inbetriebnahme bis 2001 | AO200: 0-0,15 MW, Bonusregeln G, y und K wenn Anlage 3 erfüllt | AQ200: Ja | AS200: Anteil KWK gemäß Anlage 3 | AU200: 22.67 | AV200: 18.14 | AW200: 22.67 | AZ200: EEG | BA200: BiK51nGKA3y-01 | BC200: EEG | BD200: BiK51nGKA3y-01
... 889 more rows

Sheet Anderungsdokumentation (hidden)
A1: Version (Makro/AddIn) | B1: Änderung zum Vorgänger | C1: Datum der Auslieferung
A2: 1.11 (2014) | B2: -Neue Spezialvergütunsgkategorie eingebaut -Fehlermeldung bei Prüfung DV ohne Angaben zur Direktvermarktung angepasst | C2: 2014-03-14
A3: 1.12 (2014) | B3: -Fehlerhafte Kennzeichnung einer "fernsteuerbaren" Marktprämienkategorie korrigiert | C3: 2014-02-19
A4: 1.13 (2014) | B4: -Ausnahmetext für SV/RV-Prüfung wurde nicht korrekt berücksichtigt -> korrigiert | C4: 2014-04-24
A5: 1.14 (2014) | B5: -ungültige vNE-Kategorien (kein Eintarg aus der Liste) führte zu Programmabbruch -> korrigiert -Änderungsdokumentation nachgezogen | C5: 2014-05-16
A6: 1.0 (2015) | B6: Anpassungen für Jahresmeldungen 2014: neue Kategorien, Nachträgliche Korrekturen, Ausfallvermarktung, Flexibilitätszuschlag (mit Prüfung), Prüfung von MIM und Höchstebemessungsleistung Änderunge bei Modernvisierung von Wasserkraftanlagen verändertes Layout der Testateblätter Liste der Ausnahmen | C6: 2015-03-18
A7: 1.1 (2015) | B7: div. Fehlerkorrekuren | C7: 2015-03-19
A8: 1.2 (2015) | B8: 2 fehlende Kats hinzugefügt, unteres Limit für Flexzuschalg auf 0 gesetzt und Marktwerte eingepflegt | C8: 2015-03-19
A9: 1.3 (2015) | B9: MW-Sanktionen bei Managementprämien hinzugefügt/Fehler in Ausfallvermarktung korrigiert | C9: 2015-03-20
A10: 1.4 (2015) | B10: Buttons geändert | C10: 2015-03-20
A11: 1.5 (2015) | B11: - Korrektur bei der Berechnung der Bemessungleistung und - 1kW Toleranz bei Prüfung Verstoß Höchtsbemessungsleistung - Fehler bei fehlender Angabe zum Einspeisemanagement obowhl zuläsig (wegen Anlagen vor 2012) | C11: 2015-03-23
A12: 1.6 (2015) | B12: Fehlermeldung bei Einspeisemanagement angepasst, Stichtag für PV > 30 kWp = 01.01.2009 anstatt 01.01.2003 | C12: 2015-03-23
A13: 1.7 (2015) | B13: Ausgleichsbilanzkreis mit Validierung | C13: 2015-03-24
A14: 1.8 (2015) | B14: Prüfung Höchstbemessungsleistung <= inst. leistung entfernt | C14: 2015-03-26
A15: 1.9 (2015) | B15: Prüfung MiM-Kategorie erst ab > 10 kW entfernt (wegen Anlagenzusammenfassung); Korrektur eines Fehlers bei MiM-Prüfung (MiMa-Sanktion wurde nicht korrekt erkannt) | C15: 2015-04-07
A16: 1.10 (2015) | B16: Weitere Anpassungen an MiM-Prüfung wegen Anlagenzusammenfassung (impllizite Ausnahmen) | C16: 2015-04-08
A17: 1.11 (2015) | B17: Weitere Anpassungen an MiM-Prüfung wegen Anlagenzusammenfassung (explizite Ausnahme auch bei > 10 kW zulassen) | C17: 2015-04-10
A18: 1.12/1.12 (2015) | B18: Typ bei GSP-Doppelvermarktung auf GSP geändert Inbetriebnahme 2014 bis 31.12.2014 gültig >500 kW Prüfung abhängig von Vergütungsaktgeorie (Datum), nicht Inbetreibnahme AddIn-Logik integriert | C18: 2015-04-14
A19: 1.13/1.13 (2015) | B19: Vertauschung von Sonstige und GSP-Direktvermarktung in Testatblatt bereinigt 2 fehlende Biomassekatgorien hinzugefügt Check-Testatdaten in AddIn ergänzt | C19: 2015-04-20
A20: 1.14/1.14 (2015) | B20: Im AddIn auf nachträgliche Korrekturen hinweisen Prüfung EEG-Einspeisvergütung bei > 500 kW/>100 kW bei EEG for MPM unterlassen | C20: 2015-04-27
A21: 1.14/1.15 (2015) | B21: Im AddIn fehlenden Zählpunkt abgefangen und Hockommas gegen - ersetzt und Volllasstunden wegen Import auf Volllasstunden OK weil geändert | C21: 2015-04-27
A22: 1.14/1.16 (2015) | B22: Im AddIn bei inst. Leistung als Text Tausendertrennzeichen nicht in XML schreiben | C22: 2015-04-28
A23: 1.15/1.17 (2015) | B23: Aktenzeichen kein Pflichfeld mehr (wenn 0 oder leer, dann "nicht definiert" in XML, da NOT NULL in DB) | C23: 2015-05-05
A24: 1.15/1.18 (2015) | B24: Notar wir bei fehlender Angabe ebnefalls mit "nicht definiert" in XML geschrieben, da NOT NULL in DB) | C24: 2015-05-07
A25: 1.15/1.19 (2015) | B25: Im AddIn fehlende Strasse abgefangen und Konfiguration bei GSP-Kategorien angepasst (sonst fälschlicherwiese beim Import als Sanktion erkannt, was infolgedessen zu einem Importfehler geführt hat) | C25: 2015-06-08
A26: 2.0/2.0 | B26: Anpassungen für 2015 (siehe RQ241) | C26: 2016-02-19
A27: 2.1/2.1 | B27: Korrekturen bei Berechnung der Marktprämie im Falle von MW-Sanktionen Prüfung Endvergütung nicht vor Anfangsvergütung weitere Anlagentypen und Umlagenkategorien bei Eigenversorgung Monat bei Marktprämie generell erzwingen (für alle Monate mit Anteilen) | C27: 2016-02-22
A28: 2.2/2.2 | B28: Korrekturen bei Beschriftungen (2014 -> 2015) und Fehlermeldungen | C28: 2016-02-23
A29: 2.3/2.3 | B29: -Bei Abgleich EV zu SV alle SV-Kategorien berücksichtigen, auch saktionierten und vergüteten Selbstverbrauch und Abgleich erfolgt nur, wenn Eigenversorgung gemeldet wurde - Zusätzeliche Prüfung bei EV: keine negativen Mengen und Beträge zulässig - Fehler bereingt: Nachträgliche Korrekturen wurden im Deckblatt nicht ausgewiesen - Zeile 19 mit Abrechnungszeitraum aus Deckblatt entfernt | C29: 2016-06-26
A30: 2.4/2.4 | B30: - Fehler bei EV-Kategorien (Leerzeichen am Ende) korrigiert - Beidseitiger Abgleich zwischen SV und EV nur für EEG-Anlagen mit Inbetriebnahme ab 8.2014 und > 10 kW(p) - sonst nur Fehler bei Abweichungen, sofern EV-Meldung vorhanden - Nicht-EEG-Eigenversorgungsanlagen dürfen keinen EEG-Anlagenschlüssel verwenden | C30: 2016-03-24
A31: 2.5/2.5 | B31: - Beidseitiger Abgleich zwischen SV und EV für EEG-Anlagen mit Inbetriebnahme ab 8.2014 und > 10 kW(p) funktioniert nicht wegen Drittbelieferung, daher raus - Bei MIM-Prüfung Abweichungen bis max 1 kWh zulassen - Änderung der Anlagenarten inkl. Nicht EEG = Konventionell oder hocheffiziente KWK-Anlage - neue Kategorien hinzugefügt | C31: 2016-04-05
A32: 2.6/2.6 | B32: Fehlerhafte Vergütungssätze korrigiert | C32: 2016-04-07
A33: 2.7/2.7 | B33: Weitere Fehler bereinigt: - Eigenversorgung wurde nicht im Testatblatt ausgegegeben, wenn stillgelegte Anlagen gemeldet wurden (gefixt) - Nachträgliche Korrekturen wurden fälschlicherwiese abgewiesen, wenn die Anlage in 2015 nicht aktiv bzw. nicht zugeordnet war -> nun muss die Anlage im gemeldeten Korrekturjahr aktiv und zugeordbnet sein - Bei Eigenversorgung dürfen Nicht-EEG Anlagen jetzt eine für EEG-Anlagenschlüssel reservierte Kennung haben, sofern diese Anlage nicht in den Stammdaten gemeldet wurde - Gültigkeitsprüfung bei Nachträglichen Korrekturen hatte das Korrekturjahr 2014 noch nicht zugelassen | C33: 2016-04-13
A34: 2.8/.2.8 | B34: Weitere Fehler bereinigt: - Eigenversorgung in 2014 wurde auch mit Umlagen von 2015 nachberechnet | C34: 2016-04-18
A35: 2.9/2.9 | B35: Anpassung: Nur Fehler melden, wenn abgerechnete Eigenversorgung > gemeldeter Selbstverbrauch (weniger ist zulässig) | C35: 2016-04-29
